Workbook

Sheet Info

Sheet Trial (hidden)

Sheet Instructions (hidden)
A1: Excel Skills | Property Investment Forecast Template
A2: Instructions
A3: www.excel-skills.com
A5: This template enables users to calculate a comprehensive residential property investment forecast for any property investment or primary residence over any investment period between 1 month and 20 years. The functionality that has been included in the template is comparable to any property software solution - in fact, we guarantee that you will not find a more practical and comprehensive residential property forecast solution anywhere else. Users are required to specify input values for a comprehensive series of property variables and the template automatically calculates a comprehensive, accurate investment return forecast on an annual and cumulative basis.
A7: This template is provided courtesy of Property Reality. The template forms part of the unique range of innovative residential property templates that are available on the Property Reality website (www.propertyreality.co.za). We highly recommend that you visit Property Reality in order to view samples of all the templates that are included in their comprehensive template subscription! If you are only interested in a residential property investment forecast template, you can buy this template by using our shopping cart.
A9: Note: We highly recommend using this template in conjunction with Property Reality's unique buy to let and primary residence property investment templates. The property investment forecast template enables users to compile an accurate investment forecast and the buy to let and primary residence property investment templates enable users to compile an accurate analysis of the actual investment return that is achieved. By comparing the results that are produced by these templates, users are able to measure actual investment return against initial expectations.
A11: The following sheets are included in this template:
A12: Input - this sheet includes most of the input variable values that need to be specified in order to calculate an accurate property investment return forecast.
A13: PrimeRate - this sheet includes monthly prime interest rates from January 2000 to December 2050. The interest rates that are entered on this sheet are included in a monthly amortization table after deducting a rate discount that is specified by the user.
A14: AdHoc - this sheet facilitates including ad hoc bond repayments in the monthly amortization table on the MonthAmort sheet. All the ad hoc bond repayments that are entered on this sheet are automatically included in the monthly amortization table based on the monthly periods in column A.
A15: MonthAmort - this sheet includes a monthly bond amortization table that incorporates variable monthly interest rates and ad hoc bond repayments. The monthly interest rates are determined by deducting the rate discount that is specified in cell F6 from the prime interest rates that are entered on the PrimeRate sheet. The ad hoc repayments that are entered on the AdHoc sheet are automatically included in the monthly amortization table.
A16: CashFlow - this sheet includes a comprehensive property cash flow calculation that is based on the input variable values on the Input sheet and the monthly amortization table that is calculated on the MonthAmort sheet. The only user input that is required is specifying the forecasted annual capital growth rates.
A17: Results - this sheet contains a comprehensive analysis of the forecasted property investment return. All the values on this sheet are automatically calculated based on the input values and calculations that are included on the other sheets. No user input is required on this sheet.
A18: Variables - this sheet includes all the residential property calculation variables that have been incorporated into the template calculations. If any of these variables need to be amended, the appropriate values can simply be entered on this sheet and all the template calculations will be updated automatically.
A20: User Input
A22: This section of the instructions provides more information on the user input that is required in this template. Most of the user input fields are included on the Input sheet and we'll therefore start by providing guidance on each of the user input fields on this sheet.
A24: Property & Bond Details
A26: Users are required to enter the property purchase date, property purchase price, deposit amount and bond period in cells B5 to B8 on the Input sheet. The property purchase date determines the monthly or annual periods that are included on the CashFlow, Results and MonthAmort sheets. The property purchase price should be the full purchase price as per the deed of sale and the deposit amount should be the cash portion of the purchase price. The bond amount is calculated by deducting the deposit amount from the property purchase price and the bond period in years needs to be entered in cell B8.
A28: The checkbox in cell C9 needs to be selected if the property is purchased by an entity that is registered for value added tax (VAT) purposes. If the property investor intends to renovate the property immediately after it has been acquired, the amount of the intended initial renovation cost should be entered in cell B10.
A30: Transfer & Bond Costs
A32: The initial transfer & bond costs in cell D12 to D17 are automatically calculated based on the property purchase price and bond amount (property purchase price less deposit amount) that is specified on the Input sheet and the transfer & bond cost calculation variables that are included on the Variables sheet. The costs that are calculated in this cell range are also automatically included in the cash flow and investment return calculations.
A34: If you want to override the default costs that are calculated, simply select the appropriate list box in column C next to the calculation that you want to override and simply enter the amount that should be included in the cash flow and investment return calculations in column B.
A36: Rent Income
A38: The monthly forecasted rent income, occupancy rate and annual rent increase needs to be entered in the cell range from cell B19 to B21. The occupancy rate and annual rent increase needs to be entered as percentages. An occupancy rate of less than 100% can be specified if the property investor wants to make provision for months where the property will not be leased to anyone.
A40: Example: If you want to provide for a property not being leased for one month out of a 3 year period, the occupancy rate can be calculated by dividing 35 months (36 months minus 1 month) by the full 36 month period and an occupancy rate of 97.2% should therefore be specified.
A42: In some property investment scenarios, a rent subsidy is paid to the property investor for a fixed initial ownership period. If a rent subsidy is included in the purchase agreement, the appropriate monthly rent subsidy amount can be entered in cell B22 and the subsidy period in months can be entered in cell B23. If a rent subsidy is not included in the agreement, simply enter nil values in these two input cells.
A44: Operational Expenses
A46: The forecasted property management fees, rates, levies, repairs & maintenance costs, insurance premiums and other operational costs need to be entered in the cell range from cell B25 to cell B30. Property management fees should be entered as a percentage and are calculated by applying the specified percentage to the gross monthly rent income (before taking the occupancy rate into account). Annual estimates of the other operational costs should be entered in the other input cells.
A48: The operational cost estimates are increased by the operational cost increase percentage that is specified in cell B31 for all subsequent investment periods. This means that the cost increase percentage is added to the forecasted cost of the previous period in order to calculate the operational costs for all the investment periods after the first year.
A50: Selling Costs
A52: The estimated selling costs that will be incurred when disposing of the property investment consist of agents commission, other selling costs and bond cancellation fees and need to be entered in the cell range from cell B33 to cell B35. Note that the estimated agents commission should be entered as a percentage that includes VAT.
A54: Entity Details
A56: In order to calculate an accurate property investment return forecast, the enterprise form should be selected from the list box in cell B37. The income tax and capital gains tax rates of individuals, corporate entities and trusts are not the same and it is therefore important that the enterprise form is taken into account when calculating the property investment return.
A58: The effective income tax rate in cell B38 and the effective capital gains tax rate in cell B39 are automatically calculated based on the enterprise form that is selected from the list box in cell B37 and the income tax and capital gains tax rates that are included on the Variables sheet.
A60: Other Input Cells
A62: If the template is being used to calculate an investment return forecast for a primary residence, the checkbox in cell C41 needs to be selected. There are a number of capital gains tax exemptions that apply only to primary residences and this checkbox therefore needs to be selected in order to take these exemptions into account in calculating the appropriate capital gains tax amount that will be incurred when disposing of the property.
A64: The template can be used to calculate a property investment return forecast over any investment period between 1 month and 20 years. The investment period in cell B42 should therefore be entered in months and only values between 1 and 240 will be accepted. The last month that is included in the investment period is displayed in cell D42.
A66: The template calculation Results include a net present value (NPV) calculation which requires a discount rate to be specified in order to calculate the net present value of all the net annual cash flows that are included in the investment period. A discount rate equal to the average annual inflation rate can be used in order to calculate the net cash flow after inflation or a discount rate equal to the required annual investment return percentage can be used in order to determine whether the forecasted investment return exceeds or falls short of the required return. Both of these scenarios require the discount rate to be entered as a percentage.
A68: Prime Interest Rates
A70: The PrimeRate sheet includes monthly prime interest rates from January 2000 to December 2050. The interest rates that are entered on this sheet are included in the monthly amortization table on the MonthAmort sheet after deducting the rate discount that is also specified on the MonthAmort sheet.
A72: Note: An up to date copy of all the prime interest rates is available on the Templates page of the Property Reality website. Users can therefore simply download this free Excel file and update the appropriate templates with the values that are listed in this document.
A74: Annual Capital Growth Rates
A76: The annual capital growth rates that are entered in row 4 on the CashFlow sheet are used to calculate the market value of the property at the end of each annual period that is included on the CashFlow and Results sheets. The template therefore includes the flexibility to accommodate variable annual capital growth rates instead of a single average annual capital growth rate that is applied to the entire investment period.
A78: Ad Hoc Bond Repayments
A80: The template facilitates entering ad hoc bond repayments on the AdHoc sheet and automatically includes the ad hoc bond repayment amounts that are entered on this sheet in the monthly amortization table on the MonthAmort sheet. Ad hoc bond repayments can be entered for any monthly period between January 2000 and December 2050.
A82: Interest Rate Discount
A84: As we've mentioned before, the monthly amortization table is based on the prime interest rates that are entered on the PrimeRate sheet and therefore accommodates variable monthly interest rates. In most instances, the annual bond interest rate differs from the prime interest rate by a fixed interest rate discount or premium percentage. The value of the interest rate discount or premium should be entered in cell F6 on the MonthAmort sheet.
A86: Note: The rate discount or premium should not be entered as a percentage because the template calculations convert the specified value to a percentage automatically. Also, the default value is applied as if an interest rate discount is entered and if you therefore need to specify an interest rate premium, a negative value needs to be entered in cell F6.
A88: Property Investment Cash Flow Calculations
A90: The cash flow calculations on the CashFlow sheet are calculated from the user input that is included on the other sheets in the template and forms an important part of the property investment return analysis on the Results sheet. In this section of the instructions, we'll provide guidance on the calculation methodology that has been applied in order to calculate the annual cash flow amounts on the CashFlow sheet.
A92: The only user input that is required on the CashFlow sheet is the annual capital growth rates in row 4. An annual capital growth rate needs to be specified for each year that is included in the investment period and is used in order to calculate the property market value at the end of the particular period (included in row 5).
A94: The outstanding bond amount at the end of each period is calculated by using the monthly amortization table on the MonthAmort sheet and included in row 6. This amount is deducted from the property market value at the end of each period (row 5) to calculate an Equity 1 balance at the end of the period. The Equity 1 amount reflects the equity value before taking selling costs and capital gains tax into account and is discussed in more detail under the Property Investment Return Analysis section of the instructions.
A96: The detailed annual cash flow report includes the following line items:
A98: Transfer Costs - the transfer costs are included in the first year on the cash flow report and consist of the transfer duty, transfer fees and other transfer costs that are entered in row 12 to 14 on the Input sheet.
A100: Bond Costs - the bond costs are included in the first year on the cash flow report and consist of the bond registration fees, bank initiation fees and other bond costs that are entered in row 15 to 17 on the Input sheet.
A102: Deposit Amount - the deposit amount is included in the first year on the cash flow report and is specified in cell B7 on the Input sheet. The deposit amount needs to be entered as a positive value on the Input sheet and usually represents a cash outflow.
A104: The deposit amount input cell can also be used to incorporate the effect of a bond of more than 100% of the property purchase price into the template calculations. When the bond amount is more than the property purchase price, a negative deposit amount can be recorded in the deposit amount input cell which will result in a positive cash flow in the first year on the cash flow report. The bond amount that is included on the monthly amortization table will also equal the amount in excess of the property purchase price.
A106: If the VAT registration checkbox in cell C9 on the Input sheet is selected, the input VAT amount that is included in the property purchase price will also be displayed as a positive cash inflow in the Deposit Amount line on the cash flow report. The cash inflow occurs when the input VAT is claimed back from the South African Revenue Services and output VAT will only have to be paid when the property is sold. The cash inflow is therefore of a temporary nature but the effect of the inflow is included in the first annual period on the cash flow report.
A108: Note: If a deposit amount is specified in cell B7 and the checkbox in cell C9 is selected, the net effect of the deposit amount and the input VAT amount will be displayed in the Deposit Amount line on the cash flow report.
A110: Initial Renovation Costs - this amount is included in the first period on the cash flow report and represents the estimated cost of renovations that will be completed immediately after purchasing the property. The initial renovation costs are specified in cell B10 on the Input sheet and represent a cash outflow.
A112: Rent Income - the rent income amount in the first year is calculated by multiplying the monthly rent income in cell B19 on the Input sheet by the occupancy rate in cell B20 on the Input sheet. The rent income amounts in subsequent years are calculated by adding the rent increase percentage to the appropriate rent income amount of the previous year. All rent income amounts represent an inflow of cash.
A114: If a rent subsidy amount is specified in cell B22 on the Input sheet, the monthly rent subsidy is added as a cash inflow on the cash flow report based on the number of monthly rent subsidy periods that are specified in cell B23 on the Input sheet.
A116: Property Management Fee - the property management fee amounts on the cash flow report are calculated by multiplying the property management fee percentage in cell B25 on the Input sheet by the monthly rent income amount that is specified in cell B19 on the Input sheet. Note that rent subsidies are excluded from the property management fee calculation.
A118: Rates - the rates amount that is included in the first year on the cash flow report is specified in cell B26 on the Input sheet. The rates amounts for all subsequent years are calculated by adding the annual cost inflation percentage that is specified in cell B31 on the Input sheet to the appropriate amount of the previous year.
A120: Levies - the levies amount that is included in the first year on the cash flow report is specified in cell B27 on the Input sheet. The levies amounts for all subsequent years are calculated by adding the annual cost inflation percentage that is specified in cell B31 on the Input sheet to the appropriate amount of the previous year.
A122: Repairs & Maintenance - the repairs & maintenance amount that is included in the first year on the cash flow report is specified in cell B28 on the Input sheet. The repairs & maintenance amounts for all subsequent years are calculated by adding the annual cost inflation percentage that is specified in cell B31 on the Input sheet to the appropriate amount of the previous year.
A124: Insurance - the insurance amount that is included in the first year on the cash flow report is specified in cell B29 on the Input sheet. The insurance amounts for all subsequent years are calculated by adding the annual cost inflation percentage that is specified in cell B31 on the Input sheet to the appropriate amount of the previous year.
A126: Other Operational Costs - the other operational costs amount that is included in the first year on the cash flow report is specified in cell B30 on the Input sheet. The other operational cost amounts for all subsequent years are calculated by adding the annual cost inflation percentage that is specified in cell B31 on the Input sheet to the appropriate amount of the previous year.
A128: Income Tax - the income tax amounts are calculated by deducting the operational costs (row 16 to 21 on the cash flow report) and the total interest for the period as per column F on the MonthAmort sheet from the rent income for the period and then multiplying the result by the appropriate income tax percentage.
A130: The appropriate income tax percentage is determined based on the enterprise form that is selected in cell B37 on the Input sheet and the income tax rates that have been specified for the appropriate enterprise form on the Variables sheet. If the operational costs and interest exceed the rent income, the calculation results in a taxable loss and a positive income tax value. The positive value represents the amount of income tax that is saved by deducting the taxable loss from other taxable income, thereby reducing the income tax that is payable on other sources of income.
A132: Note: The income tax calculations in this template are based on the assumption that ring fencing is not applied. If ring fencing is applied, the costs (including interest) that can be deducted from the rent income are limited to the rent income - in other words, a taxable loss and therefore a positive cash inflow cannot be created and the income tax amount will be nil. The costs that cannot be deducted in any particular tax assessment year can be carried forward and deducted from future rent income.
A134: Note: For more information on property income tax calculations, refer to our Property Income Tax Calculation template. The income tax calculation relating to residential properties is covered in a lot more detail in this template.
A136: Bond Repayments - the total bond repayments as per the monthly amortization table on the MonthAmort sheet are included as a cash outflow in row 23 on the cash flow report. The total bond repayments include both the required bond repayments in column D on the MonthAmort sheet and the ad hoc bond repayments in column E on the MonthAmort sheet.
A138: Selling Price - the selling price is only included on the cash flow report in the annual period that the end of the investment period that is specified in cell B42 on the Input sheet falls into and is equal to the market value that is calculated in row 5. The market value is calculated by applying the annual capital growth percentages that are entered in row 4 on the cash flow report to the property purchase price that is specified in cell B6 on the Input sheet.
A140: Selling Costs - the total selling costs consist of agents commission and other selling costs. The agents commission amount is calculated by multiplying the agents commission percentage that is specified in cell B33 on the Input sheet by the selling price that is calculated in row 24 on the cash flow report. Other selling costs are calculated by adjusting the other selling costs amount that is specified in cell B34 on the Input sheet by the annual cost inflation percentage that is specified in cell B31 on the Input sheet.
A142: Capital Gains Tax - the capital gains tax amount is calculated by deducting the property purchase price, transfer costs, initial renovation costs and selling costs from the selling price and multiplying the result by the appropriate effective capital gains tax percentage (calculated in cell B39 on the Input sheet).
A144: The initial renovation costs are deducted in the capital gains tax calculation because these costs are of a capital nature and lead to the improvement of the asset (property). The capital nature of renovation costs also means that these costs are not allowed as an income tax deduction.
A146: The effective capital gains tax percentage is calculated base on the enterprise form that is selected in cell B37 on the Input sheet, the income tax rate that is specified for the appropriate enterprise form on the Variables sheet and the capital gains tax inclusion rates that are also specified on the Variables sheet.
A148: Note: If the property is a primary residence and the checkbox in cell C41 on the Input sheet is therefore selected, the capital gains tax exclusions relating to primary residences are also taken into account when calculating the capital gains tax amount. The primary residence exclusions also form part of the input variable values that are included on the Variables sheet and only apply to individuals.
A150: Note: For more information on capital gains tax calculations, refer to our Capital Gains Tax Calculation template. The CGT calculation is covered in a lot more detail in this template.
A152: Bond Cancellation Fee - the bond cancellation fee is only included on the cash flow report in the annual period that the end of the investment period that is specified in cell B42 on the Input sheet falls into and is entered in cell B35 on the Input sheet. Note that the bond cancellation fee is not increased by the operating cost inflation percentage because the amount is usually specified in the bond agreement at the start of the property investment period.
A154: Total Cash Flow for Period - this is the total value of all the cash flow amounts that are calculated in row 11 to 28 on the cash flow report.
A156: Discount Factor - the discount factor is calculated based on the discount rate that is specified in cell B43 on the Input sheet. The total cash flow for the period is multiplied by the discount factor to calculate the present value of the annual cash flows in row 31.
A158: Present Value of Cash Flow - the present value of the annual cash flows is calculated by multiplying the total cash flow for each period in row 29 by the discount factor in row 30. This calculation forms part of the net present value (NPV) calculation in row 23 on the Results sheet. The sum of all the present values equals the net present value at the end of the property investment period.
A160: Note: The property investment period that is specified in cell B42 on the Input sheet can be any investment period between 1 month and 240 months (20 years). If the last annual period that falls into the investment period does not include a full 12 month period, the cash flow calculations in the last period are adjusted accordingly.
A162: Property Investment Return Analysis
A164: A property investment return analysis is included on the Results sheet. All the calculations on this sheet are automated and based on the input values entered on the other sheets in this template. No user input is required on the Results sheet.
A166: The following investment return calculations are included on the Results sheet:
A168: Net Operational Cash Flow - Annual
A170: The annual net operational cash flow is the total of all the amounts on the CashFlow sheet from row 11 to row 23. The calculation therefore includes all the operating income, expenses and taxation and reflects the net cash flow surplus or shortfall resulting only from the leasing operations. The cash flow relating to the sale of the property is not included in this calculation. This calculation is an important indicator on whether a property investment is cash flow positive.
A172: Net Operational Cash Flow - Cumulative
A174: The cumulative net operational cash flow is a cumulative total of the annual net operational cash flow in row 6. This calculation indicates the amount of cash that needs to be contributed by the owner in order to meet the cash flow requirements of the property investment. The calculation is also based only on operating cash flow and therefore does not include the cash flow relating to the sale of the property.
A176: Equity 1 Calculation
A178: The equity 1 amounts in row 11 are calculated by deducting the outstanding bond amount at the end of each annual period from the market value of the property at the end of each annual period. The appropriate outstanding bond amounts and market values are calculated in row 6 and row 5 on the CashFlow sheet respectively.
A180: Note: Our equity 1 amount is commonly referred to as the equity available in a property investment. We don't agree with this methodology because we believe that the estimated disposal cost should be deducted when determining the equity available in a property investment, otherwise the amount of equity that is realised when the property is sold will be less than expected.
A182: Equity Balance Calculation
A184: The equity balance indicates the amount of equity that is available in the property investment after taking the effect of disposal costs into account. Disposal costs consist of VAT (if applicable), selling costs, capital gains tax and bond cancellation fees.
A186: VAT
A188: The VAT calculation in row 12 only contains values if the checkbox in cell C9 on the Input sheet is selected because the property investor is VAT registered. The amounts that are calculated equal the output VAT that needs to be paid to the South African Revenue Services when the property is sold. By including the output VAT amounts in the annual equity calculation, a provision is in effect raised for the VAT amount that will be payable and the provision is therefore also taken into account in calculating the equity that is available in the property investment.
A190: Note: As we've mentioned before, the input VAT that can be claimed back from SARS is calculated based on the property purchase price and included in the Deposit Amount line on the cash flow report. The cash inflow as a result of claiming back the VAT is therefore taken into account at the start of the property investment period.
A192: Selling Costs
A194: The selling costs in row 13 are calculated by multiplying the agents commission that is specified in cell B33 on the Input sheet by the market value in row 9 and adding the other selling costs amount that is entered in cell B34 on the Input sheet (after adjusting the amount by the annual cost inflation that is specified in cell B31 on the Input sheet). By including the selling cost amounts in the annual equity calculation, a provision is in effect raised for the selling costs that will be incurred when the property is sold and the provision is therefore also taken into account in calculating the equity that is available in the property investment.
A196: Capital Gains Tax
A198: An annual provision for capital gains tax is calculated by deducting the property purchase price, transfer costs, initial renovation costs and selling costs from the market value in row 9 and multiplying the result by the appropriate effective capital gains tax percentage (calculated in cell B39 on the Input sheet). By including the capital gains tax amount in the annual equity calculation, a provision is in effect raised for the capital gains tax that will be payable when the property is sold and the provision is therefore also taken into account in calculating the equity that is available in the property investment.
A200: Note: If the primary residence checkbox in cell C41 on the Input sheet is selected and the enterprise form is an individual, the primary residence exclusions on the Variables sheet are also taken into account in the capital gains tax calculation.
A202: Bond Cancellation Fees
A204: The bond cancellation fees are specified in cell B35 on the Input sheet. By including this amount in the annual equity calculation, a provision is also raised for this type of cost and the provision is also deducted in the calculation of the equity that is available in the property investment.
A206: Equity Balance
A208: The equity balance is calculated by deducting all the provisions for disposal costs from the equity 1 balance. The balance that is calculated therefore already takes the disposal costs into account and should therefore be an accurate estimation of the equity that can be realised when the property investment is sold.
A210: Equity Contributed (during the year)
A212: The equity that is contributed during the year is equal to the annual net operational cash flow. If a property investment results in a monthly cash shortfall, the property investor needs to contribute equity on a monthly basis in order to cover this shortfall. These contributions form part of the equity balance at the end of each annual period. Similarly, if the property investment is cash flow positive, the positive cash flow amount is in effect returned to the property investor on a monthly basis and therefore needs to be deducted from the equity balance.
A214: Note: This is an important characteristic of residential property investments which is often ignored by property investors. Many property investors are so satisfied by the amount of equity that is available in their property investments that they don't realise that a significant portion of the equity may have been contributed by them in the form of monthly capital injections and therefore does not form part of the profit that is realised from the investment.
A216: Annual Net Profit (Loss)
A218: The calculation of the annual net profit or loss on a property investment could be quite complex, especially in a comprehensive and accurate investment return forecast template like ours. The calculation consists of a number of components. In principle, the annual profit or loss is determined by deducting the operational costs, interest and taxation from the rental income but you also need to take the increase or decrease in the market value and the movement in the disposal cost provisions into account.
A220: Note: A simpler method of calculating the annual net profit or loss is by deducting the equity contributed during the year (or the annual net operational cash flow) from the closing equity balance and then deducting the opening equity balance from this amount. The calculation result is the annual net profit or loss on the property investment.
A222: Note: The movement in the equity balance between two annual periods can be split into two components - the equity contributed during the year and the annual net profit or loss. If you therefore deduct the equity opening balance from the equity closing balance, the calculation result will equal the total of the amounts in row 17 and row 18 in the appropriate column.
A224: Cumulative Profit (Loss)
A226: The cumulative profit or loss is quite simply the sum of all the net profits or losses up to the end of the particular period. The cumulative totals in row 19 are calculated from the annual net profit or loss amounts in row 18.
A228: Note: The cumulative profit or loss totals in row 19 will differ from the equity balances in row 16 because the cumulative equity contributions (the cumulative total of the amounts in row 17) also form part of the equity balances.
A230: Annual Capital Growth
A232: The annual capital growth rates are entered by the user in row 4 on the CashFlow sheet.
A234: Average Annual Capital Growth
A236: The average annual capital growth rates are the average overall capital growth that has been realised on the property investment. This rate is calculated based on the market value at the end of the particular period, the property purchase price and the investment period that has elapsed.
A238: Net Present Value (NPV)
A240: The NPV indicates whether the return on investment exceeds the required return on investment that is specified by the user. A positive NPV indicates that the investment return is higher than the required return on investment and a negative NPV indicates that the investment return is below the required return on investment.
A242: The NPV calculation is based on the annual cash flow totals in row 29 on the CashFlow sheet and the discount rate specified in cell B43 on the Input sheet. The discount rate is applied to the annual cash flow totals to calculate a present value for all the annual cash flows (calculated in row 31 on the CashFlow sheet). The NPV is equal to the sum of all the annual cash flow present values.
A244: The NPV calculation in this template can be used to calculate the investment return after inflation by simply specifying the average annual inflation rate as the discount rate. Alternatively, the NPV calculation can also be used to determine whether the investment return exceeds a required return on investment by simply specifying the required annual return on investment as the discount rate.
A246: Note: The annual NPV values are calculated based on the assumption that the property is sold at the end of an annual period. This means that the market value and selling costs are also included in the calculation.
A248: Internal Rate of Return (IRR)
A250: The IRR calculation indicates the average annual cumulative return on investment of the property investment. The calculation is based on the annual cash flow totals in row 29 on the CashFlow sheet. The IRR of a property investment takes the effect of all cash flow items into account and therefore provides an extremely useful indication of the overall profitability of a property investment.
A252: The IRR calculation is frequently used in conjunction with the NPV calculation because the one calculation provides an indication of the annual return on investment on a cumulative based (IRR) while the other calculation provides an indication of whether the investment return exceeds the required investment return (NPV). The IRR calculation result is an annual investment return percentage, while the NPV calculation indicates the amount by which the investment return exceeds or falls short of the required investment return. The IRR can also be described as the annual investment return that results in a NPV of nil.
A254: Note: The annual IRR values are calculated based on the assumption that the property is sold at the end of an annual period. This means that the market value and selling costs are also included in the calculation.
A256: Return on Equity
A258: The IRR calculation provides the best indication of the overall or cumulative investment return of a property, but it is not that useful when you want to calculate the investment return achieved during a specific annual period. The movement in the overall IRR that is calculated does provide an indication of whether the investment return for a specific period exceeds the cumulative investment return up to that point, but it is still not possible to determine what the return during the particular annual period is.
A260: Example: If the IRR at the end of year 3 is say 15.6% and the IRR at the end of year 4 is say 11.2%, the movement in the IRR indicates that the investment return that is achieved during year 4 is less than the cumulative investment return up to the end of year 3. The movement in the IRR does however not provide an indication of the investment return that is achieved during year 4 or even if a loss has resulted during this particular period.
A262: The return on equity ratio is calculated on an annual basis instead of a cumulative basis and therefore does provide an indication of what the investment return is for a particular annual period. The return on equity however does not provide an indication of what the cumulative investment return is and the calculation should therefore be used in conjunction with the IRR calculation.
A264: The return on equity is calculated based on the net profit or loss for the period and the equity balance at the end of the period. The net profit or loss for the period is calculated in row 18 and the equity balance is calculated in row 16 on the Results sheet.
A266: Rental Yields
A268: The rental yield and net rental yield calculations in this template are based on the market value, property purchase price and outstanding bond amount.
A270: Market Value
A272: The rental yield on the market value is calculated by dividing the rental income in row 15 on the CashFlow sheet by the market value in row 9 on the Results sheet. The percentage that is calculated indicates what the gross income from leasing a property is in relation to the market value of the property. This ratio can therefore be used to compare gross rentals of a property to industry norms or other property investment opportunities.
A274: Property Purchase Price
A276: The rental yield on the property purchase price is calculated by dividing the rental income in row 15 on the CashFlow sheet by the property purchase price that is specified in cell B6 on the Input sheet. The calculation provides an indication of the initial rental yield that is achieved and the increase in yield during the investment period. Note that the yield should increase because rent income typically escalates during the investment period.
A278: Outstanding Bond Amount
A280: The rental yield on the outstanding bond amount is calculated by dividing the rental income in row 15 on the CashFlow sheet by the outstanding bond amount at the end of the particular period in row 10 on the Results sheet. The calculation can be compared to the annual bond interest rate to determine whether the rental income is sufficient to cover the interest on the bond or to determine the specific point in the investment period where the rental income becomes sufficient to cover the interest on the bond.
A282: Note: The rental income typically escalates during the investment period and the outstanding bond amount is reduced through monthly bond repayments. The rental yield that is calculated on the outstanding bond amount should therefore increase during the investment period and at some point in the investment period, the rental yield should exceed the bond interest rate.
A284: Net Rental Yields
A286: The net rental yields are calculated on a similar basis as the rental yields, but instead of dividing only the rental income by the appropriate market value, property purchase price or outstanding bond amount, the net rental income is divided by these amounts. The net rental income is defined as the rental income after operational expenses and is calculated by deducting the costs in row 16 to row 21 on the CashFlow sheet from the rent income in row 15.
A288: Note: We recommend using the net rental yield instead of the rental yield calculation when comparing property investment opportunities because the net rental yield calculation also takes the operational cost structure of the properties into account. The operational cost structure may influence property investment decisions when there is for instance a significant difference between the levies that are payable on two similar property investment opportunities or a significant difference in the condition of two properties which would result in a higher level of expenditure on repairs & maintenance on one of the properties.
A290: Equity 1 / Market Value
A292: This ratio expresses the equity 1 balance in row 11 as a percentage of the market value in row 9. It is an indication of the equity (before taking disposal costs into account) that is available in the property investment.
A294: Disposal Cost %
A296: This ratio expresses the disposal costs as a percentage of the market value in row 9. The disposal costs are defined as the sum of the VAT, selling costs, capital gains tax and the bond cancellation fees in row 12 to row 15.
A298: Note: As we've mentioned before, we believe that it is more prudent and accurate to calculate an equity balance after taking the provisions for disposal costs into account. We therefore recommend deducting the disposal cost % from the equity 1 / market value ratio to determine the percentage equity that is available in a property investment. The equity 1 / market value ratio is however provided because we believe that this is the industry norm for calculating the equity percentage ratio.
A300: Outstanding Bond %
A302: This ratio is calculated by dividing the outstanding bond amount at the end of the appropriate period in row 10 by the initial bond amount that can be calculated by deducting the deposit amount in cell B7 on the Input sheet from the property purchase price in cell B6 on the Input sheet. The ratio indicates the percentage capital that still needs to be repaid on the bond.
A304: Cumulative Profit / Property Purchase Price
A306: This ratio is calculated by dividing the cumulative profit in row 19 by the property purchase price that is entered by the user in cell B6 on the Input sheet. This calculation has been added to the investment return analysis ratios to provide an indication of the profitability of the property investment in relation to the initial purchase price.
A308: Bond Amortization
A310: The monthly bond amortization table on the MonthAmort sheet is automatically calculated from the bond details that are entered on the Input sheet, the prime interest rates that are entered on the PrimeRate sheet and the ad hoc bond repayments that are entered on the AdHoc sheet.
A312: The only user input that is required is specifying the rate discount in cell F6. This value is deducted from the monthly prime interest rates to calculate the monthly bond interest rates in column J. Note that if an interest rate premium is applicable to the bond, the rate discount needs to be entered as a negative value.
A314: The monthly amortization table is used to calculate the annual bond repayment total, annual interest charges and the outstanding bond balance at the end of each annual period. These calculations are included in the appropriate rows on the cash flow report.
A316: The bond repayments total on the cash flow report is calculated as the total of the required bond repayment in column D and the ad hoc bond repayments in column E on the amortization table and included in the appropriate annual bond repayment total in row 23 on the cash flow report.
A318: The interest charges in column F form part of the income tax calculation that is included in row 22 on the cash flow report. The outstanding bond amount at the end of each annual period is included in row 6 on the cash flow report and row 10 on the Results sheet.
A320: The bond amortization table calculations in this template accommodate variable monthly interest rates and ad hoc bond repayments and this enables us to compile a comprehensive investment return forecast which also includes the effects of variable interest rates and ad hoc bond repayments.
A322: Property Calculation Variables
A324: There are a number of property variables that affect the calculation of an accurate property investment forecast. The variables that have been used in the template calculations have been included on the Variables sheet. Some of these variables are subject to regular changes and can be amended by simply entering the appropriate values on the Variables sheet. All the template calculations are automatically updated after amending the appropriate values.
A326: Note: The input table bracket values can also be amended by simply entering the appropriate value in the Value column and you can add additional brackets by simply inserting a new row anywhere between the first and last row in the input table, entering the appropriate bracket and cost values and copying the formulas in the cells with a light blue cell background from one of the existing rows in the input table.
A328: The transfer duty, transfer fees, bond registration fees, deed office levies, bank initiation fees, other transfer costs and other bond costs are all used in calculating the transfer & bond cost values in cell D12 to cell D17 on the Input sheet. VAT is also added to the transfer & bond costs that are subject to VAT.
A330: The VAT percentage is used in the transfer & bond cost calculation and also to determine the input and output VAT amounts if the checkbox in cell C9 on the Input sheet is selected.
A332: The income tax percentages are used to calculate the income tax amounts on the cash flow report and the capital gains tax percentages and exclusions are used to calculate the capital gains tax amounts on the cash flow report and the Results sheet.
A334: Note: An up to date copy of all the variable values that affect residential property calculations is available on the Templates page of our website. Users can therefore simply download this free Excel file and update the appropriate templates with the values that are included in this document.
A336: Help & Customization
A338: If you experience any difficulty while using this template and you are not able to find the appropriate guidance in these instructions, please e-mail us at support@excel-skills.com for assistance. This template has been designed with flexibility in mind to ensure that it can be used in most business environments. If however you need an Excel based template that is customized specifically for your business requirements, please e-mail our Support function and provide a brief explanation of your requirements.
A340: © Copyright
A342: This template remains the intellectual property of www.excel-skills.com and is protected by international copyright laws. Any publication or distribution of this template outside the scope of the permitted use of the template is expressly prohibited. In terms of the permitted use of this template, only the distribution of the template to persons within the same organisation as the registered user or persons outside the organisation who can reasonably be expected to require access to the template as a direct result of the use of the template by the registered user is allowed. Subsequent distribution of the template by parties outside of the organisation is however expressly prohibited and represents an infringement of international copyright laws.

Sheet Input (hidden)
A1: Residential Property Investment Forecast
A2: Input Variables
A3: © www.excel-skills.com
A4: Property & Bond Details
A5: Property Purchase Date | B5: 2023-04-01
A6: Property Purchase Price | B6: 2200000 | E6: FALSE | F6: =IF(E$6=TRUE,$B$6/(1+Variables!$C$62),$B$6) -> 2200000
A7: Deposit Amount | B7: 200000
A8: Bond Period (in years) | B8: 20
A9: VAT Registered
A10: Initial Renovation Costs | B10: 0
A11: Transfer & Bond Costs
A12: Transfer Duty | D12: =IF(ISNA(MATCH($B$6,TransferIndVal,1))=TRUE,0,(($B$6-OFFSET(Variables!$B$6,MATCH($B$6,TransferIndVal,1),0,1,1))*OFFSET(Variables!$C$6,MATCH($B$6,TransferIndVal,1)+1,0,1,1))+OFFSET(Variables!$D$6,MATCH($B$6,TransferIndVal,1),0,1,1)) -> 55275 | E12: FALSE | F12: =IF(E12=TRUE,B12,D12) -> 55275
A13: Transfer Fees | D13: =IF(ISNA(MATCH($B$6,TransferFeeVal,1))=TRUE,OFFSET(Variables!$C$16,1,0,1,1),(ROUNDUP(($B$6-OFFSET(Variables!$B$16,MATCH($B$6,TransferFeeVal,1),0,1,1))/OFFSET(Variables!$E$16,MATCH($B$6,TransferFeeVal,1)+1,0,1,1),0)*OFFSET(Variables!$D$16,MATCH($B$6,TransferFeeVal,1)+1,0,1,1))+OFFSET(Variables!$C$16,MATCH($B$6,TransferFeeVal,1),0,1,1))*(1+Variables!$C$62) -> 37202.5 | E13: FALSE | F13: 37202.5
A14: Other Transfer Costs | D14: =IF(ISNA(MATCH($B$6,DeedFeeVal,1))=TRUE,OFFSET(Variables!$C$25,1,0,1,1),IF(ISNA(MATCH($B$6,DeedFeeVal,0))=TRUE,OFFSET(Variables!$C$25,MATCH($B$6,DeedFeeVal,1)+1,0,1,1),OFFSET(Variables!$C$25,MATCH($B$6,DeedFeeVal,1),0,1,1)))+(SUM(Variables!$C$42:$C$46)*(1+Variables!$C$62))+Variables!$C$47 -> 5222.5 | E14: FALSE | F14: 5222.5
A15: Bond Registration Fees | D15: =IF($B$6-$B$7=0,0,IF(ISNA(MATCH($B$6-$B$7,TransferFeeVal,1))=TRUE,OFFSET(Variables!$C$16,1,0,1,1),(ROUNDUP(($B$6-$B$7-OFFSET(Variables!$B$16,MATCH($B$6-$B$7,TransferFeeVal,1),0,1,1))/OFFSET(Variables!$E$16,MATCH($B$6-$B$7,TransferFeeVal,1)+1,0,1,1),0)*OFFSET(Variables!$D$16,MATCH($B$6-$B$7,TransferFeeVal,1)+1,0,1,1))+OFFSET(Variables!$C$16,MATCH($B$6-$B$7,TransferFeeVal,1),0,1,1))*(1+Variables!$C$62)) -> 35178.5 | E15: FALSE | F15: 35178.5
A16: Bank Initiation Fees | D16: =IF($B$6-$B$7=0,0,IF((($B$6-$B$7)*Variables!$C$57)+Variables!$C$58>Variables!$C$59,Variables!$C$59,(($B$6-$B$7)*Variables!$C$57)+Variables!$C$58)*(1+Variables!$C$62)) -> 5750 | E16: FALSE | F16: 5750
A17: Other Bond Costs | D17: =IF($B$6-$B$7=0,0,IF(ISNA(MATCH($B$6-$B$7,DeedFeeVal,1))=TRUE,OFFSET(Variables!$D$25,1,0,1,1),IF(ISNA(MATCH($B$6-$B$7,DeedFeeVal,0))=TRUE,OFFSET(Variables!$D$25,MATCH($B$6-$B$7,DeedFeeVal,1)+1,0,1,1),OFFSET(Variables!$D$25,MATCH($B$6-$B$7,DeedFeeVal,1),0,1,1)))+(SUM(Variables!$C$50:$C$54)*(1+Variables!$C$62))) -> 2866 | E17: FALSE | F17: 2866
A18: Income
A19: Monthly Rent Income | B19: 14000
A20: Occupancy Rate | B20: 1
A21: Annual Rent Increase | B21: 0.1
A22: Rent Subsidy Amount | B22: 0
A23: Rent Subsidy Period (in months) | B23: 0
A24: Operational Expenses
A25: Property Management Fee % | B25: 0.07
A26: Annual Rates | B26: 25000
A27: Annual Levies | B27: 4800
A28: Annual Repairs & Maintenance | B28: 5000
A29: Annual Insurance | B29: 1200
A30: Other Annual Operational Costs | B30: 600
A31: Operational Cost Inflation % | B31: 0.06
A32: Selling Costs
A33: Agent Commission % (incl. VAT) | B33: 0.057
A34: Other Selling Costs | B34: 0
A35: Bond Cancellation Fee | B35: 0
A36: Enterprise Details
A37: Enterprise Form | B37: Individual
A38: Effective Income Tax % | B38: =IF($B$37="Individual",Variables!$C$65,IF($B$37="Trust",Variables!$C$67,Variables!$C$66)) -> 0.3
A39: Effective Capital Gains Tax % | B39: =IF($B$37="Individual",$B$38*Variables!$C$70,$B$38*Variables!$C$71) -> 0.12
A40: Other
A41: Primary Residence | E41: FALSE | F41: =IF(AND(E41=TRUE,B37="Individual")=TRUE,Variables!$C$75,0) -> 0
A42: Investment Period (in months) | B42: 240 | D42: =DATE(YEAR($B$5),MONTH($B$5)+$B$42,DAY($B$5)) -> 2043-04-01
A43: Discount Rate | B43: 0.06

Sheet PrimeRate (hidden)
A1: Residential Property Investment Forecast
A2: Prime Interest Rates
A3: © www.excel-skills.com
A4: Month | B4: Prime Rate
A5: 2000-01-31 | B5: 14.5
A6: 2000-02-29 | B6: 14.5
A7: 2000-03-31 | B7: 14.5
A8: 2000-04-30 | B8: 14.5
A9: 2000-05-31 | B9: 14.5
A10: 2000-06-30 | B10: 14.5
A11: 2000-07-31 | B11: 14.5
A12: 2000-08-31 | B12: 14.5
A13: 2000-09-30 | B13: 14.5
A14: 2000-10-31 | B14: 14.5
A15: 2000-11-30 | B15: 14.5
A16: 2000-12-31 | B16: 14.5
A17: 2001-01-31 | B17: 14.5
A18: 2001-02-28 | B18: 14.5
A19: 2001-03-31 | B19: 14.5
A20: 2001-04-30 | B20: 14.5
A21: 2001-05-31 | B21: 14.5
A22: 2001-06-30 | B22: 13.75
A23: 2001-07-31 | B23: 13.5
A24: 2001-08-31 | B24: 13.5
A25: 2001-09-30 | B25: 13
A26: 2001-10-31 | B26: 13
A27: 2001-11-30 | B27: 13
A28: 2001-12-31 | B28: 13
A29: 2002-01-31 | B29: 14
A30: 2002-02-28 | B30: 14
A31: 2002-03-31 | B31: 15
A32: 2002-04-30 | B32: 15
A33: 2002-05-31 | B33: 15
A34: 2002-06-30 | B34: 16
A35: 2002-07-31 | B35: 16
A36: 2002-08-31 | B36: 16
A37: 2002-09-30 | B37: 17
A38: 2002-10-31 | B38: 17
A39: 2002-11-30 | B39: 17
A40: 2002-12-31 | B40: 17
A41: 2003-01-31 | B41: 17
A42: 2003-02-28 | B42: 17
A43: 2003-03-31 | B43: 17
A44: 2003-04-30 | B44: 17
A45: 2003-05-31 | B45: 17
A46: 2003-06-30 | B46: 15.5
A47: 2003-07-31 | B47: 15.5
A48: 2003-08-31 | B48: 14.5
A49: 2003-09-30 | B49: 13.5
A50: 2003-10-31 | B50: 12
A51: 2003-11-30 | B51: 12
A52: 2003-12-31 | B52: 11.5
A53: 2004-01-31 | B53: 11.5
A54: 2004-02-29 | B54: 11.5
A55: 2004-03-31 | B55: 11.5
A56: 2004-04-30 | B56: 11.5
A57: 2004-05-31 | B57: 11.5
A58: 2004-06-30 | B58: 11.5
A59: 2004-07-31 | B59: 11.5
A60: 2004-08-31 | B60: 11
A61: 2004-09-30 | B61: 11
A62: 2004-10-31 | B62: 11
A63: 2004-11-30 | B63: 11
A64: 2004-12-31 | B64: 11
A65: 2005-01-31 | B65: 11
A66: 2005-02-28 | B66: 11
A67: 2005-03-31 | B67: 11
A68: 2005-04-30 | B68: 10.5
A69: 2005-05-31 | B69: 10.5
A70: 2005-06-30 | B70: 10.5
A71: 2005-07-31 | B71: 10.5
A72: 2005-08-31 | B72: 10.5
A73: 2005-09-30 | B73: 10.5
A74: 2005-10-31 | B74: 10.5
A75: 2005-11-30 | B75: 10.5
A76: 2005-12-31 | B76: 10.5
A77: 2006-01-31 | B77: 10.5
A78: 2006-02-28 | B78: 10.5
A79: 2006-03-31 | B79: 10.5
A80: 2006-04-30 | B80: 10.5
A81: 2006-05-31 | B81: 10.5
A82: 2006-06-30 | B82: 11
A83: 2006-07-31 | B83: 11
A84: 2006-08-31 | B84: 11.5
A85: 2006-09-30 | B85: 11.5
A86: 2006-10-31 | B86: 12
A87: 2006-11-30 | B87: 12
A88: 2006-12-31 | B88: 12.5
A89: 2007-01-31 | B89: 12.5
A90: 2007-02-28 | B90: 12.5
A91: 2007-03-31 | B91: 12.5
A92: 2007-04-30 | B92: 12.5
A93: 2007-05-31 | B93: 12.5
A94: 2007-06-30 | B94: 13
A95: 2007-07-31 | B95: 13
A96: 2007-08-31 | B96: 13.5
A97: 2007-09-30 | B97: 13.5
A98: 2007-10-31 | B98: 14
A99: 2007-11-30 | B99: 14
A100: 2007-12-31 | B100: 14.5
A101: 2008-01-31 | B101: 14.5
A102: 2008-02-29 | B102: 14.5
A103: 2008-03-31 | B103: 14.5
A104: 2008-04-30 | B104: 15
A105: 2008-05-31 | B105: 15
A106: 2008-06-30 | B106: 15.5
A107: 2008-07-31 | B107: 15.5
A108: 2008-08-31 | B108: 15.5
A109: 2008-09-30 | B109: 15.5
A110: 2008-10-31 | B110: 15.5
A111: 2008-11-30 | B111: 15.5
A112: 2008-12-31 | B112: 15
A113: 2009-01-31 | B113: 15
A114: 2009-02-28 | B114: 14
A115: 2009-03-31 | B115: 13
A116: 2009-04-30 | B116: 12
A117: 2009-05-31 | B117: 11
A118: 2009-06-30 | B118: 11
A119: 2009-07-31 | B119: 11
A120: 2009-08-31 | B120: 10.5
A121: 2009-09-30 | B121: 10.5
A122: 2009-10-31 | B122: 10.5
A123: 2009-11-30 | B123: 10.5
A124: 2009-12-31 | B124: 10.5
A125: 2010-01-31 | B125: 10.5
A126: 2010-02-28 | B126: 10.5
A127: 2010-03-31 | B127: 10
A128: 2010-04-30 | B128: 10
A129: 2010-05-31 | B129: 10
A130: 2010-06-30 | B130: 10
A131: 2010-07-31 | B131: 10
A132: 2010-08-31 | B132: 10
A133: 2010-09-30 | B133: 9.5
A134: 2010-10-31 | B134: 9.5
A135: 2010-11-30 | B135: 9
A136: 2010-12-31 | B136: 9
A137: 2011-01-31 | B137: 9
A138: 2011-02-28 | B138: 9
A139: 2011-03-31 | B139: 9
A140: 2011-04-30 | B140: 9
A141: 2011-05-31 | B141: 9
A142: 2011-06-30 | B142: 9
A143: 2011-07-31 | B143: 9
A144: 2011-08-31 | B144: 9
A145: 2011-09-30 | B145: 9
A146: 2011-10-31 | B146: 9
A147: 2011-11-30 | B147: 9
A148: 2011-12-31 | B148: 9
A149: 2012-01-31 | B149: 9
A150: 2012-02-29 | B150: 9
A151: 2012-03-31 | B151: 9
A152: 2012-04-30 | B152: 9
A153: 2012-05-31 | B153: 9
A154: 2012-06-30 | B154: 9
A155: 2012-07-31 | B155: 8.5
A156: 2012-08-31 | B156: 8.5
A157: 2012-09-30 | B157: 8.5
A158: 2012-10-31 | B158: 8.5
A159: 2012-11-30 | B159: 8.5
A160: 2012-12-31 | B160: 8.5
A161: 2013-01-31 | B161: 8.5
A162: 2013-02-28 | B162: 8.5
A163: 2013-03-31 | B163: 8.5
A164: 2013-04-30 | B164: 8.5
A165: 2013-05-31 | B165: 8.5
A166: 2013-06-30 | B166: 8.5
A167: 2013-07-31 | B167: 8.5
A168: 2013-08-31 | B168: 8.5
A169: 2013-09-30 | B169: 8.5
A170: 2013-10-31 | B170: 8.5
A171: 2013-11-30 | B171: 8.5
A172: 2013-12-31 | B172: 8.5
A173: 2014-01-31 | B173: 9
A174: 2014-02-28 | B174: 9
A175: 2014-03-31 | B175: 9
A176: 2014-04-30 | B176: 9
A177: 2014-05-31 | B177: 9
A178: 2014-06-30 | B178: 9
A179: 2014-07-31 | B179: 9.25
A180: 2014-08-31 | B180: 9.25
A181: 2014-09-30 | B181: 9.25
A182: 2014-10-31 | B182: 9.25
A183: 2014-11-30 | B183: 9.25
A184: 2014-12-31 | B184: 9.25
A185: 2015-01-31 | B185: 9.25
A186: 2015-02-28 | B186: 9.25
A187: 2015-03-31 | B187: 9.25
A188: 2015-04-30 | B188: 9.25
A189: 2015-05-31 | B189: 9.25
A190: 2015-06-30 | B190: 9.25
A191: 2015-07-31 | B191: 9.25
A192: 2015-08-31 | B192: 9.25
A193: 2015-09-30 | B193: 9.25
A194: 2015-10-31 | B194: 9.25
A195: 2015-11-30 | B195: 9.75
A196: 2015-12-31 | B196: 9.75
A197: 2016-01-31 | B197: 10.25
A198: 2016-02-29 | B198: 10.25
A199: 2016-03-31 | B199: 10.5
A200: 2016-04-30 | B200: 10.5
... 776 more rows

Sheet AdHoc (hidden)
A1: Residential Property Investment Forecast
A2: Ad Hoc Bond Repayments
A3: © www.excel-skills.com
A4: Month | B4: Ad Hoc Repayment
A5: 2000-01-31 | B5: 0
A6: =DATE(YEAR(A5),MONTH(A5)+2,1-1) -> 2000-02-29 | B6: 0
A7: =DATE(YEAR(A6),MONTH(A6)+2,1-1) -> 2000-03-31 | B7: 0
A8: 2000-04-30 | B8: 0
A9: 2000-05-31 | B9: 0
A10: 2000-06-30 | B10: 0
A11: 2000-07-31 | B11: 0
A12: 2000-08-31 | B12: 0
A13: 2000-09-30 | B13: 0
A14: 2000-10-31 | B14: 0
A15: 2000-11-30 | B15: 0
A16: 2000-12-31 | B16: 0
A17: 2001-01-31 | B17: 0
A18: 2001-02-28 | B18: 0
A19: 2001-03-31 | B19: 0
A20: 2001-04-30 | B20: 0
A21: 2001-05-31 | B21: 0
A22: 2001-06-30 | B22: 0
A23: 2001-07-31 | B23: 0
A24: 2001-08-31 | B24: 0
A25: 2001-09-30 | B25: 0
A26: 2001-10-31 | B26: 0
A27: 2001-11-30 | B27: 0
A28: 2001-12-31 | B28: 0
A29: 2002-01-31 | B29: 0
A30: 2002-02-28 | B30: 0
A31: 2002-03-31 | B31: 0
A32: 2002-04-30 | B32: 0
A33: 2002-05-31 | B33: 0
A34: 2002-06-30 | B34: 0
A35: 2002-07-31 | B35: 0
A36: 2002-08-31 | B36: 0
A37: 2002-09-30 | B37: 0
A38: 2002-10-31 | B38: 0
A39: 2002-11-30 | B39: 0
A40: 2002-12-31 | B40: 0
A41: 2003-01-31 | B41: 0
A42: 2003-02-28 | B42: 0
A43: 2003-03-31 | B43: 0
A44: 2003-04-30 | B44: 0
A45: 2003-05-31 | B45: 0
A46: 2003-06-30 | B46: 0
A47: 2003-07-31 | B47: 0
A48: 2003-08-31 | B48: 0
A49: 2003-09-30 | B49: 0
A50: 2003-10-31 | B50: 0
A51: 2003-11-30 | B51: 0
A52: 2003-12-31 | B52: 0
A53: 2004-01-31 | B53: 0
A54: 2004-02-29 | B54: 0
A55: 2004-03-31 | B55: 0
A56: 2004-04-30 | B56: 0
A57: 2004-05-31 | B57: 0
A58: 2004-06-30 | B58: 0
A59: 2004-07-31 | B59: 0
A60: 2004-08-31 | B60: 0
A61: 2004-09-30 | B61: 0
A62: 2004-10-31 | B62: 0
A63: 2004-11-30 | B63: 0
A64: 2004-12-31 | B64: 0
A65: 2005-01-31 | B65: 0
A66: 2005-02-28 | B66: 0
A67: 2005-03-31 | B67: 0
A68: 2005-04-30 | B68: 0
A69: 2005-05-31 | B69: 0
A70: 2005-06-30 | B70: 0
A71: =DATE(YEAR(A70),MONTH(A70)+2,1-1) -> 2005-07-31 | B71: 0
A72: 2005-08-31 | B72: 0
A73: 2005-09-30 | B73: 0
A74: 2005-10-31 | B74: 0
A75: 2005-11-30 | B75: 0
A76: 2005-12-31 | B76: 0
A77: 2006-01-31 | B77: 0
A78: 2006-02-28 | B78: 0
A79: 2006-03-31 | B79: 0
A80: 2006-04-30 | B80: 0
A81: 2006-05-31 | B81: 0
A82: 2006-06-30 | B82: 0
A83: 2006-07-31 | B83: 0
A84: 2006-08-31 | B84: 0
A85: 2006-09-30 | B85: 0
A86: 2006-10-31 | B86: 0
A87: 2006-11-30 | B87: 0
A88: 2006-12-31 | B88: 0
A89: 2007-01-31 | B89: 0
A90: 2007-02-28 | B90: 0
A91: 2007-03-31 | B91: 0
A92: 2007-04-30 | B92: 0
A93: 2007-05-31 | B93: 0
A94: 2007-06-30 | B94: 0
A95: 2007-07-31 | B95: 0
A96: 2007-08-31 | B96: 0
A97: 2007-09-30 | B97: 0
A98: 2007-10-31 | B98: 0
A99: 2007-11-30 | B99: 0
A100: 2007-12-31 | B100: 0
A101: 2008-01-31 | B101: 0
A102: 2008-02-29 | B102: 0
A103: 2008-03-31 | B103: 0
A104: 2008-04-30 | B104: 0
A105: 2008-05-31 | B105: 0
A106: 2008-06-30 | B106: 0
A107: 2008-07-31 | B107: 0
A108: 2008-08-31 | B108: 0
A109: 2008-09-30 | B109: 0
A110: 2008-10-31 | B110: 0
A111: 2008-11-30 | B111: 0
A112: 2008-12-31 | B112: 0
A113: 2009-01-31 | B113: 0
A114: 2009-02-28 | B114: 0
A115: 2009-03-31 | B115: 0
A116: 2009-04-30 | B116: 0
A117: 2009-05-31 | B117: 0
A118: 2009-06-30 | B118: 0
A119: 2009-07-31 | B119: 0
A120: 2009-08-31 | B120: 0
A121: 2009-09-30 | B121: 0
A122: 2009-10-31 | B122: 0
A123: 2009-11-30 | B123: 0
A124: 2009-12-31 | B124: 0
A125: 2010-01-31 | B125: 0
A126: 2010-02-28 | B126: 0
A127: 2010-03-31 | B127: 0
A128: 2010-04-30 | B128: 0
A129: 2010-05-31 | B129: 0
A130: 2010-06-30 | B130: 0
A131: 2010-07-31 | B131: 0
A132: 2010-08-31 | B132: 0
A133: 2010-09-30 | B133: 0
A134: 2010-10-31 | B134: 0
A135: =DATE(YEAR(A134),MONTH(A134)+2,1-1) -> 2010-11-30 | B135: 0
A136: 2010-12-31 | B136: 0
A137: 2011-01-31 | B137: 0
A138: 2011-02-28 | B138: 0
A139: 2011-03-31 | B139: 0
A140: 2011-04-30 | B140: 0
A141: 2011-05-31 | B141: 0
A142: 2011-06-30 | B142: 0
A143: 2011-07-31 | B143: 0
A144: 2011-08-31 | B144: 0
A145: 2011-09-30 | B145: 0
A146: 2011-10-31 | B146: 0
A147: 2011-11-30 | B147: 0
A148: 2011-12-31 | B148: 0
A149: 2012-01-31 | B149: 0
A150: 2012-02-29 | B150: 0
A151: 2012-03-31 | B151: 0
A152: 2012-04-30 | B152: 0
A153: 2012-05-31 | B153: 0
A154: 2012-06-30 | B154: 0
A155: 2012-07-31 | B155: 0
A156: 2012-08-31 | B156: 0
A157: 2012-09-30 | B157: 0
A158: 2012-10-31 | B158: 0
A159: 2012-11-30 | B159: 0
A160: 2012-12-31 | B160: 0
A161: 2013-01-31 | B161: 0
A162: 2013-02-28 | B162: 0
A163: 2013-03-31 | B163: 0
A164: 2013-04-30 | B164: 0
A165: 2013-05-31 | B165: 0
A166: 2013-06-30 | B166: 0
A167: 2013-07-31 | B167: 0
A168: 2013-08-31 | B168: 0
A169: 2013-09-30 | B169: 0
A170: 2013-10-31 | B170: 0
A171: 2013-11-30 | B171: 0
A172: 2013-12-31 | B172: 0
A173: 2014-01-31 | B173: 0
A174: 2014-02-28 | B174: 0
A175: 2014-03-31 | B175: 0
A176: 2014-04-30 | B176: 0
A177: 2014-05-31 | B177: 0
A178: 2014-06-30 | B178: 0
A179: 2014-07-31 | B179: 0
A180: 2014-08-31 | B180: 0
A181: 2014-09-30 | B181: 0
A182: 2014-10-31 | B182: 0
A183: 2014-11-30 | B183: 0
A184: 2014-12-31 | B184: 0
A185: 2015-01-31 | B185: 0
A186: 2015-02-28 | B186: 0
A187: 2015-03-31 | B187: 0
A188: 2015-04-30 | B188: 0
A189: 2015-05-31 | B189: 0
A190: 2015-06-30 | B190: 0
A191: 2015-07-31 | B191: 0
A192: 2015-08-31 | B192: 0
A193: 2015-09-30 | B193: 0
A194: 2015-10-31 | B194: 0
A195: 2015-11-30 | B195: 0
A196: 2015-12-31 | B196: 0
A197: 2016-01-31 | B197: 0
A198: 2016-02-29 | B198: 0
A199: =DATE(YEAR(A198),MONTH(A198)+2,1-1) -> 2016-03-31 | B199: 0
A200: 2016-04-30 | B200: 0
... 776 more rows

Sheet MonthAmort (hidden)
A1: Residential Property Investment Forecast
A2: Amortization Table
A3: © www.excel-skills.com
A4: Purchase Price | C4: =Input!B6 -> 2200000 | E4: Purchase Date | F4: =Input!B5 -> 2023-04-01
A5: Annual Bond Interest Rate | C5: =$J$11 -> 9.75 | D5: %
A6: Bond Period in Years | C6: =Input!B8 -> 20 | E6: Rate Discount | F6: 1 | G6: %
A7: Original Monthly Bond Repayment | C7: =PMT(C5/100/12,C6*12,-$C$4+$C$8,0,0) -> 18970.33701
A8: Deposit Amount | C8: =Input!B7 -> 200000
A10: Repayment Month | B10: Repayment Number | C10: Opening Balance | D10: Bond Repayment | E10: Ad Hoc Repayment | F10: Interest Charged | G10: Capital Repaid | H10: Closing Balance | I10: Outstanding Capital % | J10: Interest Rate
A11: =DATE(YEAR(F4),MONTH(F4)+2,1-1) -> 2023-05-31 | B11: 1 | C11: =C4-C8 -> 2000000 | D11: =IF($C$6*12+1-B11=0,0,IF(PMT(J11/100/12,$C$6*12+1-B11,-C11,0,0)>C11+F11,C11+F11,PMT(J11/100/12,$C$6*12+1-B11,-C11,0,0))) -> 18970.33701 | E11: =IF(VLOOKUP($A11,AdHoc,2,0)>C11+F11-D11,C11+F11-D11,VLOOKUP($A11,AdHoc,2,0)) -> 0 | F11: =C11*J11/100/12 -> 16250 | G11: =D11+E11-F11 -> 2720.337012 | H11: =IF(ROUND(C11-G11,2)=0,0,C11-G11) -> 1997279.663 | I11: =IF(C11=0,0,H11/$C$11) -> 0.9986398315 | J11: =VLOOKUP(A11,PrimeRate!$A$5:$B$976,2,0)-$F$6 -> 9.75
A12: =DATE(YEAR(A11),MONTH(A11)+2,1-1) -> 2023-06-30 | B12: 2 | C12: =H11 -> 1997279.663 | D12: =IF($C$6*12+1-B12=0,0,IF(PMT(J12/100/12,$C$6*12+1-B12,-C12,0,0)>C12+F12,C12+F12,PMT(J12/100/12,$C$6*12+1-B12,-C12,0,0))) -> 18970.33701 | E12: 0 | F12: 16227.89726 | G12: =D12+E12-F12 -> 2742.43975 | H12: =IF(ROUND(C12-G12,2)=0,0,C12-G12) -> 1994537.223 | I12: =IF(C12=0,0,H12/$C$11) -> 0.9972686116 | J12: =VLOOKUP(A12,PrimeRate!$A$5:$B$976,2,0)-$F$6 -> 9.75
A13: =DATE(YEAR(A12),MONTH(A12)+2,1-1) -> 2023-07-31 | B13: 3 | C13: =H12 -> 1994537.223 | D13: 18970.33701 | E13: 0 | F13: 16205.61494 | G13: 2764.722073 | H13: 1991772.501 | I13: 0.9958862506 | J13: =VLOOKUP(A13,PrimeRate!$A$5:$B$976,2,0)-$F$6 -> 9.75
A14: 2023-08-31 | B14: 4 | C14: 1991772.501 | D14: 18970.33701 | E14: 0 | F14: 16183.15157 | G14: 2787.18544 | H14: 1988985.316 | I14: 0.9944926579 | J14: =VLOOKUP(A14,PrimeRate!$A$5:$B$976,2,0)-$F$6 -> 9.75
A15: 2023-09-30 | B15: 5 | C15: 1988985.316 | D15: 18970.33701 | E15: 0 | F15: 16160.50569 | G15: 2809.831321 | H15: 1986175.484 | I15: 0.9930877422 | J15: =VLOOKUP(A15,PrimeRate!$A$5:$B$976,2,0)-$F$6 -> 9.75
A16: 2023-10-31 | B16: 6 | C16: 1986175.484 | D16: 18970.33701 | E16: 0 | F16: 16137.67581 | G16: 2832.661201 | H16: 1983342.823 | I16: 0.9916714116 | J16: =VLOOKUP(A16,PrimeRate!$A$5:$B$976,2,0)-$F$6 -> 9.75
A17: 2023-11-30 | B17: 7 | C17: 1983342.823 | D17: 18970.33701 | E17: 0 | F17: 16114.66044 | G17: 2855.676573 | H17: 1980487.147 | I17: 0.9902435733 | J17: =VLOOKUP(A17,PrimeRate!$A$5:$B$976,2,0)-$F$6 -> 9.75
A18: 2023-12-31 | B18: 8 | C18: 1980487.147 | D18: 18970.33701 | E18: 0 | F18: 16091.45807 | G18: 2878.878945 | H18: 1977608.268 | I18: 0.9888041338 | J18: =VLOOKUP(A18,PrimeRate!$A$5:$B$976,2,0)-$F$6 -> 9.75
A19: 2024-01-31 | B19: 9 | C19: 1977608.268 | D19: 18970.33701 | E19: 0 | F19: 16068.06717 | G19: 2902.269837 | H19: 1974705.998 | I19: 0.9873529989 | J19: =VLOOKUP(A19,PrimeRate!$A$5:$B$976,2,0)-$F$6 -> 9.75
A20: 2024-02-29 | B20: 10 | C20: 1974705.998 | D20: 18970.33701 | E20: 0 | F20: 16044.48623 | G20: 2925.850779 | H20: 1971780.147 | I20: 0.9858900735 | J20: =VLOOKUP(A20,PrimeRate!$A$5:$B$976,2,0)-$F$6 -> 9.75
A21: 2024-03-31 | B21: 11 | C21: 1971780.147 | D21: 18970.33701 | E21: 0 | F21: 16020.71369 | G21: 2949.623317 | H21: 1968830.524 | I21: 0.9844152619 | J21: =VLOOKUP(A21,PrimeRate!$A$5:$B$976,2,0)-$F$6 -> 9.75
A22: 2024-04-30 | B22: 12 | C22: 1968830.524 | D22: 18970.33701 | E22: 0 | F22: 15996.74801 | G22: 2973.589006 | H22: 1965856.935 | I22: 0.9829284674 | J22: =VLOOKUP(A22,PrimeRate!$A$5:$B$976,2,0)-$F$6 -> 9.75
A23: 2024-05-31 | B23: 13 | C23: 1965856.935 | D23: 18970.33701 | E23: 0 | F23: 15972.58759 | G23: 2997.749417 | H23: 1962859.185 | I23: 0.9814295927 | J23: =VLOOKUP(A23,PrimeRate!$A$5:$B$976,2,0)-$F$6 -> 9.75
A24: 2024-06-30 | B24: 14 | C24: 1962859.185 | D24: 18970.33701 | E24: 0 | F24: 15948.23088 | G24: 3022.106131 | H24: 1959837.079 | I24: 0.9799185396 | J24: =VLOOKUP(A24,PrimeRate!$A$5:$B$976,2,0)-$F$6 -> 9.75
A25: 2024-07-31 | B25: 15 | C25: 1959837.079 | D25: 18970.33701 | E25: 0 | F25: 15923.67627 | G25: 3046.660743 | H25: 1956790.418 | I25: 0.9783952092 | J25: =VLOOKUP(A25,PrimeRate!$A$5:$B$976,2,0)-$F$6 -> 9.75
A26: 2024-08-31 | B26: 16 | C26: 1956790.418 | D26: 18970.33701 | E26: 0 | F26: 15898.92215 | G26: 3071.414862 | H26: 1953719.004 | I26: 0.9768595018 | J26: =VLOOKUP(A26,PrimeRate!$A$5:$B$976,2,0)-$F$6 -> 9.75
A27: 2024-09-30 | B27: 17 | C27: 1953719.004 | D27: 18970.33701 | E27: 0 | F27: 15873.9669 | G27: 3096.370107 | H27: 1950622.633 | I27: 0.9753113167 | J27: =VLOOKUP(A27,PrimeRate!$A$5:$B$976,2,0)-$F$6 -> 9.75
A28: 2024-10-31 | B28: 18 | C28: 1950622.633 | D28: 18970.33701 | E28: 0 | F28: 15848.8089 | G28: 3121.528114 | H28: 1947501.105 | I28: 0.9737505527 | J28: =VLOOKUP(A28,PrimeRate!$A$5:$B$976,2,0)-$F$6 -> 9.75
A29: 2024-11-30 | B29: 19 | C29: 1947501.105 | D29: 18970.33701 | E29: 0 | F29: 15823.44648 | G29: 3146.89053 | H29: 1944354.215 | I29: 0.9721771074 | J29: =VLOOKUP(A29,PrimeRate!$A$5:$B$976,2,0)-$F$6 -> 9.75
A30: 2024-12-31 | B30: 20 | C30: 1944354.215 | D30: 18970.33701 | E30: 0 | F30: 15797.878 | G30: 3172.459016 | H30: 1941181.756 | I30: 0.9705908779 | J30: =VLOOKUP(A30,PrimeRate!$A$5:$B$976,2,0)-$F$6 -> 9.75
A31: 2025-01-31 | B31: 21 | C31: 1941181.756 | D31: 18970.33701 | E31: 0 | F31: 15772.10177 | G31: 3198.235245 | H31: 1937983.521 | I31: 0.9689917603 | J31: =VLOOKUP(A31,PrimeRate!$A$5:$B$976,2,0)-$F$6 -> 9.75
A32: 2025-02-28 | B32: 22 | C32: 1937983.521 | D32: 18970.33701 | E32: 0 | F32: 15746.1161 | G32: 3224.220907 | H32: 1934759.3 | I32: 0.9673796498 | J32: =VLOOKUP(A32,PrimeRate!$A$5:$B$976,2,0)-$F$6 -> 9.75
A33: 2025-03-31 | B33: 23 | C33: 1934759.3 | D33: 18970.33701 | E33: 0 | F33: 15719.91931 | G33: 3250.417702 | H33: 1931508.882 | I33: 0.965754441 | J33: =VLOOKUP(A33,PrimeRate!$A$5:$B$976,2,0)-$F$6 -> 9.75
A34: 2025-04-30 | B34: 24 | C34: 1931508.882 | D34: 18970.33701 | E34: 0 | F34: 15693.50967 | G34: 3276.827345 | H34: 1928232.055 | I34: 0.9641160273 | J34: =VLOOKUP(A34,PrimeRate!$A$5:$B$976,2,0)-$F$6 -> 9.75
A35: 2025-05-31 | B35: 25 | C35: 1928232.055 | D35: 18970.33701 | E35: 0 | F35: 15666.88544 | G35: 3303.451568 | H35: 1924928.603 | I35: 0.9624643015 | J35: =VLOOKUP(A35,PrimeRate!$A$5:$B$976,2,0)-$F$6 -> 9.75
A36: 2025-06-30 | B36: 26 | C36: 1924928.603 | D36: 18970.33701 | E36: 0 | F36: 15640.0449 | G36: 3330.292112 | H36: 1921598.311 | I36: 0.9607991555 | J36: =VLOOKUP(A36,PrimeRate!$A$5:$B$976,2,0)-$F$6 -> 9.75
A37: 2025-07-31 | B37: 27 | C37: 1921598.311 | D37: 18970.33701 | E37: 0 | F37: 15612.98628 | G37: 3357.350735 | H37: 1918240.96 | I37: 0.9591204801 | J37: =VLOOKUP(A37,PrimeRate!$A$5:$B$976,2,0)-$F$6 -> 9.75
A38: 2025-08-31 | B38: 28 | C38: 1918240.96 | D38: 18970.33701 | E38: 0 | F38: 15585.7078 | G38: 3384.62921 | H38: 1914856.331 | I38: 0.9574281655 | J38: =VLOOKUP(A38,PrimeRate!$A$5:$B$976,2,0)-$F$6 -> 9.75
A39: 2025-09-30 | B39: 29 | C39: 1914856.331 | D39: 18970.33701 | E39: 0 | F39: 15558.20769 | G39: 3412.129322 | H39: 1911444.202 | I39: 0.9557221008 | J39: =VLOOKUP(A39,PrimeRate!$A$5:$B$976,2,0)-$F$6 -> 9.75
A40: 2025-10-31 | B40: 30 | C40: 1911444.202 | D40: 18970.33701 | E40: 0 | F40: 15530.48414 | G40: 3439.852873 | H40: 1908004.349 | I40: 0.9540021744 | J40: =VLOOKUP(A40,PrimeRate!$A$5:$B$976,2,0)-$F$6 -> 9.75
A41: 2025-11-30 | B41: 31 | C41: 1908004.349 | D41: 18970.33701 | E41: 0 | F41: 15502.53533 | G41: 3467.801677 | H41: 1904536.547 | I41: 0.9522682736 | J41: =VLOOKUP(A41,PrimeRate!$A$5:$B$976,2,0)-$F$6 -> 9.75
A42: 2025-12-31 | B42: 32 | C42: 1904536.547 | D42: 18970.33701 | E42: 0 | F42: 15474.35945 | G42: 3495.977566 | H42: 1901040.57 | I42: 0.9505202848 | J42: =VLOOKUP(A42,PrimeRate!$A$5:$B$976,2,0)-$F$6 -> 9.75
A43: 2026-01-31 | B43: 33 | C43: 1901040.57 | D43: 18970.33701 | E43: 0 | F43: 15445.95463 | G43: 3524.382384 | H43: 1897516.187 | I43: 0.9487580936 | J43: =VLOOKUP(A43,PrimeRate!$A$5:$B$976,2,0)-$F$6 -> 9.75
A44: 2026-02-28 | B44: 34 | C44: 1897516.187 | D44: 18970.33701 | E44: 0 | F44: 15417.31902 | G44: 3553.017991 | H44: 1893963.169 | I44: 0.9469815846 | J44: =VLOOKUP(A44,PrimeRate!$A$5:$B$976,2,0)-$F$6 -> 9.75
A45: 2026-03-31 | B45: 35 | C45: 1893963.169 | D45: 18970.33701 | E45: 0 | F45: 15388.45075 | G45: 3581.886262 | H45: 1890381.283 | I45: 0.9451906415 | J45: =VLOOKUP(A45,PrimeRate!$A$5:$B$976,2,0)-$F$6 -> 9.75
A46: 2026-04-30 | B46: 36 | C46: 1890381.283 | D46: 18970.33701 | E46: 0 | F46: 15359.34792 | G46: 3610.989088 | H46: 1886770.294 | I46: 0.9433851469 | J46: =VLOOKUP(A46,PrimeRate!$A$5:$B$976,2,0)-$F$6 -> 9.75
A47: 2026-05-31 | B47: 37 | C47: 1886770.294 | D47: 18970.33701 | E47: 0 | F47: 15330.00864 | G47: 3640.328374 | H47: 1883129.965 | I47: 0.9415649827 | J47: =VLOOKUP(A47,PrimeRate!$A$5:$B$976,2,0)-$F$6 -> 9.75
A48: 2026-06-30 | B48: 38 | C48: 1883129.965 | D48: 18970.33701 | E48: 0 | F48: 15300.43097 | G48: 3669.906042 | H48: 1879460.059 | I48: 0.9397300297 | J48: =VLOOKUP(A48,PrimeRate!$A$5:$B$976,2,0)-$F$6 -> 9.75
A49: 2026-07-31 | B49: 39 | C49: 1879460.059 | D49: 18970.33701 | E49: 0 | F49: 15270.61298 | G49: 3699.724029 | H49: 1875760.335 | I49: 0.9378801677 | J49: =VLOOKUP(A49,PrimeRate!$A$5:$B$976,2,0)-$F$6 -> 9.75
A50: 2026-08-31 | B50: 40 | C50: 1875760.335 | D50: 18970.33701 | E50: 0 | F50: 15240.55273 | G50: 3729.784286 | H50: 1872030.551 | I50: 0.9360152756 | J50: =VLOOKUP(A50,PrimeRate!$A$5:$B$976,2,0)-$F$6 -> 9.75
A51: 2026-09-30 | B51: 41 | C51: 1872030.551 | D51: 18970.33701 | E51: 0 | F51: 15210.24823 | G51: 3760.088784 | H51: 1868270.462 | I51: 0.9341352312 | J51: =VLOOKUP(A51,PrimeRate!$A$5:$B$976,2,0)-$F$6 -> 9.75
A52: 2026-10-31 | B52: 42 | C52: 1868270.462 | D52: 18970.33701 | E52: 0 | F52: 15179.69751 | G52: 3790.639505 | H52: 1864479.823 | I52: 0.9322399114 | J52: =VLOOKUP(A52,PrimeRate!$A$5:$B$976,2,0)-$F$6 -> 9.75
A53: 2026-11-30 | B53: 43 | C53: 1864479.823 | D53: 18970.33701 | E53: 0 | F53: 15148.89856 | G53: 3821.438451 | H53: 1860658.384 | I53: 0.9303291922 | J53: =VLOOKUP(A53,PrimeRate!$A$5:$B$976,2,0)-$F$6 -> 9.75
A54: 2026-12-31 | B54: 44 | C54: 1860658.384 | D54: 18970.33701 | E54: 0 | F54: 15117.84937 | G54: 3852.487639 | H54: 1856805.897 | I54: 0.9284029484 | J54: =VLOOKUP(A54,PrimeRate!$A$5:$B$976,2,0)-$F$6 -> 9.75
A55: 2027-01-31 | B55: 45 | C55: 1856805.897 | D55: 18970.33701 | E55: 0 | F55: 15086.54791 | G55: 3883.789101 | H55: 1852922.108 | I55: 0.9264610538 | J55: =VLOOKUP(A55,PrimeRate!$A$5:$B$976,2,0)-$F$6 -> 9.75
A56: 2027-02-28 | B56: 46 | C56: 1852922.108 | D56: 18970.33701 | E56: 0 | F56: 15054.99212 | G56: 3915.344887 | H56: 1849006.763 | I56: 0.9245033814 | J56: =VLOOKUP(A56,PrimeRate!$A$5:$B$976,2,0)-$F$6 -> 9.75
A57: 2027-03-31 | B57: 47 | C57: 1849006.763 | D57: 18970.33701 | E57: 0 | F57: 15023.17995 | G57: 3947.157064 | H57: 1845059.606 | I57: 0.9225298028 | J57: =VLOOKUP(A57,PrimeRate!$A$5:$B$976,2,0)-$F$6 -> 9.75
A58: 2027-04-30 | B58: 48 | C58: 1845059.606 | D58: 18970.33701 | E58: 0 | F58: 14991.1093 | G58: 3979.227715 | H58: 1841080.378 | I58: 0.920540189 | J58: =VLOOKUP(A58,PrimeRate!$A$5:$B$976,2,0)-$F$6 -> 9.75
A59: 2027-05-31 | B59: 49 | C59: 1841080.378 | D59: 18970.33701 | E59: 0 | F59: 14958.77807 | G59: 4011.558941 | H59: 1837068.819 | I59: 0.9185344095 | J59: =VLOOKUP(A59,PrimeRate!$A$5:$B$976,2,0)-$F$6 -> 9.75
A60: 2027-06-30 | B60: 50 | C60: 1837068.819 | D60: 18970.33701 | E60: 0 | F60: 14926.18415 | G60: 4044.152857 | H60: 1833024.666 | I60: 0.9165123331 | J60: =VLOOKUP(A60,PrimeRate!$A$5:$B$976,2,0)-$F$6 -> 9.75
A61: 2027-07-31 | B61: 51 | C61: 1833024.666 | D61: 18970.33701 | E61: 0 | F61: 14893.32541 | G61: 4077.011599 | H61: 1828947.655 | I61: 0.9144738273 | J61: =VLOOKUP(A61,PrimeRate!$A$5:$B$976,2,0)-$F$6 -> 9.75
A62: 2027-08-31 | B62: 52 | C62: 1828947.655 | D62: 18970.33701 | E62: 0 | F62: 14860.19969 | G62: 4110.137318 | H62: 1824837.517 | I62: 0.9124187586 | J62: =VLOOKUP(A62,PrimeRate!$A$5:$B$976,2,0)-$F$6 -> 9.75
A63: 2027-09-30 | B63: 53 | C63: 1824837.517 | D63: 18970.33701 | E63: 0 | F63: 14826.80483 | G63: 4143.532184 | H63: 1820693.985 | I63: 0.9103469925 | J63: =VLOOKUP(A63,PrimeRate!$A$5:$B$976,2,0)-$F$6 -> 9.75
A64: 2027-10-31 | B64: 54 | C64: 1820693.985 | D64: 18970.33701 | E64: 0 | F64: 14793.13863 | G64: 4177.198383 | H64: 1816516.787 | I64: 0.9082583933 | J64: =VLOOKUP(A64,PrimeRate!$A$5:$B$976,2,0)-$F$6 -> 9.75
A65: 2027-11-30 | B65: 55 | C65: 1816516.787 | D65: 18970.33701 | E65: 0 | F65: 14759.19889 | G65: 4211.13812 | H65: 1812305.649 | I65: 0.9061528243 | J65: =VLOOKUP(A65,PrimeRate!$A$5:$B$976,2,0)-$F$6 -> 9.75
A66: 2027-12-31 | B66: 56 | C66: 1812305.649 | D66: 18970.33701 | E66: 0 | F66: 14724.98339 | G66: 4245.353617 | H66: 1808060.295 | I66: 0.9040301475 | J66: =VLOOKUP(A66,PrimeRate!$A$5:$B$976,2,0)-$F$6 -> 9.75
A67: 2028-01-31 | B67: 57 | C67: 1808060.295 | D67: 18970.33701 | E67: 0 | F67: 14690.4899 | G67: 4279.847115 | H67: 1803780.448 | I67: 0.9018902239 | J67: =VLOOKUP(A67,PrimeRate!$A$5:$B$976,2,0)-$F$6 -> 9.75
A68: 2028-02-29 | B68: 58 | C68: 1803780.448 | D68: 18970.33701 | E68: 0 | F68: 14655.71614 | G68: 4314.620873 | H68: 1799465.827 | I68: 0.8997329135 | J68: =VLOOKUP(A68,PrimeRate!$A$5:$B$976,2,0)-$F$6 -> 9.75
A69: 2028-03-31 | B69: 59 | C69: 1799465.827 | D69: 18970.33701 | E69: 0 | F69: 14620.65984 | G69: 4349.677167 | H69: 1795116.15 | I69: 0.8975580749 | J69: =VLOOKUP(A69,PrimeRate!$A$5:$B$976,2,0)-$F$6 -> 9.75
A70: 2028-04-30 | B70: 60 | C70: 1795116.15 | D70: 18970.33701 | E70: 0 | F70: 14585.31872 | G70: 4385.018294 | H70: 1790731.131 | I70: 0.8953655657 | J70: =VLOOKUP(A70,PrimeRate!$A$5:$B$976,2,0)-$F$6 -> 9.75
A71: 2028-05-31 | B71: 61 | C71: 1790731.131 | D71: 18970.33701 | E71: 0 | F71: 14549.69044 | G71: 4420.646568 | H71: 1786310.485 | I71: 0.8931552425 | J71: =VLOOKUP(A71,PrimeRate!$A$5:$B$976,2,0)-$F$6 -> 9.75
A72: 2028-06-30 | B72: 62 | C72: 1786310.485 | D72: 18970.33701 | E72: 0 | F72: 14513.77269 | G72: 4456.564321 | H72: 1781853.921 | I72: 0.8909269603 | J72: =VLOOKUP(A72,PrimeRate!$A$5:$B$976,2,0)-$F$6 -> 9.75
A73: 2028-07-31 | B73: 63 | C73: 1781853.921 | D73: 18970.33701 | E73: 0 | F73: 14477.5631 | G73: 4492.773907 | H73: 1777361.147 | I73: 0.8886805734 | J73: =VLOOKUP(A73,PrimeRate!$A$5:$B$976,2,0)-$F$6 -> 9.75
A74: 2028-08-31 | B74: 64 | C74: 1777361.147 | D74: 18970.33701 | E74: 0 | F74: 14441.05932 | G74: 4529.277695 | H74: 1772831.869 | I74: 0.8864159345 | J74: =VLOOKUP(A74,PrimeRate!$A$5:$B$976,2,0)-$F$6 -> 9.75
A75: 2028-09-30 | B75: 65 | C75: 1772831.869 | D75: 18970.33701 | E75: =IF(VLOOKUP($A75,AdHoc,2,0)>C75+F75-D75,C75+F75-D75,VLOOKUP($A75,AdHoc,2,0)) -> 0 | F75: =C75*J75/100/12 -> 14404.25894 | G75: 4566.078076 | H75: 1768265.791 | I75: 0.8841328955 | J75: =VLOOKUP(A75,PrimeRate!$A$5:$B$976,2,0)-$F$6 -> 9.75
A76: 2028-10-31 | B76: 66 | C76: 1768265.791 | D76: =IF($C$6*12+1-B76=0,0,IF(PMT(J76/100/12,$C$6*12+1-B76,-C76,0,0)>C76+F76,C76+F76,PMT(J76/100/12,$C$6*12+1-B76,-C76,0,0))) -> 18970.33701 | E76: 0 | F76: 14367.15955 | G76: =D76+E76-F76 -> 4603.17746 | H76: =IF(ROUND(C76-G76,2)=0,0,C76-G76) -> 1763662.613 | I76: =IF(C76=0,0,H76/$C$11) -> 0.8818313067 | J76: =VLOOKUP(A76,PrimeRate!$A$5:$B$976,2,0)-$F$6 -> 9.75
A77: =DATE(YEAR(A76),MONTH(A76)+2,1-1) -> 2028-11-30 | B77: 67 | C77: =H76 -> 1763662.613 | D77: 18970.33701 | E77: 0 | F77: 14329.75873 | G77: 4640.578277 | H77: 1759022.035 | I77: 0.8795110176 | J77: =VLOOKUP(A77,PrimeRate!$A$5:$B$976,2,0)-$F$6 -> 9.75
A78: 2028-12-31 | B78: 68 | C78: 1759022.035 | D78: 18970.33701 | E78: 0 | F78: 14292.05404 | G78: 4678.282976 | H78: 1754343.752 | I78: 0.8771718761 | J78: =VLOOKUP(A78,PrimeRate!$A$5:$B$976,2,0)-$F$6 -> 9.75
A79: 2029-01-31 | B79: 69 | C79: 1754343.752 | D79: 18970.33701 | E79: 0 | F79: 14254.04299 | G79: 4716.294025 | H79: 1749627.458 | I79: 0.8748137291 | J79: =VLOOKUP(A79,PrimeRate!$A$5:$B$976,2,0)-$F$6 -> 9.75
A80: 2029-02-28 | B80: 70 | C80: 1749627.458 | D80: 18970.33701 | E80: 0 | F80: 14215.7231 | G80: 4754.613914 | H80: 1744872.844 | I80: 0.8724364221 | J80: =VLOOKUP(A80,PrimeRate!$A$5:$B$976,2,0)-$F$6 -> 9.75
A81: 2029-03-31 | B81: 71 | C81: 1744872.844 | D81: 18970.33701 | E81: 0 | F81: 14177.09186 | G81: 4793.245152 | H81: 1740079.599 | I81: 0.8700397996 | J81: =VLOOKUP(A81,PrimeRate!$A$5:$B$976,2,0)-$F$6 -> 9.75
A82: 2029-04-30 | B82: 72 | C82: 1740079.599 | D82: 18970.33701 | E82: 0 | F82: 14138.14674 | G82: 4832.190269 | H82: 1735247.409 | I82: 0.8676237044 | J82: =VLOOKUP(A82,PrimeRate!$A$5:$B$976,2,0)-$F$6 -> 9.75
A83: 2029-05-31 | B83: 73 | C83: 1735247.409 | D83: 18970.33701 | E83: 0 | F83: 14098.8852 | G83: 4871.451815 | H83: 1730375.957 | I83: 0.8651879785 | J83: =VLOOKUP(A83,PrimeRate!$A$5:$B$976,2,0)-$F$6 -> 9.75
A84: 2029-06-30 | B84: 74 | C84: 1730375.957 | D84: 18970.33701 | E84: 0 | F84: 14059.30465 | G84: 4911.032361 | H84: 1725464.925 | I84: 0.8627324623 | J84: =VLOOKUP(A84,PrimeRate!$A$5:$B$976,2,0)-$F$6 -> 9.75
A85: 2029-07-31 | B85: 75 | C85: 1725464.925 | D85: 18970.33701 | E85: 0 | F85: 14019.40251 | G85: 4950.934498 | H85: 1720513.99 | I85: 0.8602569951 | J85: =VLOOKUP(A85,PrimeRate!$A$5:$B$976,2,0)-$F$6 -> 9.75
A86: 2029-08-31 | B86: 76 | C86: 1720513.99 | D86: 18970.33701 | E86: 0 | F86: 13979.17617 | G86: 4991.160841 | H86: 1715522.829 | I86: 0.8577614147 | J86: =VLOOKUP(A86,PrimeRate!$A$5:$B$976,2,0)-$F$6 -> 9.75
A87: 2029-09-30 | B87: 77 | C87: 1715522.829 | D87: 18970.33701 | E87: 0 | F87: 13938.62299 | G87: 5031.714023 | H87: 1710491.115 | I87: 0.8552455577 | J87: =VLOOKUP(A87,PrimeRate!$A$5:$B$976,2,0)-$F$6 -> 9.75
A88: 2029-10-31 | B88: 78 | C88: 1710491.115 | D88: 18970.33701 | E88: 0 | F88: 13897.74031 | G88: 5072.5967 | H88: 1705418.519 | I88: 0.8527092593 | J88: =VLOOKUP(A88,PrimeRate!$A$5:$B$976,2,0)-$F$6 -> 9.75
A89: 2029-11-30 | B89: 79 | C89: 1705418.519 | D89: 18970.33701 | E89: 0 | F89: 13856.52546 | G89: 5113.811548 | H89: 1700304.707 | I89: 0.8501523535 | J89: =VLOOKUP(A89,PrimeRate!$A$5:$B$976,2,0)-$F$6 -> 9.75
A90: 2029-12-31 | B90: 80 | C90: 1700304.707 | D90: 18970.33701 | E90: 0 | F90: 13814.97574 | G90: 5155.361267 | H90: 1695149.346 | I90: 0.8475746729 | J90: =VLOOKUP(A90,PrimeRate!$A$5:$B$976,2,0)-$F$6 -> 9.75
A91: 2030-01-31 | B91: 81 | C91: 1695149.346 | D91: 18970.33701 | E91: 0 | F91: 13773.08843 | G91: 5197.248577 | H91: 1689952.097 | I91: 0.8449760486 | J91: =VLOOKUP(A91,PrimeRate!$A$5:$B$976,2,0)-$F$6 -> 9.75
A92: 2030-02-28 | B92: 82 | C92: 1689952.097 | D92: 18970.33701 | E92: 0 | F92: 13730.86079 | G92: 5239.476222 | H92: 1684712.621 | I92: 0.8423563105 | J92: =VLOOKUP(A92,PrimeRate!$A$5:$B$976,2,0)-$F$6 -> 9.75
A93: 2030-03-31 | B93: 83 | C93: 1684712.621 | D93: 18970.33701 | E93: 0 | F93: 13688.29005 | G93: 5282.046966 | H93: 1679430.574 | I93: 0.839715287 | J93: =VLOOKUP(A93,PrimeRate!$A$5:$B$976,2,0)-$F$6 -> 9.75
A94: 2030-04-30 | B94: 84 | C94: 1679430.574 | D94: 18970.33701 | E94: 0 | F94: 13645.37341 | G94: 5324.963597 | H94: 1674105.61 | I94: 0.8370528052 | J94: =VLOOKUP(A94,PrimeRate!$A$5:$B$976,2,0)-$F$6 -> 9.75
A95: 2030-05-31 | B95: 85 | C95: 1674105.61 | D95: 18970.33701 | E95: 0 | F95: 13602.10808 | G95: 5368.228927 | H95: 1668737.382 | I95: 0.8343686908 | J95: =VLOOKUP(A95,PrimeRate!$A$5:$B$976,2,0)-$F$6 -> 9.75
A96: 2030-06-30 | B96: 86 | C96: 1668737.382 | D96: 18970.33701 | E96: 0 | F96: 13558.49122 | G96: 5411.845787 | H96: 1663325.536 | I96: 0.8316627679 | J96: =VLOOKUP(A96,PrimeRate!$A$5:$B$976,2,0)-$F$6 -> 9.75
A97: 2030-07-31 | B97: 87 | C97: 1663325.536 | D97: 18970.33701 | E97: 0 | F97: 13514.51998 | G97: 5455.817034 | H97: 1657869.719 | I97: 0.8289348593 | J97: =VLOOKUP(A97,PrimeRate!$A$5:$B$976,2,0)-$F$6 -> 9.75
A98: 2030-08-31 | B98: 88 | C98: 1657869.719 | D98: 18970.33701 | E98: 0 | F98: 13470.19146 | G98: 5500.145547 | H98: 1652369.573 | I98: 0.8261847866 | J98: =VLOOKUP(A98,PrimeRate!$A$5:$B$976,2,0)-$F$6 -> 9.75
A99: 2030-09-30 | B99: 89 | C99: 1652369.573 | D99: 18970.33701 | E99: 0 | F99: 13425.50278 | G99: 5544.83423 | H99: 1646824.739 | I99: 0.8234123695 | J99: =VLOOKUP(A99,PrimeRate!$A$5:$B$976,2,0)-$F$6 -> 9.75
A100: 2030-10-31 | B100: 90 | C100: 1646824.739 | D100: 18970.33701 | E100: 0 | F100: 13380.451 | G100: 5589.886008 | H100: 1641234.853 | I100: 0.8206174265 | J100: =VLOOKUP(A100,PrimeRate!$A$5:$B$976,2,0)-$F$6 -> 9.75
A101: 2030-11-30 | B101: 91 | C101: 1641234.853 | D101: 18970.33701 | E101: 0 | F101: 13335.03318 | G101: 5635.303832 | H101: 1635599.549 | I101: 0.8177997745 | J101: =VLOOKUP(A101,PrimeRate!$A$5:$B$976,2,0)-$F$6 -> 9.75
A102: 2030-12-31 | B102: 92 | C102: 1635599.549 | D102: 18970.33701 | E102: 0 | F102: 13289.24634 | G102: 5681.090675 | H102: 1629918.458 | I102: 0.8149592292 | J102: =VLOOKUP(A102,PrimeRate!$A$5:$B$976,2,0)-$F$6 -> 9.75
A103: 2031-01-31 | B103: 93 | C103: 1629918.458 | D103: 18970.33701 | E103: 0 | F103: 13243.08747 | G103: 5727.249537 | H103: 1624191.209 | I103: 0.8120956044 | J103: =VLOOKUP(A103,PrimeRate!$A$5:$B$976,2,0)-$F$6 -> 9.75
A104: 2031-02-28 | B104: 94 | C104: 1624191.209 | D104: 18970.33701 | E104: 0 | F104: 13196.55357 | G104: 5773.783439 | H104: 1618417.425 | I104: 0.8092087127 | J104: =VLOOKUP(A104,PrimeRate!$A$5:$B$976,2,0)-$F$6 -> 9.75
A105: 2031-03-31 | B105: 95 | C105: 1618417.425 | D105: 18970.33701 | E105: 0 | F105: 13149.64158 | G105: 5820.69543 | H105: 1612596.73 | I105: 0.806298365 | J105: =VLOOKUP(A105,PrimeRate!$A$5:$B$976,2,0)-$F$6 -> 9.75
A106: 2031-04-30 | B106: 96 | C106: 1612596.73 | D106: 18970.33701 | E106: 0 | F106: 13102.34843 | G106: 5867.98858 | H106: 1606728.741 | I106: 0.8033643707 | J106: =VLOOKUP(A106,PrimeRate!$A$5:$B$976,2,0)-$F$6 -> 9.75
A107: 2031-05-31 | B107: 97 | C107: 1606728.741 | D107: 18970.33701 | E107: 0 | F107: 13054.67102 | G107: 5915.665987 | H107: 1600813.075 | I107: 0.8004065377 | J107: =VLOOKUP(A107,PrimeRate!$A$5:$B$976,2,0)-$F$6 -> 9.75
A108: 2031-06-30 | B108: 98 | C108: 1600813.075 | D108: 18970.33701 | E108: 0 | F108: 13006.60624 | G108: 5963.730774 | H108: 1594849.345 | I108: 0.7974246723 | J108: =VLOOKUP(A108,PrimeRate!$A$5:$B$976,2,0)-$F$6 -> 9.75
A109: 2031-07-31 | B109: 99 | C109: 1594849.345 | D109: 18970.33701 | E109: 0 | F109: 12958.15093 | G109: 6012.186086 | H109: 1588837.159 | I109: 0.7944185793 | J109: =VLOOKUP(A109,PrimeRate!$A$5:$B$976,2,0)-$F$6 -> 9.75
A110: 2031-08-31 | B110: 100 | C110: 1588837.159 | D110: 18970.33701 | E110: 0 | F110: 12909.30191 | G110: 6061.035098 | H110: 1582776.123 | I110: 0.7913880617 | J110: =VLOOKUP(A110,PrimeRate!$A$5:$B$976,2,0)-$F$6 -> 9.75
A111: 2031-09-30 | B111: 101 | C111: 1582776.123 | D111: 18970.33701 | E111: 0 | F111: 12860.056 | G111: 6110.281008 | H111: 1576665.842 | I111: 0.7883329212 | J111: =VLOOKUP(A111,PrimeRate!$A$5:$B$976,2,0)-$F$6 -> 9.75
A112: 2031-10-31 | B112: 102 | C112: 1576665.842 | D112: 18970.33701 | E112: 0 | F112: 12810.40997 | G112: 6159.927041 | H112: 1570505.915 | I112: 0.7852529577 | J112: =VLOOKUP(A112,PrimeRate!$A$5:$B$976,2,0)-$F$6 -> 9.75
A113: 2031-11-30 | B113: 103 | C113: 1570505.915 | D113: 18970.33701 | E113: 0 | F113: 12760.36056 | G113: 6209.976449 | H113: 1564295.939 | I113: 0.7821479695 | J113: =VLOOKUP(A113,PrimeRate!$A$5:$B$976,2,0)-$F$6 -> 9.75
A114: 2031-12-31 | B114: 104 | C114: 1564295.939 | D114: 18970.33701 | E114: 0 | F114: 12709.9045 | G114: 6260.432507 | H114: 1558035.506 | I114: 0.7790177532 | J114: =VLOOKUP(A114,PrimeRate!$A$5:$B$976,2,0)-$F$6 -> 9.75
A115: 2032-01-31 | B115: 105 | C115: 1558035.506 | D115: 18970.33701 | E115: 0 | F115: 12659.03849 | G115: 6311.298521 | H115: 1551724.208 | I115: 0.775862104 | J115: =VLOOKUP(A115,PrimeRate!$A$5:$B$976,2,0)-$F$6 -> 9.75
A116: 2032-02-29 | B116: 106 | C116: 1551724.208 | D116: 18970.33701 | E116: 0 | F116: 12607.75919 | G116: 6362.577822 | H116: 1545361.63 | I116: 0.7726808151 | J116: =VLOOKUP(A116,PrimeRate!$A$5:$B$976,2,0)-$F$6 -> 9.75
A117: 2032-03-31 | B117: 107 | C117: 1545361.63 | D117: 18970.33701 | E117: 0 | F117: 12556.06324 | G117: 6414.273767 | H117: 1538947.356 | I117: 0.7694736782 | J117: =VLOOKUP(A117,PrimeRate!$A$5:$B$976,2,0)-$F$6 -> 9.75
A118: 2032-04-30 | B118: 108 | C118: 1538947.356 | D118: 18970.33701 | E118: 0 | F118: 12503.94727 | G118: 6466.389741 | H118: 1532480.967 | I118: 0.7662404833 | J118: =VLOOKUP(A118,PrimeRate!$A$5:$B$976,2,0)-$F$6 -> 9.75
A119: 2032-05-31 | B119: 109 | C119: 1532480.967 | D119: 18970.33701 | E119: 0 | F119: 12451.40785 | G119: 6518.929158 | H119: 1525962.037 | I119: 0.7629810187 | J119: =VLOOKUP(A119,PrimeRate!$A$5:$B$976,2,0)-$F$6 -> 9.75
A120: 2032-06-30 | B120: 110 | C120: 1525962.037 | D120: 18970.33701 | E120: 0 | F120: 12398.44155 | G120: 6571.895457 | H120: 1519390.142 | I120: 0.759695071 | J120: =VLOOKUP(A120,PrimeRate!$A$5:$B$976,2,0)-$F$6 -> 9.75
A121: 2032-07-31 | B121: 111 | C121: 1519390.142 | D121: 18970.33701 | E121: 0 | F121: 12345.0449 | G121: 6625.292108 | H121: 1512764.85 | I121: 0.7563824249 | J121: =VLOOKUP(A121,PrimeRate!$A$5:$B$976,2,0)-$F$6 -> 9.75
A122: 2032-08-31 | B122: 112 | C122: 1512764.85 | D122: 18970.33701 | E122: 0 | F122: 12291.21441 | G122: 6679.122606 | H122: 1506085.727 | I122: 0.7530428636 | J122: =VLOOKUP(A122,PrimeRate!$A$5:$B$976,2,0)-$F$6 -> 9.75
A123: 2032-09-30 | B123: 113 | C123: 1506085.727 | D123: 18970.33701 | E123: 0 | F123: 12236.94653 | G123: 6733.390477 | H123: 1499352.337 | I123: 0.7496761684 | J123: =VLOOKUP(A123,PrimeRate!$A$5:$B$976,2,0)-$F$6 -> 9.75
A124: 2032-10-31 | B124: 114 | C124: 1499352.337 | D124: 18970.33701 | E124: 0 | F124: 12182.23774 | G124: 6788.099275 | H124: 1492564.238 | I124: 0.7462821188 | J124: =VLOOKUP(A124,PrimeRate!$A$5:$B$976,2,0)-$F$6 -> 9.75
A125: 2032-11-30 | B125: 115 | C125: 1492564.238 | D125: 18970.33701 | E125: 0 | F125: 12127.08443 | G125: 6843.252582 | H125: 1485720.985 | I125: 0.7428604925 | J125: =VLOOKUP(A125,PrimeRate!$A$5:$B$976,2,0)-$F$6 -> 9.75
A126: 2032-12-31 | B126: 116 | C126: 1485720.985 | D126: 18970.33701 | E126: 0 | F126: 12071.483 | G126: 6898.854009 | H126: 1478822.131 | I126: 0.7394110655 | J126: =VLOOKUP(A126,PrimeRate!$A$5:$B$976,2,0)-$F$6 -> 9.75
A127: 2033-01-31 | B127: 117 | C127: 1478822.131 | D127: 18970.33701 | E127: 0 | F127: 12015.42981 | G127: 6954.907198 | H127: 1471867.224 | I127: 0.7359336119 | J127: =VLOOKUP(A127,PrimeRate!$A$5:$B$976,2,0)-$F$6 -> 9.75
A128: 2033-02-28 | B128: 118 | C128: 1471867.224 | D128: 18970.33701 | E128: 0 | F128: 11958.92119 | G128: 7011.415819 | H128: 1464855.808 | I128: 0.732427904 | J128: =VLOOKUP(A128,PrimeRate!$A$5:$B$976,2,0)-$F$6 -> 9.75
A129: 2033-03-31 | B129: 119 | C129: 1464855.808 | D129: 18970.33701 | E129: 0 | F129: 11901.95344 | G129: 7068.383572 | H129: 1457787.424 | I129: 0.7288937122 | J129: =VLOOKUP(A129,PrimeRate!$A$5:$B$976,2,0)-$F$6 -> 9.75
A130: 2033-04-30 | B130: 120 | C130: 1457787.424 | D130: 18970.33701 | E130: 0 | F130: 11844.52282 | G130: 7125.814189 | H130: 1450661.61 | I130: 0.7253308051 | J130: =VLOOKUP(A130,PrimeRate!$A$5:$B$976,2,0)-$F$6 -> 9.75
A131: 2033-05-31 | B131: 121 | C131: 1450661.61 | D131: 18970.33701 | E131: 0 | F131: 11786.62558 | G131: 7183.711429 | H131: 1443477.899 | I131: 0.7217389494 | J131: =VLOOKUP(A131,PrimeRate!$A$5:$B$976,2,0)-$F$6 -> 9.75
A132: 2033-06-30 | B132: 122 | C132: 1443477.899 | D132: 18970.33701 | E132: 0 | F132: 11728.25793 | G132: 7242.079084 | H132: 1436235.82 | I132: 0.7181179098 | J132: =VLOOKUP(A132,PrimeRate!$A$5:$B$976,2,0)-$F$6 -> 9.75
A133: 2033-07-31 | B133: 123 | C133: 1436235.82 | D133: 18970.33701 | E133: 0 | F133: 11669.41603 | G133: 7300.920977 | H133: 1428934.899 | I133: 0.7144674493 | J133: =VLOOKUP(A133,PrimeRate!$A$5:$B$976,2,0)-$F$6 -> 9.75
A134: 2033-08-31 | B134: 124 | C134: 1428934.899 | D134: 18970.33701 | E134: 0 | F134: 11610.09605 | G134: 7360.24096 | H134: 1421574.658 | I134: 0.7107873289 | J134: =VLOOKUP(A134,PrimeRate!$A$5:$B$976,2,0)-$F$6 -> 9.75
A135: 2033-09-30 | B135: 125 | C135: 1421574.658 | D135: 18970.33701 | E135: 0 | F135: 11550.29409 | G135: 7420.042918 | H135: 1414154.615 | I135: 0.7070773074 | J135: =VLOOKUP(A135,PrimeRate!$A$5:$B$976,2,0)-$F$6 -> 9.75
A136: 2033-10-31 | B136: 126 | C136: 1414154.615 | D136: 18970.33701 | E136: 0 | F136: 11490.00625 | G136: 7480.330766 | H136: 1406674.284 | I136: 0.703337142 | J136: =VLOOKUP(A136,PrimeRate!$A$5:$B$976,2,0)-$F$6 -> 9.75
A137: 2033-11-30 | B137: 127 | C137: 1406674.284 | D137: 18970.33701 | E137: 0 | F137: 11429.22856 | G137: 7541.108454 | H137: 1399133.176 | I137: 0.6995665878 | J137: =VLOOKUP(A137,PrimeRate!$A$5:$B$976,2,0)-$F$6 -> 9.75
A138: 2033-12-31 | B138: 128 | C138: 1399133.176 | D138: 18970.33701 | E138: 0 | F138: 11367.95705 | G138: 7602.37996 | H138: 1391530.796 | I138: 0.6957653978 | J138: =VLOOKUP(A138,PrimeRate!$A$5:$B$976,2,0)-$F$6 -> 9.75
A139: 2034-01-31 | B139: 129 | C139: 1391530.796 | D139: 18970.33701 | E139: =IF(VLOOKUP($A139,AdHoc,2,0)>C139+F139-D139,C139+F139-D139,VLOOKUP($A139,AdHoc,2,0)) -> 0 | F139: =C139*J139/100/12 -> 11306.18771 | G139: 7664.149297 | H139: 1383866.646 | I139: 0.6919333232 | J139: =VLOOKUP(A139,PrimeRate!$A$5:$B$976,2,0)-$F$6 -> 9.75
A140: 2034-02-28 | B140: 130 | C140: 1383866.646 | D140: =IF($C$6*12+1-B140=0,0,IF(PMT(J140/100/12,$C$6*12+1-B140,-C140,0,0)>C140+F140,C140+F140,PMT(J140/100/12,$C$6*12+1-B140,-C140,0,0))) -> 18970.33701 | E140: 0 | F140: 11243.9165 | G140: =D140+E140-F140 -> 7726.42051 | H140: =IF(ROUND(C140-G140,2)=0,0,C140-G140) -> 1376140.226 | I140: =IF(C140=0,0,H140/$C$11) -> 0.6880701129 | J140: =VLOOKUP(A140,PrimeRate!$A$5:$B$976,2,0)-$F$6 -> 9.75
A141: =DATE(YEAR(A140),MONTH(A140)+2,1-1) -> 2034-03-31 | B141: 131 | C141: =H140 -> 1376140.226 | D141: 18970.33701 | E141: 0 | F141: 11181.13933 | G141: 7789.197677 | H141: 1368351.028 | I141: 0.6841755141 | J141: =VLOOKUP(A141,PrimeRate!$A$5:$B$976,2,0)-$F$6 -> 9.75
A142: 2034-04-30 | B142: 132 | C142: 1368351.028 | D142: 18970.33701 | E142: 0 | F142: 11117.8521 | G142: 7852.484908 | H142: 1360498.543 | I142: 0.6802492716 | J142: =VLOOKUP(A142,PrimeRate!$A$5:$B$976,2,0)-$F$6 -> 9.75
A143: 2034-05-31 | B143: 133 | C143: 1360498.543 | D143: 18970.33701 | E143: 0 | F143: 11054.05066 | G143: 7916.286348 | H143: 1352582.257 | I143: 0.6762911284 | J143: =VLOOKUP(A143,PrimeRate!$A$5:$B$976,2,0)-$F$6 -> 9.75
A144: 2034-06-30 | B144: 134 | C144: 1352582.257 | D144: 18970.33701 | E144: 0 | F144: 10989.73084 | G144: 7980.606174 | H144: 1344601.651 | I144: 0.6723008254 | J144: =VLOOKUP(A144,PrimeRate!$A$5:$B$976,2,0)-$F$6 -> 9.75
A145: 2034-07-31 | B145: 135 | C145: 1344601.651 | D145: 18970.33701 | E145: 0 | F145: 10924.88841 | G145: 8045.4486 | H145: 1336556.202 | I145: 0.6682781011 | J145: =VLOOKUP(A145,PrimeRate!$A$5:$B$976,2,0)-$F$6 -> 9.75
A146: 2034-08-31 | B146: 136 | C146: 1336556.202 | D146: 18970.33701 | E146: 0 | F146: 10859.51914 | G146: 8110.817869 | H146: 1328445.384 | I146: 0.6642226921 | J146: =VLOOKUP(A146,PrimeRate!$A$5:$B$976,2,0)-$F$6 -> 9.75
A147: 2034-09-30 | B147: 137 | C147: 1328445.384 | D147: 18970.33701 | E147: 0 | F147: 10793.61875 | G147: 8176.718265 | H147: 1320268.666 | I147: 0.660134333 | J147: =VLOOKUP(A147,PrimeRate!$A$5:$B$976,2,0)-$F$6 -> 9.75
A148: 2034-10-31 | B148: 138 | C148: 1320268.666 | D148: 18970.33701 | E148: 0 | F148: 10727.18291 | G148: 8243.1541 | H148: 1312025.512 | I148: 0.6560127559 | J148: =VLOOKUP(A148,PrimeRate!$A$5:$B$976,2,0)-$F$6 -> 9.75
A149: 2034-11-30 | B149: 139 | C149: 1312025.512 | D149: 18970.33701 | E149: 0 | F149: 10660.20728 | G149: 8310.129728 | H149: 1303715.382 | I149: 0.6518576911 | J149: =VLOOKUP(A149,PrimeRate!$A$5:$B$976,2,0)-$F$6 -> 9.75
A150: 2034-12-31 | B150: 140 | C150: 1303715.382 | D150: 18970.33701 | E150: 0 | F150: 10592.68748 | G150: 8377.649532 | H150: 1295337.733 | I150: 0.6476688663 | J150: =VLOOKUP(A150,PrimeRate!$A$5:$B$976,2,0)-$F$6 -> 9.75
A151: 2035-01-31 | B151: 141 | C151: 1295337.733 | D151: 18970.33701 | E151: 0 | F151: 10524.61908 | G151: 8445.717934 | H151: 1286892.015 | I151: 0.6434460073 | J151: =VLOOKUP(A151,PrimeRate!$A$5:$B$976,2,0)-$F$6 -> 9.75
A152: 2035-02-28 | B152: 142 | C152: 1286892.015 | D152: 18970.33701 | E152: 0 | F152: 10455.99762 | G152: 8514.339392 | H152: 1278377.675 | I152: 0.6391888376 | J152: =VLOOKUP(A152,PrimeRate!$A$5:$B$976,2,0)-$F$6 -> 9.75
A153: 2035-03-31 | B153: 143 | C153: 1278377.675 | D153: 18970.33701 | E153: 0 | F153: 10386.81861 | G153: 8583.5184 | H153: 1269794.157 | I153: 0.6348970784 | J153: =VLOOKUP(A153,PrimeRate!$A$5:$B$976,2,0)-$F$6 -> 9.75
A154: 2035-04-30 | B154: 144 | C154: 1269794.157 | D154: 18970.33701 | E154: 0 | F154: 10317.07752 | G154: 8653.259487 | H154: 1261140.897 | I154: 0.6305704487 | J154: =VLOOKUP(A154,PrimeRate!$A$5:$B$976,2,0)-$F$6 -> 9.75
A155: 2035-05-31 | B155: 145 | C155: 1261140.897 | D155: 18970.33701 | E155: 0 | F155: 10246.76979 | G155: 8723.56722 | H155: 1252417.33 | I155: 0.6262086651 | J155: =VLOOKUP(A155,PrimeRate!$A$5:$B$976,2,0)-$F$6 -> 9.75
A156: 2035-06-30 | B156: 146 | C156: 1252417.33 | D156: 18970.33701 | E156: 0 | F156: 10175.89081 | G156: 8794.446204 | H156: 1243622.884 | I156: 0.621811442 | J156: =VLOOKUP(A156,PrimeRate!$A$5:$B$976,2,0)-$F$6 -> 9.75
A157: 2035-07-31 | B157: 147 | C157: 1243622.884 | D157: 18970.33701 | E157: 0 | F157: 10104.43593 | G157: 8865.901079 | H157: 1234756.983 | I157: 0.6173784915 | J157: =VLOOKUP(A157,PrimeRate!$A$5:$B$976,2,0)-$F$6 -> 9.75
A158: 2035-08-31 | B158: 148 | C158: 1234756.983 | D158: 18970.33701 | E158: 0 | F158: 10032.40049 | G158: 8937.936525 | H158: 1225819.046 | I158: 0.6129095232 | J158: =VLOOKUP(A158,PrimeRate!$A$5:$B$976,2,0)-$F$6 -> 9.75
A159: 2035-09-30 | B159: 149 | C159: 1225819.046 | D159: 18970.33701 | E159: 0 | F159: 9959.779752 | G159: 9010.55726 | H159: 1216808.489 | I159: 0.6084042446 | J159: =VLOOKUP(A159,PrimeRate!$A$5:$B$976,2,0)-$F$6 -> 9.75
A160: 2035-10-31 | B160: 150 | C160: 1216808.489 | D160: 18970.33701 | E160: 0 | F160: 9886.568974 | G160: 9083.768037 | H160: 1207724.721 | I160: 0.6038623605 | J160: =VLOOKUP(A160,PrimeRate!$A$5:$B$976,2,0)-$F$6 -> 9.75
A161: 2035-11-30 | B161: 151 | C161: 1207724.721 | D161: 18970.33701 | E161: 0 | F161: 9812.763359 | G161: 9157.573653 | H161: 1198567.147 | I161: 0.5992835737 | J161: =VLOOKUP(A161,PrimeRate!$A$5:$B$976,2,0)-$F$6 -> 9.75
A162: 2035-12-31 | B162: 152 | C162: 1198567.147 | D162: 18970.33701 | E162: 0 | F162: 9738.358073 | G162: 9231.978939 | H162: 1189335.168 | I162: 0.5946675842 | J162: =VLOOKUP(A162,PrimeRate!$A$5:$B$976,2,0)-$F$6 -> 9.75
A163: 2036-01-31 | B163: 153 | C163: 1189335.168 | D163: 18970.33701 | E163: 0 | F163: 9663.348244 | G163: 9306.988768 | H163: 1180028.18 | I163: 0.5900140899 | J163: =VLOOKUP(A163,PrimeRate!$A$5:$B$976,2,0)-$F$6 -> 9.75
A164: 2036-02-29 | B164: 154 | C164: 1180028.18 | D164: 18970.33701 | E164: 0 | F164: 9587.72896 | G164: 9382.608051 | H164: 1170645.572 | I164: 0.5853227858 | J164: =VLOOKUP(A164,PrimeRate!$A$5:$B$976,2,0)-$F$6 -> 9.75
A165: 2036-03-31 | B165: 155 | C165: 1170645.572 | D165: 18970.33701 | E165: 0 | F165: 9511.49527 | G165: 9458.841742 | H165: 1161186.73 | I165: 0.580593365 | J165: =VLOOKUP(A165,PrimeRate!$A$5:$B$976,2,0)-$F$6 -> 9.75
A166: 2036-04-30 | B166: 156 | C166: 1161186.73 | D166: 18970.33701 | E166: 0 | F166: 9434.642181 | G166: 9535.694831 | H166: 1151651.035 | I166: 0.5758255175 | J166: =VLOOKUP(A166,PrimeRate!$A$5:$B$976,2,0)-$F$6 -> 9.75
A167: 2036-05-31 | B167: 157 | C167: 1151651.035 | D167: 18970.33701 | E167: 0 | F167: 9357.16466 | G167: 9613.172351 | H167: 1142037.863 | I167: 0.5710189314 | J167: =VLOOKUP(A167,PrimeRate!$A$5:$B$976,2,0)-$F$6 -> 9.75
A168: 2036-06-30 | B168: 158 | C168: 1142037.863 | D168: 18970.33701 | E168: 0 | F168: 9279.057635 | G168: 9691.279377 | H168: 1132346.583 | I168: 0.5661732917 | J168: =VLOOKUP(A168,PrimeRate!$A$5:$B$976,2,0)-$F$6 -> 9.75
A169: 2036-07-31 | B169: 159 | C169: 1132346.583 | D169: 18970.33701 | E169: 0 | F169: 9200.31599 | G169: 9770.021022 | H169: 1122576.562 | I169: 0.5612882812 | J169: =VLOOKUP(A169,PrimeRate!$A$5:$B$976,2,0)-$F$6 -> 9.75
A170: 2036-08-31 | B170: 160 | C170: 1122576.562 | D170: 18970.33701 | E170: 0 | F170: 9120.934569 | G170: 9849.402442 | H170: 1112727.16 | I170: 0.55636358 | J170: =VLOOKUP(A170,PrimeRate!$A$5:$B$976,2,0)-$F$6 -> 9.75
A171: 2036-09-30 | B171: 161 | C171: 1112727.16 | D171: 18970.33701 | E171: 0 | F171: 9040.908174 | G171: 9929.428837 | H171: 1102797.731 | I171: 0.5513988655 | J171: =VLOOKUP(A171,PrimeRate!$A$5:$B$976,2,0)-$F$6 -> 9.75
A172: 2036-10-31 | B172: 162 | C172: 1102797.731 | D172: 18970.33701 | E172: 0 | F172: 8960.231565 | G172: 10010.10545 | H172: 1092787.626 | I172: 0.5463938128 | J172: =VLOOKUP(A172,PrimeRate!$A$5:$B$976,2,0)-$F$6 -> 9.75
A173: 2036-11-30 | B173: 163 | C173: 1092787.626 | D173: 18970.33701 | E173: 0 | F173: 8878.899458 | G173: 10091.43755 | H173: 1082696.188 | I173: 0.541348094 | J173: =VLOOKUP(A173,PrimeRate!$A$5:$B$976,2,0)-$F$6 -> 9.75
A174: 2036-12-31 | B174: 164 | C174: 1082696.188 | D174: 18970.33701 | E174: 0 | F174: 8796.906528 | G174: 10173.43048 | H174: 1072522.758 | I174: 0.5362613788 | J174: =VLOOKUP(A174,PrimeRate!$A$5:$B$976,2,0)-$F$6 -> 9.75
A175: 2037-01-31 | B175: 165 | C175: 1072522.758 | D175: 18970.33701 | E175: 0 | F175: 8714.247405 | G175: 10256.08961 | H175: 1062266.668 | I175: 0.531133334 | J175: =VLOOKUP(A175,PrimeRate!$A$5:$B$976,2,0)-$F$6 -> 9.75
A176: 2037-02-28 | B176: 166 | C176: 1062266.668 | D176: 18970.33701 | E176: 0 | F176: 8630.916677 | G176: 10339.42033 | H176: 1051927.248 | I176: 0.5259636238 | J176: =VLOOKUP(A176,PrimeRate!$A$5:$B$976,2,0)-$F$6 -> 9.75
A177: 2037-03-31 | B177: 167 | C177: 1051927.248 | D177: 18970.33701 | E177: 0 | F177: 8546.908887 | G177: 10423.42812 | H177: 1041503.82 | I177: 0.5207519098 | J177: =VLOOKUP(A177,PrimeRate!$A$5:$B$976,2,0)-$F$6 -> 9.75
A178: 2037-04-30 | B178: 168 | C178: 1041503.82 | D178: 18970.33701 | E178: 0 | F178: 8462.218534 | G178: 10508.11848 | H178: 1030995.701 | I178: 0.5154978505 | J178: =VLOOKUP(A178,PrimeRate!$A$5:$B$976,2,0)-$F$6 -> 9.75
A179: 2037-05-31 | B179: 169 | C179: 1030995.701 | D179: 18970.33701 | E179: 0 | F179: 8376.840071 | G179: 10593.49694 | H179: 1020402.204 | I179: 0.510201102 | J179: =VLOOKUP(A179,PrimeRate!$A$5:$B$976,2,0)-$F$6 -> 9.75
A180: 2037-06-30 | B180: 170 | C180: 1020402.204 | D180: 18970.33701 | E180: 0 | F180: 8290.767908 | G180: 10679.5691 | H180: 1009722.635 | I180: 0.5048613175 | J180: =VLOOKUP(A180,PrimeRate!$A$5:$B$976,2,0)-$F$6 -> 9.75
A181: 2037-07-31 | B181: 171 | C181: 1009722.635 | D181: 18970.33701 | E181: 0 | F181: 8203.996409 | G181: 10766.3406 | H181: 998956.2944 | I181: 0.4994781472 | J181: =VLOOKUP(A181,PrimeRate!$A$5:$B$976,2,0)-$F$6 -> 9.75
A182: 2037-08-31 | B182: 172 | C182: 998956.2944 | D182: 18970.33701 | E182: 0 | F182: 8116.519892 | G182: 10853.81712 | H182: 988102.4773 | I182: 0.4940512386 | J182: =VLOOKUP(A182,PrimeRate!$A$5:$B$976,2,0)-$F$6 -> 9.75
A183: 2037-09-30 | B183: 173 | C183: 988102.4773 | D183: 18970.33701 | E183: 0 | F183: 8028.332628 | G183: 10942.00438 | H183: 977160.4729 | I183: 0.4885802364 | J183: =VLOOKUP(A183,PrimeRate!$A$5:$B$976,2,0)-$F$6 -> 9.75
A184: 2037-10-31 | B184: 174 | C184: 977160.4729 | D184: 18970.33701 | E184: 0 | F184: 7939.428842 | G184: 11030.90817 | H184: 966129.5647 | I184: 0.4830647824 | J184: =VLOOKUP(A184,PrimeRate!$A$5:$B$976,2,0)-$F$6 -> 9.75
A185: 2037-11-30 | B185: 175 | C185: 966129.5647 | D185: 18970.33701 | E185: 0 | F185: 7849.802713 | G185: 11120.5343 | H185: 955009.0304 | I185: 0.4775045152 | J185: =VLOOKUP(A185,PrimeRate!$A$5:$B$976,2,0)-$F$6 -> 9.75
A186: 2037-12-31 | B186: 176 | C186: 955009.0304 | D186: 18970.33701 | E186: 0 | F186: 7759.448372 | G186: 11210.88864 | H186: 943798.1418 | I186: 0.4718990709 | J186: =VLOOKUP(A186,PrimeRate!$A$5:$B$976,2,0)-$F$6 -> 9.75
A187: 2038-01-31 | B187: 177 | C187: 943798.1418 | D187: 18970.33701 | E187: 0 | F187: 7668.359902 | G187: 11301.97711 | H187: 932496.1647 | I187: 0.4662480823 | J187: =VLOOKUP(A187,PrimeRate!$A$5:$B$976,2,0)-$F$6 -> 9.75
A188: 2038-02-28 | B188: 178 | C188: 932496.1647 | D188: 18970.33701 | E188: 0 | F188: 7576.531338 | G188: 11393.80567 | H188: 921102.359 | I188: 0.4605511795 | J188: =VLOOKUP(A188,PrimeRate!$A$5:$B$976,2,0)-$F$6 -> 9.75
A189: 2038-03-31 | B189: 179 | C189: 921102.359 | D189: 18970.33701 | E189: 0 | F189: 7483.956667 | G189: 11486.38034 | H189: 909615.9787 | I189: 0.4548079893 | J189: =VLOOKUP(A189,PrimeRate!$A$5:$B$976,2,0)-$F$6 -> 9.75
A190: 2038-04-30 | B190: 180 | C190: 909615.9787 | D190: 18970.33701 | E190: 0 | F190: 7390.629827 | G190: 11579.70718 | H190: 898036.2715 | I190: 0.4490181357 | J190: =VLOOKUP(A190,PrimeRate!$A$5:$B$976,2,0)-$F$6 -> 9.75
A191: 2038-05-31 | B191: 181 | C191: 898036.2715 | D191: 18970.33701 | E191: 0 | F191: 7296.544706 | G191: 11673.79231 | H191: 886362.4792 | I191: 0.4431812396 | J191: =VLOOKUP(A191,PrimeRate!$A$5:$B$976,2,0)-$F$6 -> 9.75
A192: 2038-06-30 | B192: 182 | C192: 886362.4792 | D192: 18970.33701 | E192: 0 | F192: 7201.695143 | G192: 11768.64187 | H192: 874593.8373 | I192: 0.4372969186 | J192: =VLOOKUP(A192,PrimeRate!$A$5:$B$976,2,0)-$F$6 -> 9.75
A193: 2038-07-31 | B193: 183 | C193: 874593.8373 | D193: 18970.33701 | E193: 0 | F193: 7106.074928 | G193: 11864.26208 | H193: 862729.5752 | I193: 0.4313647876 | J193: =VLOOKUP(A193,PrimeRate!$A$5:$B$976,2,0)-$F$6 -> 9.75
A194: 2038-08-31 | B194: 184 | C194: 862729.5752 | D194: 18970.33701 | E194: 0 | F194: 7009.677799 | G194: 11960.65921 | H194: 850768.916 | I194: 0.425384458 | J194: =VLOOKUP(A194,PrimeRate!$A$5:$B$976,2,0)-$F$6 -> 9.75
A195: 2038-09-30 | B195: 185 | C195: 850768.916 | D195: 18970.33701 | E195: 0 | F195: 6912.497443 | G195: 12057.83957 | H195: 838711.0764 | I195: 0.4193555382 | J195: =VLOOKUP(A195,PrimeRate!$A$5:$B$976,2,0)-$F$6 -> 9.75
A196: 2038-10-31 | B196: 186 | C196: 838711.0764 | D196: 18970.33701 | E196: 0 | F196: 6814.527496 | G196: 12155.80952 | H196: 826555.2669 | I196: 0.4132776335 | J196: =VLOOKUP(A196,PrimeRate!$A$5:$B$976,2,0)-$F$6 -> 9.75
A197: 2038-11-30 | B197: 187 | C197: 826555.2669 | D197: 18970.33701 | E197: 0 | F197: 6715.761544 | G197: 12254.57547 | H197: 814300.6914 | I197: 0.4071503457 | J197: =VLOOKUP(A197,PrimeRate!$A$5:$B$976,2,0)-$F$6 -> 9.75
A198: 2038-12-31 | B198: 188 | C198: 814300.6914 | D198: 18970.33701 | E198: 0 | F198: 6616.193118 | G198: 12354.14389 | H198: 801946.5476 | I198: 0.4009732738 | J198: =VLOOKUP(A198,PrimeRate!$A$5:$B$976,2,0)-$F$6 -> 9.75
A199: 2039-01-31 | B199: 189 | C199: 801946.5476 | D199: 18970.33701 | E199: 0 | F199: 6515.815699 | G199: 12454.52131 | H199: 789492.0262 | I199: 0.3947460131 | J199: =VLOOKUP(A199,PrimeRate!$A$5:$B$976,2,0)-$F$6 -> 9.75
A200: 2039-02-28 | B200: 190 | C200: 789492.0262 | D200: 18970.33701 | E200: 0 | F200: 6414.622713 | G200: 12555.7143 | H200: 776936.3119 | I200: 0.388468156 | J200: =VLOOKUP(A200,PrimeRate!$A$5:$B$976,2,0)-$F$6 -> 9.75
A201: 2039-03-31 | B201: 191 | C201: 776936.3119 | D201: 18970.33701 | E201: 0 | F201: 6312.607535 | G201: 12657.72948 | H201: 764278.5825 | I201: 0.3821392912 | J201: =VLOOKUP(A201,PrimeRate!$A$5:$B$976,2,0)-$F$6 -> 9.75
... 169 more rows

Sheet CashFlow (hidden)
A1: Property Investment
A2: Cash Flow Calculation
A3: © www.excel-skills.com
A4: Annual Capital Growth Rate | C4: 6 | D4: 6 | E4: 10 | F4: 10 | G4: 10 | H4: 10 | I4: 10 | J4: 10 | K4: 10 | L4: 10 | M4: 10 | N4: 10 | O4: 10 | P4: 10 | Q4: 10 | R4: 10 | S4: 10 | T4: 10 | U4: 10 | V4: 10
A5: Market Value | C5: =IF(C$8=0,0,Input!$B$6*(1+(C$4/100))) -> 2332000 | D5: =IF(D$8=0,0,C5*(1+(D$4/100))) -> 2471920 | E5: =IF(E$8=0,0,D5*(1+(E$4/100))) -> 2719112 | F5: 2991023.2 | G5: 3290125.52 | H5: 3619138.072 | I5: 3981051.879 | J5: 4379157.067 | K5: 4817072.774 | L5: 5298780.051 | M5: 5828658.056 | N5: 6411523.862 | O5: 7052676.248 | P5: 7757943.873 | Q5: 8533738.26 | R5: 9387112.086 | S5: 10325823.29 | T5: 11358405.62 | U5: 12494246.19 | V5: 13743670.81
A6: Outstanding Bond Amount | C6: =IF(C8=0,0,OFFSET(MonthAmort!$H$10,(B$8*12)+C9,0,1,1)) -> 1965856.935 | D6: =IF(D8=0,0,OFFSET(MonthAmort!$H$10,(C$8*12)+D9,0,1,1)) -> 1928232.055 | E6: =IF(E8=0,0,OFFSET(MonthAmort!$H$10,(D$8*12)+E9,0,1,1)) -> 1886770.294 | F6: =IF(F8=0,0,OFFSET(MonthAmort!$H$10,(E$8*12)+F9,0,1,1)) -> 1841080.378 | G6: =IF(G8=0,0,OFFSET(MonthAmort!$H$10,(F$8*12)+G9,0,1,1)) -> 1790731.131 | H6: =IF(H8=0,0,OFFSET(MonthAmort!$H$10,(G$8*12)+H9,0,1,1)) -> 1735247.409 | I6: =IF(I8=0,0,OFFSET(MonthAmort!$H$10,(H$8*12)+I9,0,1,1)) -> 1674105.61 | J6: =IF(J8=0,0,OFFSET(MonthAmort!$H$10,(I$8*12)+J9,0,1,1)) -> 1606728.741 | K6: =IF(K8=0,0,OFFSET(MonthAmort!$H$10,(J$8*12)+K9,0,1,1)) -> 1532480.967 | L6: =IF(L8=0,0,OFFSET(MonthAmort!$H$10,(K$8*12)+L9,0,1,1)) -> 1450661.61 | M6: =IF(M8=0,0,OFFSET(MonthAmort!$H$10,(L$8*12)+M9,0,1,1)) -> 1360498.543 | N6: =IF(N8=0,0,OFFSET(MonthAmort!$H$10,(M$8*12)+N9,0,1,1)) -> 1261140.897 | O6: =IF(O8=0,0,OFFSET(MonthAmort!$H$10,(N$8*12)+O9,0,1,1)) -> 1151651.035 | P6: =IF(P8=0,0,OFFSET(MonthAmort!$H$10,(O$8*12)+P9,0,1,1)) -> 1030995.701 | Q6: =IF(Q8=0,0,OFFSET(MonthAmort!$H$10,(P$8*12)+Q9,0,1,1)) -> 898036.2715 | R6: =IF(R8=0,0,OFFSET(MonthAmort!$H$10,(Q$8*12)+R9,0,1,1)) -> 751518.0089 | S6: =IF(S8=0,0,OFFSET(MonthAmort!$H$10,(R$8*12)+S9,0,1,1)) -> 590058.2214 | T6: =IF(T8=0,0,OFFSET(MonthAmort!$H$10,(S$8*12)+T9,0,1,1)) -> 412133.2135 | U6: =IF(U8=0,0,OFFSET(MonthAmort!$H$10,(T$8*12)+U9,0,1,1)) -> 216063.9081 | V6: =IF(V8=0,0,OFFSET(MonthAmort!$H$10,(U$8*12)+V9,0,1,1)) -> 0
A7: Equity 1 | C7: =C5-C6 -> 366143.0653 | D7: =D5-D6 -> 543687.9454 | E7: 832341.7062 | F7: 1149942.822 | G7: 1499394.389 | H7: 1883890.663 | I7: 2306946.269 | J7: 2772428.326 | K7: 3284591.807 | L7: 3848118.441 | M7: 4468159.513 | N7: 5150382.965 | O7: 5901025.213 | P7: 6726948.172 | Q7: 7635701.989 | R7: 8635594.077 | S7: 9735765.074 | T7: 10946272.41 | U7: 12278182.28 | V7: 13743670.81
A8: Year Number | B8: 0 | C8: =IF(Input!$B$42<=((COLUMN(B8)-COLUMN($B$8))*12),0,COLUMN(B8)-2+1) -> 1 | D8: =IF(Input!$B$42<=((COLUMN(C8)-COLUMN($B$8))*12),0,COLUMN(C8)-2+1) -> 2 | E8: =IF(Input!$B$42<=((COLUMN(D8)-COLUMN($B$8))*12),0,COLUMN(D8)-2+1) -> 3 | F8: =IF(Input!$B$42<=((COLUMN(E8)-COLUMN($B$8))*12),0,COLUMN(E8)-2+1) -> 4 | G8: =IF(Input!$B$42<=((COLUMN(F8)-COLUMN($B$8))*12),0,COLUMN(F8)-2+1) -> 5 | H8: =IF(Input!$B$42<=((COLUMN(G8)-COLUMN($B$8))*12),0,COLUMN(G8)-2+1) -> 6 | I8: =IF(Input!$B$42<=((COLUMN(H8)-COLUMN($B$8))*12),0,COLUMN(H8)-2+1) -> 7 | J8: =IF(Input!$B$42<=((COLUMN(I8)-COLUMN($B$8))*12),0,COLUMN(I8)-2+1) -> 8 | K8: =IF(Input!$B$42<=((COLUMN(J8)-COLUMN($B$8))*12),0,COLUMN(J8)-2+1) -> 9 | L8: =IF(Input!$B$42<=((COLUMN(K8)-COLUMN($B$8))*12),0,COLUMN(K8)-2+1) -> 10 | M8: =IF(Input!$B$42<=((COLUMN(L8)-COLUMN($B$8))*12),0,COLUMN(L8)-2+1) -> 11 | N8: =IF(Input!$B$42<=((COLUMN(M8)-COLUMN($B$8))*12),0,COLUMN(M8)-2+1) -> 12 | O8: =IF(Input!$B$42<=((COLUMN(N8)-COLUMN($B$8))*12),0,COLUMN(N8)-2+1) -> 13 | P8: =IF(Input!$B$42<=((COLUMN(O8)-COLUMN($B$8))*12),0,COLUMN(O8)-2+1) -> 14 | Q8: =IF(Input!$B$42<=((COLUMN(P8)-COLUMN($B$8))*12),0,COLUMN(P8)-2+1) -> 15 | R8: =IF(Input!$B$42<=((COLUMN(Q8)-COLUMN($B$8))*12),0,COLUMN(Q8)-2+1) -> 16 | S8: =IF(Input!$B$42<=((COLUMN(R8)-COLUMN($B$8))*12),0,COLUMN(R8)-2+1) -> 17 | T8: =IF(Input!$B$42<=((COLUMN(S8)-COLUMN($B$8))*12),0,COLUMN(S8)-2+1) -> 18 | U8: =IF(Input!$B$42<=((COLUMN(T8)-COLUMN($B$8))*12),0,COLUMN(T8)-2+1) -> 19 | V8: =IF(Input!$B$42<=((COLUMN(U8)-COLUMN($B$8))*12),0,COLUMN(U8)-2+1) -> 20
A9: Months in Year | B9: 0 | C9: =IF(Input!$B$42<=((COLUMN(B8)-COLUMN($B$8))*12),0,IF(AND(Input!$B$42>(B8*12),Input!$B$42<=(C8*12))=TRUE,Input!$B$42-(B8*12),12)) -> 12 | D9: =IF(Input!$B$42<=((COLUMN(C8)-COLUMN($B$8))*12),0,IF(AND(Input!$B$42>(C8*12),Input!$B$42<=(D8*12))=TRUE,Input!$B$42-(C8*12),12)) -> 12 | E9: =IF(Input!$B$42<=((COLUMN(D8)-COLUMN($B$8))*12),0,IF(AND(Input!$B$42>(D8*12),Input!$B$42<=(E8*12))=TRUE,Input!$B$42-(D8*12),12)) -> 12 | F9: =IF(Input!$B$42<=((COLUMN(E8)-COLUMN($B$8))*12),0,IF(AND(Input!$B$42>(E8*12),Input!$B$42<=(F8*12))=TRUE,Input!$B$42-(E8*12),12)) -> 12 | G9: =IF(Input!$B$42<=((COLUMN(F8)-COLUMN($B$8))*12),0,IF(AND(Input!$B$42>(F8*12),Input!$B$42<=(G8*12))=TRUE,Input!$B$42-(F8*12),12)) -> 12 | H9: =IF(Input!$B$42<=((COLUMN(G8)-COLUMN($B$8))*12),0,IF(AND(Input!$B$42>(G8*12),Input!$B$42<=(H8*12))=TRUE,Input!$B$42-(G8*12),12)) -> 12 | I9: =IF(Input!$B$42<=((COLUMN(H8)-COLUMN($B$8))*12),0,IF(AND(Input!$B$42>(H8*12),Input!$B$42<=(I8*12))=TRUE,Input!$B$42-(H8*12),12)) -> 12 | J9: =IF(Input!$B$42<=((COLUMN(I8)-COLUMN($B$8))*12),0,IF(AND(Input!$B$42>(I8*12),Input!$B$42<=(J8*12))=TRUE,Input!$B$42-(I8*12),12)) -> 12 | K9: =IF(Input!$B$42<=((COLUMN(J8)-COLUMN($B$8))*12),0,IF(AND(Input!$B$42>(J8*12),Input!$B$42<=(K8*12))=TRUE,Input!$B$42-(J8*12),12)) -> 12 | L9: =IF(Input!$B$42<=((COLUMN(K8)-COLUMN($B$8))*12),0,IF(AND(Input!$B$42>(K8*12),Input!$B$42<=(L8*12))=TRUE,Input!$B$42-(K8*12),12)) -> 12 | M9: =IF(Input!$B$42<=((COLUMN(L8)-COLUMN($B$8))*12),0,IF(AND(Input!$B$42>(L8*12),Input!$B$42<=(M8*12))=TRUE,Input!$B$42-(L8*12),12)) -> 12 | N9: =IF(Input!$B$42<=((COLUMN(M8)-COLUMN($B$8))*12),0,IF(AND(Input!$B$42>(M8*12),Input!$B$42<=(N8*12))=TRUE,Input!$B$42-(M8*12),12)) -> 12 | O9: =IF(Input!$B$42<=((COLUMN(N8)-COLUMN($B$8))*12),0,IF(AND(Input!$B$42>(N8*12),Input!$B$42<=(O8*12))=TRUE,Input!$B$42-(N8*12),12)) -> 12 | P9: =IF(Input!$B$42<=((COLUMN(O8)-COLUMN($B$8))*12),0,IF(AND(Input!$B$42>(O8*12),Input!$B$42<=(P8*12))=TRUE,Input!$B$42-(O8*12),12)) -> 12 | Q9: =IF(Input!$B$42<=((COLUMN(P8)-COLUMN($B$8))*12),0,IF(AND(Input!$B$42>(P8*12),Input!$B$42<=(Q8*12))=TRUE,Input!$B$42-(P8*12),12)) -> 12 | R9: =IF(Input!$B$42<=((COLUMN(Q8)-COLUMN($B$8))*12),0,IF(AND(Input!$B$42>(Q8*12),Input!$B$42<=(R8*12))=TRUE,Input!$B$42-(Q8*12),12)) -> 12 | S9: =IF(Input!$B$42<=((COLUMN(R8)-COLUMN($B$8))*12),0,IF(AND(Input!$B$42>(R8*12),Input!$B$42<=(S8*12))=TRUE,Input!$B$42-(R8*12),12)) -> 12 | T9: =IF(Input!$B$42<=((COLUMN(S8)-COLUMN($B$8))*12),0,IF(AND(Input!$B$42>(S8*12),Input!$B$42<=(T8*12))=TRUE,Input!$B$42-(S8*12),12)) -> 12 | U9: =IF(Input!$B$42<=((COLUMN(T8)-COLUMN($B$8))*12),0,IF(AND(Input!$B$42>(T8*12),Input!$B$42<=(U8*12))=TRUE,Input!$B$42-(T8*12),12)) -> 12 | V9: =IF(Input!$B$42<=((COLUMN(U8)-COLUMN($B$8))*12),0,IF(AND(Input!$B$42>(U8*12),Input!$B$42<=(V8*12))=TRUE,Input!$B$42-(U8*12),12)) -> 12
B10: =DATE(YEAR(Input!$B$5),MONTH(Input!$B$5)+1,0) -> 2023-04-30 | C10: =IF(C8=0,0,DATE(YEAR(B10),MONTH(B10)+C9,DAY(B10))) -> 2024-04-30 | D10: =IF(D8=0,0,DATE(YEAR(C10),MONTH(C10)+D9,DAY(C10))) -> 2025-04-30 | E10: 2026-04-30 | F10: 2027-04-30 | G10: 2028-04-30 | H10: 2029-04-30 | I10: 2030-04-30 | J10: 2031-04-30 | K10: 2032-04-30 | L10: 2033-04-30 | M10: =IF(M8=0,0,DATE(YEAR(L10),MONTH(L10)+M9,DAY(L10))) -> 2034-04-30 | N10: 2035-04-30 | O10: 2036-04-30 | P10: 2037-04-30 | Q10: 2038-04-30 | R10: 2039-04-30 | S10: 2040-04-30 | T10: 2041-04-30 | U10: 2042-04-30 | V10: 2043-04-30
A11: Transfer Costs | B11: =-SUM(Input!$F$12:$F$14) -> -97700 | C11: 0 | D11: 0 | E11: 0 | F11: 0 | G11: 0 | H11: 0 | I11: 0 | J11: 0 | K11: 0 | L11: 0 | M11: 0 | N11: 0 | O11: 0 | P11: 0 | Q11: 0 | R11: 0 | S11: 0 | T11: 0 | U11: 0 | V11: 0
A12: Bond Costs | B12: =-SUM(Input!$F$15:$F$17) -> -43794.5 | C12: 0 | D12: 0 | E12: 0 | F12: 0 | G12: 0 | H12: 0 | I12: 0 | J12: 0 | K12: 0 | L12: 0 | M12: 0 | N12: 0 | O12: 0 | P12: 0 | Q12: 0 | R12: 0 | S12: 0 | T12: 0 | U12: 0 | V12: 0
A13: Deposit Amount | B13: =-Input!$B$7+(Input!B6-Input!$F$6) -> -200000 | C13: 0 | D13: 0 | E13: 0 | F13: 0 | G13: 0 | H13: 0 | I13: 0 | J13: 0 | K13: 0 | L13: 0 | M13: 0 | N13: 0 | O13: 0 | P13: 0 | Q13: 0 | R13: 0 | S13: 0 | T13: 0 | U13: 0 | V13: 0
A14: Initial Renovation Costs | B14: =-Input!$B$10 -> 0 | C14: 0 | D14: 0 | E14: 0 | F14: 0 | G14: 0 | H14: 0 | I14: 0 | J14: 0 | K14: 0 | L14: 0 | M14: 0 | N14: 0 | O14: 0 | P14: 0 | Q14: 0 | R14: 0 | S14: 0 | T14: 0 | U14: 0 | V14: 0
A15: Rent Income | B15: 0 | C15: =Input!$B$19*C$9*Input!$B$20*((1+Input!$B$21)^B$8)+IF(Input!$B$23>B$8*12,IF(Input!$B$23-(B$8*12)>C$9,C$9*Input!$B$22,(Input!$B$23-(B$8*12))*Input!$B$22),0) -> 168000 | D15: =Input!$B$19*D$9*Input!$B$20*((1+Input!$B$21)^C$8)+IF(Input!$B$23>C$8*12,IF(Input!$B$23-(C$8*12)>D$9,D$9*Input!$B$22,(Input!$B$23-(C$8*12))*Input!$B$22),0) -> 184800 | E15: =Input!$B$19*E$9*Input!$B$20*((1+Input!$B$21)^D$8)+IF(Input!$B$23>D$8*12,IF(Input!$B$23-(D$8*12)>E$9,E$9*Input!$B$22,(Input!$B$23-(D$8*12))*Input!$B$22),0) -> 203280 | F15: =Input!$B$19*F$9*Input!$B$20*((1+Input!$B$21)^E$8)+IF(Input!$B$23>E$8*12,IF(Input!$B$23-(E$8*12)>F$9,F$9*Input!$B$22,(Input!$B$23-(E$8*12))*Input!$B$22),0) -> 223608 | G15: =Input!$B$19*G$9*Input!$B$20*((1+Input!$B$21)^F$8)+IF(Input!$B$23>F$8*12,IF(Input!$B$23-(F$8*12)>G$9,G$9*Input!$B$22,(Input!$B$23-(F$8*12))*Input!$B$22),0) -> 245968.8 | H15: =Input!$B$19*H$9*Input!$B$20*((1+Input!$B$21)^G$8)+IF(Input!$B$23>G$8*12,IF(Input!$B$23-(G$8*12)>H$9,H$9*Input!$B$22,(Input!$B$23-(G$8*12))*Input!$B$22),0) -> 270565.68 | I15: =Input!$B$19*I$9*Input!$B$20*((1+Input!$B$21)^H$8)+IF(Input!$B$23>H$8*12,IF(Input!$B$23-(H$8*12)>I$9,I$9*Input!$B$22,(Input!$B$23-(H$8*12))*Input!$B$22),0) -> 297622.248 | J15: =Input!$B$19*J$9*Input!$B$20*((1+Input!$B$21)^I$8)+IF(Input!$B$23>I$8*12,IF(Input!$B$23-(I$8*12)>J$9,J$9*Input!$B$22,(Input!$B$23-(I$8*12))*Input!$B$22),0) -> 327384.4728 | K15: =Input!$B$19*K$9*Input!$B$20*((1+Input!$B$21)^J$8)+IF(Input!$B$23>J$8*12,IF(Input!$B$23-(J$8*12)>K$9,K$9*Input!$B$22,(Input!$B$23-(J$8*12))*Input!$B$22),0) -> 360122.9201 | L15: =Input!$B$19*L$9*Input!$B$20*((1+Input!$B$21)^K$8)+IF(Input!$B$23>K$8*12,IF(Input!$B$23-(K$8*12)>L$9,L$9*Input!$B$22,(Input!$B$23-(K$8*12))*Input!$B$22),0) -> 396135.2121 | M15: =Input!$B$19*M$9*Input!$B$20*((1+Input!$B$21)^L$8)+IF(Input!$B$23>L$8*12,IF(Input!$B$23-(L$8*12)>M$9,M$9*Input!$B$22,(Input!$B$23-(L$8*12))*Input!$B$22),0) -> 435748.7333 | N15: =Input!$B$19*N$9*Input!$B$20*((1+Input!$B$21)^M$8)+IF(Input!$B$23>M$8*12,IF(Input!$B$23-(M$8*12)>N$9,N$9*Input!$B$22,(Input!$B$23-(M$8*12))*Input!$B$22),0) -> 479323.6066 | O15: =Input!$B$19*O$9*Input!$B$20*((1+Input!$B$21)^N$8)+IF(Input!$B$23>N$8*12,IF(Input!$B$23-(N$8*12)>O$9,O$9*Input!$B$22,(Input!$B$23-(N$8*12))*Input!$B$22),0) -> 527255.9673 | P15: =Input!$B$19*P$9*Input!$B$20*((1+Input!$B$21)^O$8)+IF(Input!$B$23>O$8*12,IF(Input!$B$23-(O$8*12)>P$9,P$9*Input!$B$22,(Input!$B$23-(O$8*12))*Input!$B$22),0) -> 579981.564 | Q15: =Input!$B$19*Q$9*Input!$B$20*((1+Input!$B$21)^P$8)+IF(Input!$B$23>P$8*12,IF(Input!$B$23-(P$8*12)>Q$9,Q$9*Input!$B$22,(Input!$B$23-(P$8*12))*Input!$B$22),0) -> 637979.7204 | R15: =Input!$B$19*R$9*Input!$B$20*((1+Input!$B$21)^Q$8)+IF(Input!$B$23>Q$8*12,IF(Input!$B$23-(Q$8*12)>R$9,R$9*Input!$B$22,(Input!$B$23-(Q$8*12))*Input!$B$22),0) -> 701777.6925 | S15: =Input!$B$19*S$9*Input!$B$20*((1+Input!$B$21)^R$8)+IF(Input!$B$23>R$8*12,IF(Input!$B$23-(R$8*12)>S$9,S$9*Input!$B$22,(Input!$B$23-(R$8*12))*Input!$B$22),0) -> 771955.4617 | T15: =Input!$B$19*T$9*Input!$B$20*((1+Input!$B$21)^S$8)+IF(Input!$B$23>S$8*12,IF(Input!$B$23-(S$8*12)>T$9,T$9*Input!$B$22,(Input!$B$23-(S$8*12))*Input!$B$22),0) -> 849151.0079 | U15: =Input!$B$19*U$9*Input!$B$20*((1+Input!$B$21)^T$8)+IF(Input!$B$23>T$8*12,IF(Input!$B$23-(T$8*12)>U$9,U$9*Input!$B$22,(Input!$B$23-(T$8*12))*Input!$B$22),0) -> 934066.1087 | V15: =Input!$B$19*V$9*Input!$B$20*((1+Input!$B$21)^U$8)+IF(Input!$B$23>U$8*12,IF(Input!$B$23-(U$8*12)>V$9,V$9*Input!$B$22,(Input!$B$23-(U$8*12))*Input!$B$22),0) -> 1027472.72
A16: Property Management Fee | B16: 0 | C16: =-Input!$B$19*C$9*Input!$B$25*((1+Input!$B$21)^B$8) -> -11760 | D16: =-Input!$B$19*D$9*Input!$B$25*((1+Input!$B$21)^C$8) -> -12936 | E16: =-Input!$B$19*E$9*Input!$B$25*((1+Input!$B$21)^D$8) -> -14229.6 | F16: =-Input!$B$19*F$9*Input!$B$25*((1+Input!$B$21)^E$8) -> -15652.56 | G16: =-Input!$B$19*G$9*Input!$B$25*((1+Input!$B$21)^F$8) -> -17217.816 | H16: =-Input!$B$19*H$9*Input!$B$25*((1+Input!$B$21)^G$8) -> -18939.5976 | I16: =-Input!$B$19*I$9*Input!$B$25*((1+Input!$B$21)^H$8) -> -20833.55736 | J16: =-Input!$B$19*J$9*Input!$B$25*((1+Input!$B$21)^I$8) -> -22916.9131 | K16: =-Input!$B$19*K$9*Input!$B$25*((1+Input!$B$21)^J$8) -> -25208.60441 | L16: =-Input!$B$19*L$9*Input!$B$25*((1+Input!$B$21)^K$8) -> -27729.46485 | M16: =-Input!$B$19*M$9*Input!$B$25*((1+Input!$B$21)^L$8) -> -30502.41133 | N16: =-Input!$B$19*N$9*Input!$B$25*((1+Input!$B$21)^M$8) -> -33552.65246 | O16: =-Input!$B$19*O$9*Input!$B$25*((1+Input!$B$21)^N$8) -> -36907.91771 | P16: =-Input!$B$19*P$9*Input!$B$25*((1+Input!$B$21)^O$8) -> -40598.70948 | Q16: =-Input!$B$19*Q$9*Input!$B$25*((1+Input!$B$21)^P$8) -> -44658.58043 | R16: =-Input!$B$19*R$9*Input!$B$25*((1+Input!$B$21)^Q$8) -> -49124.43847 | S16: =-Input!$B$19*S$9*Input!$B$25*((1+Input!$B$21)^R$8) -> -54036.88232 | T16: =-Input!$B$19*T$9*Input!$B$25*((1+Input!$B$21)^S$8) -> -59440.57055 | U16: =-Input!$B$19*U$9*Input!$B$25*((1+Input!$B$21)^T$8) -> -65384.62761 | V16: =-Input!$B$19*V$9*Input!$B$25*((1+Input!$B$21)^U$8) -> -71923.09037
A17: Rates | B17: 0 | C17: =-Input!$B$26/12*C$9*((1+Input!$B$31)^B$8) -> -25000 | D17: =-Input!$B$26/12*D$9*((1+Input!$B$31)^C$8) -> -26500 | E17: =-Input!$B$26/12*E$9*((1+Input!$B$31)^D$8) -> -28090 | F17: =-Input!$B$26/12*F$9*((1+Input!$B$31)^E$8) -> -29775.4 | G17: =-Input!$B$26/12*G$9*((1+Input!$B$31)^F$8) -> -31561.924 | H17: =-Input!$B$26/12*H$9*((1+Input!$B$31)^G$8) -> -33455.63944 | I17: =-Input!$B$26/12*I$9*((1+Input!$B$31)^H$8) -> -35462.97781 | J17: =-Input!$B$26/12*J$9*((1+Input!$B$31)^I$8) -> -37590.75647 | K17: =-Input!$B$26/12*K$9*((1+Input!$B$31)^J$8) -> -39846.20186 | L17: =-Input!$B$26/12*L$9*((1+Input!$B$31)^K$8) -> -42236.97398 | M17: =-Input!$B$26/12*M$9*((1+Input!$B$31)^L$8) -> -44771.19241 | N17: =-Input!$B$26/12*N$9*((1+Input!$B$31)^M$8) -> -47457.46396 | O17: =-Input!$B$26/12*O$9*((1+Input!$B$31)^N$8) -> -50304.9118 | P17: =-Input!$B$26/12*P$9*((1+Input!$B$31)^O$8) -> -53323.2065 | Q17: =-Input!$B$26/12*Q$9*((1+Input!$B$31)^P$8) -> -56522.59889 | R17: =-Input!$B$26/12*R$9*((1+Input!$B$31)^Q$8) -> -59913.95483 | S17: =-Input!$B$26/12*S$9*((1+Input!$B$31)^R$8) -> -63508.79212 | T17: =-Input!$B$26/12*T$9*((1+Input!$B$31)^S$8) -> -67319.31964 | U17: =-Input!$B$26/12*U$9*((1+Input!$B$31)^T$8) -> -71358.47882 | V17: =-Input!$B$26/12*V$9*((1+Input!$B$31)^U$8) -> -75639.98755
A18: Levies | B18: 0 | C18: =-Input!$B$27/12*C$9*((1+Input!$B$31)^B$8) -> -4800 | D18: =-Input!$B$27/12*D$9*((1+Input!$B$31)^C$8) -> -5088 | E18: =-Input!$B$27/12*E$9*((1+Input!$B$31)^D$8) -> -5393.28 | F18: =-Input!$B$27/12*F$9*((1+Input!$B$31)^E$8) -> -5716.8768 | G18: =-Input!$B$27/12*G$9*((1+Input!$B$31)^F$8) -> -6059.889408 | H18: =-Input!$B$27/12*H$9*((1+Input!$B$31)^G$8) -> -6423.482772 | I18: =-Input!$B$27/12*I$9*((1+Input!$B$31)^H$8) -> -6808.891739 | J18: =-Input!$B$27/12*J$9*((1+Input!$B$31)^I$8) -> -7217.425243 | K18: =-Input!$B$27/12*K$9*((1+Input!$B$31)^J$8) -> -7650.470758 | L18: =-Input!$B$27/12*L$9*((1+Input!$B$31)^K$8) -> -8109.499003 | M18: =-Input!$B$27/12*M$9*((1+Input!$B$31)^L$8) -> -8596.068943 | N18: =-Input!$B$27/12*N$9*((1+Input!$B$31)^M$8) -> -9111.83308 | O18: =-Input!$B$27/12*O$9*((1+Input!$B$31)^N$8) -> -9658.543065 | P18: =-Input!$B$27/12*P$9*((1+Input!$B$31)^O$8) -> -10238.05565 | Q18: =-Input!$B$27/12*Q$9*((1+Input!$B$31)^P$8) -> -10852.33899 | R18: =-Input!$B$27/12*R$9*((1+Input!$B$31)^Q$8) -> -11503.47933 | S18: =-Input!$B$27/12*S$9*((1+Input!$B$31)^R$8) -> -12193.68809 | T18: =-Input!$B$27/12*T$9*((1+Input!$B$31)^S$8) -> -12925.30937 | U18: =-Input!$B$27/12*U$9*((1+Input!$B$31)^T$8) -> -13700.82793 | V18: =-Input!$B$27/12*V$9*((1+Input!$B$31)^U$8) -> -14522.87761
A19: Repairs and Maintenance | B19: 0 | C19: =-Input!$B$28/12*C$9*((1+Input!$B$31)^B$8) -> -5000 | D19: =-Input!$B$28/12*D$9*((1+Input!$B$31)^C$8) -> -5300 | E19: =-Input!$B$28/12*E$9*((1+Input!$B$31)^D$8) -> -5618 | F19: =-Input!$B$28/12*F$9*((1+Input!$B$31)^E$8) -> -5955.08 | G19: =-Input!$B$28/12*G$9*((1+Input!$B$31)^F$8) -> -6312.3848 | H19: =-Input!$B$28/12*H$9*((1+Input!$B$31)^G$8) -> -6691.127888 | I19: =-Input!$B$28/12*I$9*((1+Input!$B$31)^H$8) -> -7092.595561 | J19: =-Input!$B$28/12*J$9*((1+Input!$B$31)^I$8) -> -7518.151295 | K19: =-Input!$B$28/12*K$9*((1+Input!$B$31)^J$8) -> -7969.240373 | L19: =-Input!$B$28/12*L$9*((1+Input!$B$31)^K$8) -> -8447.394795 | M19: =-Input!$B$28/12*M$9*((1+Input!$B$31)^L$8) -> -8954.238483 | N19: =-Input!$B$28/12*N$9*((1+Input!$B$31)^M$8) -> -9491.492792 | O19: =-Input!$B$28/12*O$9*((1+Input!$B$31)^N$8) -> -10060.98236 | P19: =-Input!$B$28/12*P$9*((1+Input!$B$31)^O$8) -> -10664.6413 | Q19: =-Input!$B$28/12*Q$9*((1+Input!$B$31)^P$8) -> -11304.51978 | R19: =-Input!$B$28/12*R$9*((1+Input!$B$31)^Q$8) -> -11982.79097 | S19: =-Input!$B$28/12*S$9*((1+Input!$B$31)^R$8) -> -12701.75842 | T19: =-Input!$B$28/12*T$9*((1+Input!$B$31)^S$8) -> -13463.86393 | U19: =-Input!$B$28/12*U$9*((1+Input!$B$31)^T$8) -> -14271.69576 | V19: =-Input!$B$28/12*V$9*((1+Input!$B$31)^U$8) -> -15127.99751
A20: Insurance | B20: 0 | C20: =-Input!$B$29/12*C$9*((1+Input!$B$31)^B$8) -> -1200 | D20: =-Input!$B$29/12*D$9*((1+Input!$B$31)^C$8) -> -1272 | E20: =-Input!$B$29/12*E$9*((1+Input!$B$31)^D$8) -> -1348.32 | F20: =-Input!$B$29/12*F$9*((1+Input!$B$31)^E$8) -> -1429.2192 | G20: =-Input!$B$29/12*G$9*((1+Input!$B$31)^F$8) -> -1514.972352 | H20: =-Input!$B$29/12*H$9*((1+Input!$B$31)^G$8) -> -1605.870693 | I20: =-Input!$B$29/12*I$9*((1+Input!$B$31)^H$8) -> -1702.222935 | J20: =-Input!$B$29/12*J$9*((1+Input!$B$31)^I$8) -> -1804.356311 | K20: =-Input!$B$29/12*K$9*((1+Input!$B$31)^J$8) -> -1912.617689 | L20: =-Input!$B$29/12*L$9*((1+Input!$B$31)^K$8) -> -2027.374751 | M20: =-Input!$B$29/12*M$9*((1+Input!$B$31)^L$8) -> -2149.017236 | N20: =-Input!$B$29/12*N$9*((1+Input!$B$31)^M$8) -> -2277.95827 | O20: =-Input!$B$29/12*O$9*((1+Input!$B$31)^N$8) -> -2414.635766 | P20: =-Input!$B$29/12*P$9*((1+Input!$B$31)^O$8) -> -2559.513912 | Q20: =-Input!$B$29/12*Q$9*((1+Input!$B$31)^P$8) -> -2713.084747 | R20: =-Input!$B$29/12*R$9*((1+Input!$B$31)^Q$8) -> -2875.869832 | S20: =-Input!$B$29/12*S$9*((1+Input!$B$31)^R$8) -> -3048.422022 | T20: =-Input!$B$29/12*T$9*((1+Input!$B$31)^S$8) -> -3231.327343 | U20: =-Input!$B$29/12*U$9*((1+Input!$B$31)^T$8) -> -3425.206983 | V20: =-Input!$B$29/12*V$9*((1+Input!$B$31)^U$8) -> -3630.719403
A21: Other Annual Operational Costs | C21: =-Input!$B$30/12*C$9*((1+Input!$B$31)^B$8) -> -600 | D21: =-Input!$B$30/12*D$9*((1+Input!$B$31)^C$8) -> -636 | E21: =-Input!$B$30/12*E$9*((1+Input!$B$31)^D$8) -> -674.16 | F21: =-Input!$B$30/12*F$9*((1+Input!$B$31)^E$8) -> -714.6096 | G21: =-Input!$B$30/12*G$9*((1+Input!$B$31)^F$8) -> -757.486176 | H21: =-Input!$B$30/12*H$9*((1+Input!$B$31)^G$8) -> -802.9353466 | I21: =-Input!$B$30/12*I$9*((1+Input!$B$31)^H$8) -> -851.1114674 | J21: =-Input!$B$30/12*J$9*((1+Input!$B$31)^I$8) -> -902.1781554 | K21: =-Input!$B$30/12*K$9*((1+Input!$B$31)^J$8) -> -956.3088447 | L21: =-Input!$B$30/12*L$9*((1+Input!$B$31)^K$8) -> -1013.687375 | M21: =-Input!$B$30/12*M$9*((1+Input!$B$31)^L$8) -> -1074.508618 | N21: =-Input!$B$30/12*N$9*((1+Input!$B$31)^M$8) -> -1138.979135 | O21: =-Input!$B$30/12*O$9*((1+Input!$B$31)^N$8) -> -1207.317883 | P21: =-Input!$B$30/12*P$9*((1+Input!$B$31)^O$8) -> -1279.756956 | Q21: =-Input!$B$30/12*Q$9*((1+Input!$B$31)^P$8) -> -1356.542373 | R21: =-Input!$B$30/12*R$9*((1+Input!$B$31)^Q$8) -> -1437.934916 | S21: =-Input!$B$30/12*S$9*((1+Input!$B$31)^R$8) -> -1524.211011 | T21: =-Input!$B$30/12*T$9*((1+Input!$B$31)^S$8) -> -1615.663671 | U21: =-Input!$B$30/12*U$9*((1+Input!$B$31)^T$8) -> -1712.603492 | V21: =-Input!$B$30/12*V$9*((1+Input!$B$31)^U$8) -> -1815.359701
A22: Income Tax | B22: 0 | C22: =IF(C8=0,0,-(SUM(C15:C21)-SUM(OFFSET(MonthAmort!$F$10,1+(B$8*12),0,C9,1)))*Input!$B$38) -> 22158.29367 | D22: =IF(D8=0,0,-(SUM(D15:D21)-SUM(OFFSET(MonthAmort!$F$10,1+(C$8*12),0,D9,1)))*Input!$B$38) -> 17085.34921 | E22: =IF(E8=0,0,-(SUM(E15:E21)-SUM(OFFSET(MonthAmort!$F$10,1+(D$8*12),0,E9,1)))*Input!$B$38) -> 11476.69301 | F22: =IF(F8=0,0,-(SUM(F15:F21)-SUM(OFFSET(MonthAmort!$F$10,1+(E$8*12),0,F9,1)))*Input!$B$38) -> 5276.962158 | G22: =IF(G8=0,0,-(SUM(G15:G21)-SUM(OFFSET(MonthAmort!$F$10,1+(F$8*12),0,G9,1)))*Input!$B$38) -> -1574.858878 | H22: =IF(H8=0,0,-(SUM(H15:H21)-SUM(OFFSET(MonthAmort!$F$10,1+(G$8*12),0,H9,1)))*Input!$B$38) -> -9146.011428 | I22: =IF(I8=0,0,-(SUM(I15:I21)-SUM(OFFSET(MonthAmort!$F$10,1+(H$8*12),0,I9,1)))*Input!$B$38) -> -17510.59362 | J22: =IF(J8=0,0,-(SUM(J15:J21)-SUM(OFFSET(MonthAmort!$F$10,1+(I$8*12),0,J9,1)))*Input!$B$38) -> -26750.25513 | K22: =IF(K8=0,0,-(SUM(K15:K21)-SUM(OFFSET(MonthAmort!$F$10,1+(J$8*12),0,K9,1)))*Input!$B$38) -> -36954.96204 | L22: =IF(L8=0,0,-(SUM(L15:L21)-SUM(OFFSET(MonthAmort!$F$10,1+(K$8*12),0,L9,1)))*Input!$B$38) -> -48223.8389 | M22: =IF(M8=0,0,-(SUM(M15:M21)-SUM(OFFSET(MonthAmort!$F$10,1+(L$8*12),0,M9,1)))*Input!$B$38) -> -60666.09572 | N22: =IF(N8=0,0,-(SUM(N15:N21)-SUM(OFFSET(MonthAmort!$F$10,1+(M$8*12),0,N9,1)))*Input!$B$38) -> -74402.04859 | O22: =IF(O8=0,0,-(SUM(O15:O21)-SUM(OFFSET(MonthAmort!$F$10,1+(N$8*12),0,O9,1)))*Input!$B$38) -> -89564.24306 | P22: =IF(P8=0,0,-(SUM(P15:P21)-SUM(OFFSET(MonthAmort!$F$10,1+(O$8*12),0,P9,1)))*Input!$B$38) -> -106298.691 | Q22: =IF(Q8=0,0,-(SUM(Q15:Q21)-SUM(OFFSET(MonthAmort!$F$10,1+(P$8*12),0,Q9,1)))*Input!$B$38) -> -124766.2322 | R22: =IF(R8=0,0,-(SUM(R15:R21)-SUM(OFFSET(MonthAmort!$F$10,1+(Q$8*12),0,R9,1)))*Input!$B$38) -> -145144.0328 | S22: =IF(S8=0,0,-(SUM(S15:S21)-SUM(OFFSET(MonthAmort!$F$10,1+(R$8*12),0,S9,1)))*Input!$B$38) -> -167627.2354 | T22: =IF(T8=0,0,-(SUM(T15:T21)-SUM(OFFSET(MonthAmort!$F$10,1+(S$8*12),0,T9,1)))*Input!$B$38) -> -192430.7751 | U22: =IF(U8=0,0,-(SUM(U15:U21)-SUM(OFFSET(MonthAmort!$F$10,1+(T$8*12),0,U9,1)))*Input!$B$38) -> -219791.3788 | V22: =IF(V8=0,0,-(SUM(V15:V21)-SUM(OFFSET(MonthAmort!$F$10,1+(U$8*12),0,V9,1)))*Input!$B$38) -> -249969.7654
A23: Bond Repayments | B23: 0 | C23: =IF(C8=0,0,-SUM(OFFSET(MonthAmort!$D$10,1+(B$8*12),0,C9,2))) -> -227644.0441 | D23: =IF(D8=0,0,-SUM(OFFSET(MonthAmort!$D$10,1+(C$8*12),0,D9,2))) -> -227644.0441 | E23: =IF(E8=0,0,-SUM(OFFSET(MonthAmort!$D$10,1+(D$8*12),0,E9,2))) -> -227644.0441 | F23: =IF(F8=0,0,-SUM(OFFSET(MonthAmort!$D$10,1+(E$8*12),0,F9,2))) -> -227644.0441 | G23: =IF(G8=0,0,-SUM(OFFSET(MonthAmort!$D$10,1+(F$8*12),0,G9,2))) -> -227644.0441 | H23: =IF(H8=0,0,-SUM(OFFSET(MonthAmort!$D$10,1+(G$8*12),0,H9,2))) -> -227644.0441 | I23: =IF(I8=0,0,-SUM(OFFSET(MonthAmort!$D$10,1+(H$8*12),0,I9,2))) -> -227644.0441 | J23: =IF(J8=0,0,-SUM(OFFSET(MonthAmort!$D$10,1+(I$8*12),0,J9,2))) -> -227644.0441 | K23: =IF(K8=0,0,-SUM(OFFSET(MonthAmort!$D$10,1+(J$8*12),0,K9,2))) -> -227644.0441 | L23: =IF(L8=0,0,-SUM(OFFSET(MonthAmort!$D$10,1+(K$8*12),0,L9,2))) -> -227644.0441 | M23: =IF(M8=0,0,-SUM(OFFSET(MonthAmort!$D$10,1+(L$8*12),0,M9,2))) -> -227644.0441 | N23: =IF(N8=0,0,-SUM(OFFSET(MonthAmort!$D$10,1+(M$8*12),0,N9,2))) -> -227644.0441 | O23: =IF(O8=0,0,-SUM(OFFSET(MonthAmort!$D$10,1+(N$8*12),0,O9,2))) -> -227644.0441 | P23: =IF(P8=0,0,-SUM(OFFSET(MonthAmort!$D$10,1+(O$8*12),0,P9,2))) -> -227644.0441 | Q23: =IF(Q8=0,0,-SUM(OFFSET(MonthAmort!$D$10,1+(P$8*12),0,Q9,2))) -> -227644.0441 | R23: =IF(R8=0,0,-SUM(OFFSET(MonthAmort!$D$10,1+(Q$8*12),0,R9,2))) -> -227644.0441 | S23: =IF(S8=0,0,-SUM(OFFSET(MonthAmort!$D$10,1+(R$8*12),0,S9,2))) -> -227644.0441 | T23: =IF(T8=0,0,-SUM(OFFSET(MonthAmort!$D$10,1+(S$8*12),0,T9,2))) -> -227644.0441 | U23: =IF(U8=0,0,-SUM(OFFSET(MonthAmort!$D$10,1+(T$8*12),0,U9,2))) -> -227644.0441 | V23: =IF(V8=0,0,-SUM(OFFSET(MonthAmort!$D$10,1+(U$8*12),0,V9,2))) -> -227644.0441
A24: Selling Price | B24: 0 | C24: =IF(C$8=0,0,IF(SUM($C$9:C$9)=Input!$B$42,IF(Input!$E$6=TRUE,C$5/(1+Variables!$C$62),C$5),0)) -> 0 | D24: =IF(D$8=0,0,IF(SUM($C$9:D$9)=Input!$B$42,IF(Input!$E$6=TRUE,D$5/(1+Variables!$C$62),D$5),0)) -> 0 | E24: =IF(E$8=0,0,IF(SUM($C$9:E$9)=Input!$B$42,IF(Input!$E$6=TRUE,E$5/(1+Variables!$C$62),E$5),0)) -> 0 | F24: =IF(F$8=0,0,IF(SUM($C$9:F$9)=Input!$B$42,IF(Input!$E$6=TRUE,F$5/(1+Variables!$C$62),F$5),0)) -> 0 | G24: =IF(G$8=0,0,IF(SUM($C$9:G$9)=Input!$B$42,IF(Input!$E$6=TRUE,G$5/(1+Variables!$C$62),G$5),0)) -> 0 | H24: =IF(H$8=0,0,IF(SUM($C$9:H$9)=Input!$B$42,IF(Input!$E$6=TRUE,H$5/(1+Variables!$C$62),H$5),0)) -> 0 | I24: =IF(I$8=0,0,IF(SUM($C$9:I$9)=Input!$B$42,IF(Input!$E$6=TRUE,I$5/(1+Variables!$C$62),I$5),0)) -> 0 | J24: =IF(J$8=0,0,IF(SUM($C$9:J$9)=Input!$B$42,IF(Input!$E$6=TRUE,J$5/(1+Variables!$C$62),J$5),0)) -> 0 | K24: =IF(K$8=0,0,IF(SUM($C$9:K$9)=Input!$B$42,IF(Input!$E$6=TRUE,K$5/(1+Variables!$C$62),K$5),0)) -> 0 | L24: =IF(L$8=0,0,IF(SUM($C$9:L$9)=Input!$B$42,IF(Input!$E$6=TRUE,L$5/(1+Variables!$C$62),L$5),0)) -> 0 | M24: =IF(M$8=0,0,IF(SUM($C$9:M$9)=Input!$B$42,IF(Input!$E$6=TRUE,M$5/(1+Variables!$C$62),M$5),0)) -> 0 | N24: =IF(N$8=0,0,IF(SUM($C$9:N$9)=Input!$B$42,IF(Input!$E$6=TRUE,N$5/(1+Variables!$C$62),N$5),0)) -> 0 | O24: =IF(O$8=0,0,IF(SUM($C$9:O$9)=Input!$B$42,IF(Input!$E$6=TRUE,O$5/(1+Variables!$C$62),O$5),0)) -> 0 | P24: =IF(P$8=0,0,IF(SUM($C$9:P$9)=Input!$B$42,IF(Input!$E$6=TRUE,P$5/(1+Variables!$C$62),P$5),0)) -> 0 | Q24: =IF(Q$8=0,0,IF(SUM($C$9:Q$9)=Input!$B$42,IF(Input!$E$6=TRUE,Q$5/(1+Variables!$C$62),Q$5),0)) -> 0 | R24: =IF(R$8=0,0,IF(SUM($C$9:R$9)=Input!$B$42,IF(Input!$E$6=TRUE,R$5/(1+Variables!$C$62),R$5),0)) -> 0 | S24: =IF(S$8=0,0,IF(SUM($C$9:S$9)=Input!$B$42,IF(Input!$E$6=TRUE,S$5/(1+Variables!$C$62),S$5),0)) -> 0 | T24: =IF(T$8=0,0,IF(SUM($C$9:T$9)=Input!$B$42,IF(Input!$E$6=TRUE,T$5/(1+Variables!$C$62),T$5),0)) -> 0 | U24: =IF(U$8=0,0,IF(SUM($C$9:U$9)=Input!$B$42,IF(Input!$E$6=TRUE,U$5/(1+Variables!$C$62),U$5),0)) -> 0 | V24: =IF(V$8=0,0,IF(SUM($C$9:V$9)=Input!$B$42,IF(Input!$E$6=TRUE,V$5/(1+Variables!$C$62),V$5),0)) -> 13743670.81
A25: Selling Costs | B25: 0 | C25: =IF(C$8=0,0,IF(SUM($C$9:C$9)=Input!$B$42,-(C$24*Input!$B$33)-(Input!$B$34*((1+Input!$B$31)^B8)),0)) -> 0 | D25: =IF(D$8=0,0,IF(SUM($C$9:D$9)=Input!$B$42,-(D$24*Input!$B$33)-(Input!$B$34*((1+Input!$B$31)^C8)),0)) -> 0 | E25: =IF(E$8=0,0,IF(SUM($C$9:E$9)=Input!$B$42,-(E$24*Input!$B$33)-(Input!$B$34*((1+Input!$B$31)^D8)),0)) -> 0 | F25: =IF(F$8=0,0,IF(SUM($C$9:F$9)=Input!$B$42,-(F$24*Input!$B$33)-(Input!$B$34*((1+Input!$B$31)^E8)),0)) -> 0 | G25: =IF(G$8=0,0,IF(SUM($C$9:G$9)=Input!$B$42,-(G$24*Input!$B$33)-(Input!$B$34*((1+Input!$B$31)^F8)),0)) -> 0 | H25: =IF(H$8=0,0,IF(SUM($C$9:H$9)=Input!$B$42,-(H$24*Input!$B$33)-(Input!$B$34*((1+Input!$B$31)^G8)),0)) -> 0 | I25: =IF(I$8=0,0,IF(SUM($C$9:I$9)=Input!$B$42,-(I$24*Input!$B$33)-(Input!$B$34*((1+Input!$B$31)^H8)),0)) -> 0 | J25: =IF(J$8=0,0,IF(SUM($C$9:J$9)=Input!$B$42,-(J$24*Input!$B$33)-(Input!$B$34*((1+Input!$B$31)^I8)),0)) -> 0 | K25: =IF(K$8=0,0,IF(SUM($C$9:K$9)=Input!$B$42,-(K$24*Input!$B$33)-(Input!$B$34*((1+Input!$B$31)^J8)),0)) -> 0 | L25: =IF(L$8=0,0,IF(SUM($C$9:L$9)=Input!$B$42,-(L$24*Input!$B$33)-(Input!$B$34*((1+Input!$B$31)^K8)),0)) -> 0 | M25: =IF(M$8=0,0,IF(SUM($C$9:M$9)=Input!$B$42,-(M$24*Input!$B$33)-(Input!$B$34*((1+Input!$B$31)^L8)),0)) -> 0 | N25: =IF(N$8=0,0,IF(SUM($C$9:N$9)=Input!$B$42,-(N$24*Input!$B$33)-(Input!$B$34*((1+Input!$B$31)^M8)),0)) -> 0 | O25: =IF(O$8=0,0,IF(SUM($C$9:O$9)=Input!$B$42,-(O$24*Input!$B$33)-(Input!$B$34*((1+Input!$B$31)^N8)),0)) -> 0 | P25: =IF(P$8=0,0,IF(SUM($C$9:P$9)=Input!$B$42,-(P$24*Input!$B$33)-(Input!$B$34*((1+Input!$B$31)^O8)),0)) -> 0 | Q25: =IF(Q$8=0,0,IF(SUM($C$9:Q$9)=Input!$B$42,-(Q$24*Input!$B$33)-(Input!$B$34*((1+Input!$B$31)^P8)),0)) -> 0 | R25: =IF(R$8=0,0,IF(SUM($C$9:R$9)=Input!$B$42,-(R$24*Input!$B$33)-(Input!$B$34*((1+Input!$B$31)^Q8)),0)) -> 0 | S25: =IF(S$8=0,0,IF(SUM($C$9:S$9)=Input!$B$42,-(S$24*Input!$B$33)-(Input!$B$34*((1+Input!$B$31)^R8)),0)) -> 0 | T25: =IF(T$8=0,0,IF(SUM($C$9:T$9)=Input!$B$42,-(T$24*Input!$B$33)-(Input!$B$34*((1+Input!$B$31)^S8)),0)) -> 0 | U25: =IF(U$8=0,0,IF(SUM($C$9:U$9)=Input!$B$42,-(U$24*Input!$B$33)-(Input!$B$34*((1+Input!$B$31)^T8)),0)) -> 0 | V25: =IF(V$8=0,0,IF(SUM($C$9:V$9)=Input!$B$42,-(V$24*Input!$B$33)-(Input!$B$34*((1+Input!$B$31)^U8)),0)) -> -783389.2359
A26: Capital Gains Tax | B26: 0 | C26: =IF(C$8=0,0,IF(SUM($C$9:C$9)=Input!$B$42,IF(AND(Input!$E$41=TRUE,Input!$B$37="Individual",C24<Variables!$C$74)=TRUE,0,IF(C24+C25+$B$11+$B$14-Input!$F$6-Input!$F$41<0,0,-(C24+C25+$B$11+$B$14-Input!$F$6-Input!$F$41)*Input!$B$39)),0)) -> 0 | D26: =IF(D$8=0,0,IF(SUM($C$9:D$9)=Input!$B$42,IF(AND(Input!$E$41=TRUE,Input!$B$37="Individual",D24<Variables!$C$74)=TRUE,0,IF(D24+D25+$B$11+$B$14-Input!$F$6-Input!$F$41<0,0,-(D24+D25+$B$11+$B$14-Input!$F$6-Input!$F$41)*Input!$B$39)),0)) -> 0 | E26: =IF(E$8=0,0,IF(SUM($C$9:E$9)=Input!$B$42,IF(AND(Input!$E$41=TRUE,Input!$B$37="Individual",E24<Variables!$C$74)=TRUE,0,IF(E24+E25+$B$11+$B$14-Input!$F$6-Input!$F$41<0,0,-(E24+E25+$B$11+$B$14-Input!$F$6-Input!$F$41)*Input!$B$39)),0)) -> 0 | F26: =IF(F$8=0,0,IF(SUM($C$9:F$9)=Input!$B$42,IF(AND(Input!$E$41=TRUE,Input!$B$37="Individual",F24<Variables!$C$74)=TRUE,0,IF(F24+F25+$B$11+$B$14-Input!$F$6-Input!$F$41<0,0,-(F24+F25+$B$11+$B$14-Input!$F$6-Input!$F$41)*Input!$B$39)),0)) -> 0 | G26: =IF(G$8=0,0,IF(SUM($C$9:G$9)=Input!$B$42,IF(AND(Input!$E$41=TRUE,Input!$B$37="Individual",G24<Variables!$C$74)=TRUE,0,IF(G24+G25+$B$11+$B$14-Input!$F$6-Input!$F$41<0,0,-(G24+G25+$B$11+$B$14-Input!$F$6-Input!$F$41)*Input!$B$39)),0)) -> 0 | H26: =IF(H$8=0,0,IF(SUM($C$9:H$9)=Input!$B$42,IF(AND(Input!$E$41=TRUE,Input!$B$37="Individual",H24<Variables!$C$74)=TRUE,0,IF(H24+H25+$B$11+$B$14-Input!$F$6-Input!$F$41<0,0,-(H24+H25+$B$11+$B$14-Input!$F$6-Input!$F$41)*Input!$B$39)),0)) -> 0 | I26: =IF(I$8=0,0,IF(SUM($C$9:I$9)=Input!$B$42,IF(AND(Input!$E$41=TRUE,Input!$B$37="Individual",I24<Variables!$C$74)=TRUE,0,IF(I24+I25+$B$11+$B$14-Input!$F$6-Input!$F$41<0,0,-(I24+I25+$B$11+$B$14-Input!$F$6-Input!$F$41)*Input!$B$39)),0)) -> 0 | J26: =IF(J$8=0,0,IF(SUM($C$9:J$9)=Input!$B$42,IF(AND(Input!$E$41=TRUE,Input!$B$37="Individual",J24<Variables!$C$74)=TRUE,0,IF(J24+J25+$B$11+$B$14-Input!$F$6-Input!$F$41<0,0,-(J24+J25+$B$11+$B$14-Input!$F$6-Input!$F$41)*Input!$B$39)),0)) -> 0 | K26: =IF(K$8=0,0,IF(SUM($C$9:K$9)=Input!$B$42,IF(AND(Input!$E$41=TRUE,Input!$B$37="Individual",K24<Variables!$C$74)=TRUE,0,IF(K24+K25+$B$11+$B$14-Input!$F$6-Input!$F$41<0,0,-(K24+K25+$B$11+$B$14-Input!$F$6-Input!$F$41)*Input!$B$39)),0)) -> 0 | L26: =IF(L$8=0,0,IF(SUM($C$9:L$9)=Input!$B$42,IF(AND(Input!$E$41=TRUE,Input!$B$37="Individual",L24<Variables!$C$74)=TRUE,0,IF(L24+L25+$B$11+$B$14-Input!$F$6-Input!$F$41<0,0,-(L24+L25+$B$11+$B$14-Input!$F$6-Input!$F$41)*Input!$B$39)),0)) -> 0 | M26: =IF(M$8=0,0,IF(SUM($C$9:M$9)=Input!$B$42,IF(AND(Input!$E$41=TRUE,Input!$B$37="Individual",M24<Variables!$C$74)=TRUE,0,IF(M24+M25+$B$11+$B$14-Input!$F$6-Input!$F$41<0,0,-(M24+M25+$B$11+$B$14-Input!$F$6-Input!$F$41)*Input!$B$39)),0)) -> 0 | N26: =IF(N$8=0,0,IF(SUM($C$9:N$9)=Input!$B$42,IF(AND(Input!$E$41=TRUE,Input!$B$37="Individual",N24<Variables!$C$74)=TRUE,0,IF(N24+N25+$B$11+$B$14-Input!$F$6-Input!$F$41<0,0,-(N24+N25+$B$11+$B$14-Input!$F$6-Input!$F$41)*Input!$B$39)),0)) -> 0 | O26: =IF(O$8=0,0,IF(SUM($C$9:O$9)=Input!$B$42,IF(AND(Input!$E$41=TRUE,Input!$B$37="Individual",O24<Variables!$C$74)=TRUE,0,IF(O24+O25+$B$11+$B$14-Input!$F$6-Input!$F$41<0,0,-(O24+O25+$B$11+$B$14-Input!$F$6-Input!$F$41)*Input!$B$39)),0)) -> 0 | P26: =IF(P$8=0,0,IF(SUM($C$9:P$9)=Input!$B$42,IF(AND(Input!$E$41=TRUE,Input!$B$37="Individual",P24<Variables!$C$74)=TRUE,0,IF(P24+P25+$B$11+$B$14-Input!$F$6-Input!$F$41<0,0,-(P24+P25+$B$11+$B$14-Input!$F$6-Input!$F$41)*Input!$B$39)),0)) -> 0 | Q26: =IF(Q$8=0,0,IF(SUM($C$9:Q$9)=Input!$B$42,IF(AND(Input!$E$41=TRUE,Input!$B$37="Individual",Q24<Variables!$C$74)=TRUE,0,IF(Q24+Q25+$B$11+$B$14-Input!$F$6-Input!$F$41<0,0,-(Q24+Q25+$B$11+$B$14-Input!$F$6-Input!$F$41)*Input!$B$39)),0)) -> 0 | R26: =IF(R$8=0,0,IF(SUM($C$9:R$9)=Input!$B$42,IF(AND(Input!$E$41=TRUE,Input!$B$37="Individual",R24<Variables!$C$74)=TRUE,0,IF(R24+R25+$B$11+$B$14-Input!$F$6-Input!$F$41<0,0,-(R24+R25+$B$11+$B$14-Input!$F$6-Input!$F$41)*Input!$B$39)),0)) -> 0 | S26: =IF(S$8=0,0,IF(SUM($C$9:S$9)=Input!$B$42,IF(AND(Input!$E$41=TRUE,Input!$B$37="Individual",S24<Variables!$C$74)=TRUE,0,IF(S24+S25+$B$11+$B$14-Input!$F$6-Input!$F$41<0,0,-(S24+S25+$B$11+$B$14-Input!$F$6-Input!$F$41)*Input!$B$39)),0)) -> 0 | T26: =IF(T$8=0,0,IF(SUM($C$9:T$9)=Input!$B$42,IF(AND(Input!$E$41=TRUE,Input!$B$37="Individual",T24<Variables!$C$74)=TRUE,0,IF(T24+T25+$B$11+$B$14-Input!$F$6-Input!$F$41<0,0,-(T24+T25+$B$11+$B$14-Input!$F$6-Input!$F$41)*Input!$B$39)),0)) -> 0 | U26: =IF(U$8=0,0,IF(SUM($C$9:U$9)=Input!$B$42,IF(AND(Input!$E$41=TRUE,Input!$B$37="Individual",U24<Variables!$C$74)=TRUE,0,IF(U24+U25+$B$11+$B$14-Input!$F$6-Input!$F$41<0,0,-(U24+U25+$B$11+$B$14-Input!$F$6-Input!$F$41)*Input!$B$39)),0)) -> 0 | V26: =IF(V$8=0,0,IF(SUM($C$9:V$9)=Input!$B$42,IF(AND(Input!$E$41=TRUE,Input!$B$37="Individual",V24<Variables!$C$74)=TRUE,0,IF(V24+V25+$B$11+$B$14-Input!$F$6-Input!$F$41<0,0,-(V24+V25+$B$11+$B$14-Input!$F$6-Input!$F$41)*Input!$B$39)),0)) -> -1279509.788
A27: Outstanding Bond Amount | B27: 0 | C27: =IF(C$8=0,0,IF(SUM($C$9:C$9)=Input!$B$42,-C$6,0)) -> 0 | D27: =IF(D$8=0,0,IF(SUM($C$9:D$9)=Input!$B$42,-D$6,0)) -> 0 | E27: =IF(E$8=0,0,IF(SUM($C$9:E$9)=Input!$B$42,-E$6,0)) -> 0 | F27: =IF(F$8=0,0,IF(SUM($C$9:F$9)=Input!$B$42,-F$6,0)) -> 0 | G27: =IF(G$8=0,0,IF(SUM($C$9:G$9)=Input!$B$42,-G$6,0)) -> 0 | H27: =IF(H$8=0,0,IF(SUM($C$9:H$9)=Input!$B$42,-H$6,0)) -> 0 | I27: =IF(I$8=0,0,IF(SUM($C$9:I$9)=Input!$B$42,-I$6,0)) -> 0 | J27: =IF(J$8=0,0,IF(SUM($C$9:J$9)=Input!$B$42,-J$6,0)) -> 0 | K27: =IF(K$8=0,0,IF(SUM($C$9:K$9)=Input!$B$42,-K$6,0)) -> 0 | L27: =IF(L$8=0,0,IF(SUM($C$9:L$9)=Input!$B$42,-L$6,0)) -> 0 | M27: =IF(M$8=0,0,IF(SUM($C$9:M$9)=Input!$B$42,-M$6,0)) -> 0 | N27: =IF(N$8=0,0,IF(SUM($C$9:N$9)=Input!$B$42,-N$6,0)) -> 0 | O27: =IF(O$8=0,0,IF(SUM($C$9:O$9)=Input!$B$42,-O$6,0)) -> 0 | P27: =IF(P$8=0,0,IF(SUM($C$9:P$9)=Input!$B$42,-P$6,0)) -> 0 | Q27: =IF(Q$8=0,0,IF(SUM($C$9:Q$9)=Input!$B$42,-Q$6,0)) -> 0 | R27: =IF(R$8=0,0,IF(SUM($C$9:R$9)=Input!$B$42,-R$6,0)) -> 0 | S27: =IF(S$8=0,0,IF(SUM($C$9:S$9)=Input!$B$42,-S$6,0)) -> 0 | T27: =IF(T$8=0,0,IF(SUM($C$9:T$9)=Input!$B$42,-T$6,0)) -> 0 | U27: =IF(U$8=0,0,IF(SUM($C$9:U$9)=Input!$B$42,-U$6,0)) -> 0 | V27: =IF(V$8=0,0,IF(SUM($C$9:V$9)=Input!$B$42,-V$6,0)) -> 0
A28: Bond Cancellation Fee | B28: 0 | C28: =IF(C$8=0,0,IF(SUM($C$9:C$9)=Input!$B$42,-Input!$B$35,0)) -> 0 | D28: =IF(D$8=0,0,IF(SUM($C$9:D$9)=Input!$B$42,-Input!$B$35,0)) -> 0 | E28: =IF(E$8=0,0,IF(SUM($C$9:E$9)=Input!$B$42,-Input!$B$35,0)) -> 0 | F28: =IF(F$8=0,0,IF(SUM($C$9:F$9)=Input!$B$42,-Input!$B$35,0)) -> 0 | G28: =IF(G$8=0,0,IF(SUM($C$9:G$9)=Input!$B$42,-Input!$B$35,0)) -> 0 | H28: =IF(H$8=0,0,IF(SUM($C$9:H$9)=Input!$B$42,-Input!$B$35,0)) -> 0 | I28: =IF(I$8=0,0,IF(SUM($C$9:I$9)=Input!$B$42,-Input!$B$35,0)) -> 0 | J28: =IF(J$8=0,0,IF(SUM($C$9:J$9)=Input!$B$42,-Input!$B$35,0)) -> 0 | K28: =IF(K$8=0,0,IF(SUM($C$9:K$9)=Input!$B$42,-Input!$B$35,0)) -> 0 | L28: =IF(L$8=0,0,IF(SUM($C$9:L$9)=Input!$B$42,-Input!$B$35,0)) -> 0 | M28: =IF(M$8=0,0,IF(SUM($C$9:M$9)=Input!$B$42,-Input!$B$35,0)) -> 0 | N28: =IF(N$8=0,0,IF(SUM($C$9:N$9)=Input!$B$42,-Input!$B$35,0)) -> 0 | O28: =IF(O$8=0,0,IF(SUM($C$9:O$9)=Input!$B$42,-Input!$B$35,0)) -> 0 | P28: =IF(P$8=0,0,IF(SUM($C$9:P$9)=Input!$B$42,-Input!$B$35,0)) -> 0 | Q28: =IF(Q$8=0,0,IF(SUM($C$9:Q$9)=Input!$B$42,-Input!$B$35,0)) -> 0 | R28: =IF(R$8=0,0,IF(SUM($C$9:R$9)=Input!$B$42,-Input!$B$35,0)) -> 0 | S28: =IF(S$8=0,0,IF(SUM($C$9:S$9)=Input!$B$42,-Input!$B$35,0)) -> 0 | T28: =IF(T$8=0,0,IF(SUM($C$9:T$9)=Input!$B$42,-Input!$B$35,0)) -> 0 | U28: =IF(U$8=0,0,IF(SUM($C$9:U$9)=Input!$B$42,-Input!$B$35,0)) -> 0 | V28: =IF(V$8=0,0,IF(SUM($C$9:V$9)=Input!$B$42,-Input!$B$35,0)) -> 0
A29: Total Cash Flow for Period | B29: =SUM(B11:B28) -> -341494.5 | C29: =SUM(C11:C28) -> -85845.75047 | D29: -77490.69493 | E29: -68240.71113 | F29: -58002.82758 | G29: -46674.57575 | H29: -34143.02931 | I29: -20283.74663 | J29: -4959.607047 | K29: 11980.46997 | L29: 30702.93431 | M29: =SUM(M11:M28) -> 51391.15641 | N29: 74247.1342 | O29: 99493.37151 | P29: 127374.945 | Q29: 158161.7789 | R29: 192151.1472 | S29: 229670.4282 | T29: 271080.1341 | U29: 316777.2451 | V29: 12047970.66
A30: Discount Factor | B30: 1 | C30: =IF(C$8=0,0,-PV(Input!$B$43,C$8,0,1,0)) -> 0.9433962264 | D30: =IF(D$8=0,0,-PV(Input!$B$43,D$8,0,1,0)) -> 0.88999644 | E30: =IF(E$8=0,0,-PV(Input!$B$43,E$8,0,1,0)) -> 0.839619283 | F30: =IF(F$8=0,0,-PV(Input!$B$43,F$8,0,1,0)) -> 0.7920936632 | G30: =IF(G$8=0,0,-PV(Input!$B$43,G$8,0,1,0)) -> 0.7472581729 | H30: =IF(H$8=0,0,-PV(Input!$B$43,H$8,0,1,0)) -> 0.7049605404 | I30: =IF(I$8=0,0,-PV(Input!$B$43,I$8,0,1,0)) -> 0.6650571136 | J30: =IF(J$8=0,0,-PV(Input!$B$43,J$8,0,1,0)) -> 0.6274123713 | K30: =IF(K$8=0,0,-PV(Input!$B$43,K$8,0,1,0)) -> 0.5918984635 | L30: =IF(L$8=0,0,-PV(Input!$B$43,L$8,0,1,0)) -> 0.5583947769 | M30: =IF(M$8=0,0,-PV(Input!$B$43,M$8,0,1,0)) -> 0.5267875254 | N30: =IF(N$8=0,0,-PV(Input!$B$43,N$8,0,1,0)) -> 0.4969693636 | O30: =IF(O$8=0,0,-PV(Input!$B$43,O$8,0,1,0)) -> 0.4688390222 | P30: =IF(P$8=0,0,-PV(Input!$B$43,P$8,0,1,0)) -> 0.4423009644 | Q30: =IF(Q$8=0,0,-PV(Input!$B$43,Q$8,0,1,0)) -> 0.4172650607 | R30: =IF(R$8=0,0,-PV(Input!$B$43,R$8,0,1,0)) -> 0.3936462837 | S30: =IF(S$8=0,0,-PV(Input!$B$43,S$8,0,1,0)) -> 0.3713644186 | T30: =IF(T$8=0,0,-PV(Input!$B$43,T$8,0,1,0)) -> 0.3503437911 | U30: =IF(U$8=0,0,-PV(Input!$B$43,U$8,0,1,0)) -> 0.3305130105 | V30: =IF(V$8=0,0,-PV(Input!$B$43,V$8,0,1,0)) -> 0.3118047269
A31: Present Value of Cash Flow | B31: =B29*B30 -> -341494.5 | C31: =C29*C30 -> -80986.55705 | D31: -68966.44262 | E31: -57296.21695 | F31: -45943.67218 | G31: -34877.9582 | H31: -24069.48839 | I31: -13489.84999 | J31: -3111.718818 | K31: 7091.221765 | L31: 17144.35815 | M31: =M29*M30 -> 27072.22011 | N31: 36898.55103 | O31: 46646.37502 | P31: 56338.06103 | Q31: 65995.38427 | R31: 75639.58502 | S31: 85291.42505 | T31: 94971.24189 | U31: 104699.0009 | V31: 3756614.201

Sheet Results (hidden)
A1: Property Investment
A2: Calculation Results
A3: Year Number | B3: =CashFlow!B8 -> 0 | C3: =CashFlow!C8 -> 1 | D3: =CashFlow!D8 -> 2 | E3: =CashFlow!E8 -> 3 | F3: =CashFlow!F8 -> 4 | G3: =CashFlow!G8 -> 5 | H3: =CashFlow!H8 -> 6 | I3: =CashFlow!I8 -> 7 | J3: =CashFlow!J8 -> 8 | K3: =CashFlow!K8 -> 9 | L3: =CashFlow!L8 -> 10 | M3: =CashFlow!M8 -> 11 | N3: =CashFlow!N8 -> 12 | O3: =CashFlow!O8 -> 13 | P3: =CashFlow!P8 -> 14 | Q3: =CashFlow!Q8 -> 15 | R3: =CashFlow!R8 -> 16 | S3: =CashFlow!S8 -> 17 | T3: =CashFlow!T8 -> 18 | U3: =CashFlow!U8 -> 19 | V3: =CashFlow!V8 -> 20
A4: Months in Year | B4: =CashFlow!B9 -> 0 | C4: =CashFlow!C9 -> 12 | D4: =CashFlow!D9 -> 12 | E4: =CashFlow!E9 -> 12 | F4: =CashFlow!F9 -> 12 | G4: =CashFlow!G9 -> 12 | H4: =CashFlow!H9 -> 12 | I4: =CashFlow!I9 -> 12 | J4: =CashFlow!J9 -> 12 | K4: =CashFlow!K9 -> 12 | L4: =CashFlow!L9 -> 12 | M4: =CashFlow!M9 -> 12 | N4: =CashFlow!N9 -> 12 | O4: =CashFlow!O9 -> 12 | P4: =CashFlow!P9 -> 12 | Q4: =CashFlow!Q9 -> 12 | R4: =CashFlow!R9 -> 12 | S4: =CashFlow!S9 -> 12 | T4: =CashFlow!T9 -> 12 | U4: =CashFlow!U9 -> 12 | V4: =CashFlow!V9 -> 12
B5: =CashFlow!B10 -> 2023-04-30 | C5: =CashFlow!C10 -> 2024-04-30 | D5: =CashFlow!D10 -> 2025-04-30 | E5: =CashFlow!E10 -> 2026-04-30 | F5: =CashFlow!F10 -> 2027-04-30 | G5: =CashFlow!G10 -> 2028-04-30 | H5: =CashFlow!H10 -> 2029-04-30 | I5: =CashFlow!I10 -> 2030-04-30 | J5: =CashFlow!J10 -> 2031-04-30 | K5: =CashFlow!K10 -> 2032-04-30 | L5: =CashFlow!L10 -> 2033-04-30 | M5: =CashFlow!M10 -> 2034-04-30 | N5: =CashFlow!N10 -> 2035-04-30 | O5: =CashFlow!O10 -> 2036-04-30 | P5: =CashFlow!P10 -> 2037-04-30 | Q5: =CashFlow!Q10 -> 2038-04-30 | R5: =CashFlow!R10 -> 2039-04-30 | S5: =CashFlow!S10 -> 2040-04-30 | T5: =CashFlow!T10 -> 2041-04-30 | U5: =CashFlow!U10 -> 2042-04-30 | V5: =CashFlow!V10 -> 2043-04-30
A6: Net Operational Cash Flow - Annual | B6: =SUM(CashFlow!B11:B23)+Control -> -341494.5 | C6: =SUM(CashFlow!C11:C23) -> -85845.75047 | D6: =SUM(CashFlow!D11:D23) -> -77490.69493 | E6: =SUM(CashFlow!E11:E23) -> -68240.71113 | F6: =SUM(CashFlow!F11:F23) -> -58002.82758 | G6: =SUM(CashFlow!G11:G23) -> -46674.57575 | H6: =SUM(CashFlow!H11:H23) -> -34143.02931 | I6: =SUM(CashFlow!I11:I23) -> -20283.74663 | J6: =SUM(CashFlow!J11:J23) -> -4959.607047 | K6: =SUM(CashFlow!K11:K23) -> 11980.46997 | L6: =SUM(CashFlow!L11:L23) -> 30702.93431 | M6: =SUM(CashFlow!M11:M23) -> 51391.15641 | N6: =SUM(CashFlow!N11:N23) -> 74247.1342 | O6: =SUM(CashFlow!O11:O23) -> 99493.37151 | P6: =SUM(CashFlow!P11:P23) -> 127374.945 | Q6: =SUM(CashFlow!Q11:Q23) -> 158161.7789 | R6: =SUM(CashFlow!R11:R23) -> 192151.1472 | S6: =SUM(CashFlow!S11:S23) -> 229670.4282 | T6: =SUM(CashFlow!T11:T23) -> 271080.1341 | U6: =SUM(CashFlow!U11:U23) -> 316777.2451 | V6: =SUM(CashFlow!V11:V23) -> 367198.8779
A7: Net Operational Cash Flow - Cumulative | B7: =SUM($B$6:B6) -> -341494.5 | C7: =IF(C3=0,0,SUM($B$6:C6)) -> -427340.2505 | D7: =IF(D3=0,0,SUM($B$6:D6)) -> -504830.9454 | E7: =IF(E3=0,0,SUM($B$6:E6)) -> -573071.6565 | F7: =IF(F3=0,0,SUM($B$6:F6)) -> -631074.4841 | G7: =IF(G3=0,0,SUM($B$6:G6)) -> -677749.0599 | H7: =IF(H3=0,0,SUM($B$6:H6)) -> -711892.0892 | I7: =IF(I3=0,0,SUM($B$6:I6)) -> -732175.8358 | J7: =IF(J3=0,0,SUM($B$6:J6)) -> -737135.4429 | K7: =IF(K3=0,0,SUM($B$6:K6)) -> -725154.9729 | L7: =IF(L3=0,0,SUM($B$6:L6)) -> -694452.0386 | M7: =IF(M3=0,0,SUM($B$6:M6)) -> -643060.8822 | N7: =IF(N3=0,0,SUM($B$6:N6)) -> -568813.748 | O7: =IF(O3=0,0,SUM($B$6:O6)) -> -469320.3765 | P7: =IF(P3=0,0,SUM($B$6:P6)) -> -341945.4314 | Q7: =IF(Q3=0,0,SUM($B$6:Q6)) -> -183783.6525 | R7: =IF(R3=0,0,SUM($B$6:R6)) -> 8367.494691 | S7: =IF(S3=0,0,SUM($B$6:S6)) -> 238037.9229 | T7: =IF(T3=0,0,SUM($B$6:T6)) -> 509118.057 | U7: =IF(U3=0,0,SUM($B$6:U6)) -> 825895.3022 | V7: =IF(V3=0,0,SUM($B$6:V6)) -> 1193094.18
A8: Equity Calculation
A9: Market Value | B9: =Input!$B$6+Control -> 2200000 | C9: =CashFlow!C$5 -> 2332000 | D9: =CashFlow!D$5 -> 2471920 | E9: =CashFlow!E$5 -> 2719112 | F9: =CashFlow!F$5 -> 2991023.2 | G9: =CashFlow!G$5 -> 3290125.52 | H9: =CashFlow!H$5 -> 3619138.072 | I9: =CashFlow!I$5 -> 3981051.879 | J9: =CashFlow!J$5 -> 4379157.067 | K9: =CashFlow!K$5 -> 4817072.774 | L9: =CashFlow!L$5 -> 5298780.051 | M9: =CashFlow!M$5 -> 5828658.056 | N9: =CashFlow!N$5 -> 6411523.862 | O9: =CashFlow!O$5 -> 7052676.248 | P9: =CashFlow!P$5 -> 7757943.873 | Q9: =CashFlow!Q$5 -> 8533738.26 | R9: =CashFlow!R$5 -> 9387112.086 | S9: =CashFlow!S$5 -> 10325823.29 | T9: =CashFlow!T$5 -> 11358405.62 | U9: =CashFlow!U$5 -> 12494246.19 | V9: =CashFlow!V$5 -> 13743670.81
A10: Outstanding Bond Amount | B10: =-(Input!$B$6-Input!$B$7) -> -2000000 | C10: =-CashFlow!C6 -> -1965856.935 | D10: =-CashFlow!D6 -> -1928232.055 | E10: =-CashFlow!E6 -> -1886770.294 | F10: =-CashFlow!F6 -> -1841080.378 | G10: =-CashFlow!G6 -> -1790731.131 | H10: =-CashFlow!H6 -> -1735247.409 | I10: =-CashFlow!I6 -> -1674105.61 | J10: =-CashFlow!J6 -> -1606728.741 | K10: =-CashFlow!K6 -> -1532480.967 | L10: =-CashFlow!L6 -> -1450661.61 | M10: =-CashFlow!M6 -> -1360498.543 | N10: =-CashFlow!N6 -> -1261140.897 | O10: =-CashFlow!O6 -> -1151651.035 | P10: =-CashFlow!P6 -> -1030995.701 | Q10: =-CashFlow!Q6 -> -898036.2715 | R10: =-CashFlow!R6 -> -751518.0089 | S10: =-CashFlow!S6 -> -590058.2214 | T10: =-CashFlow!T6 -> -412133.2135 | U10: =-CashFlow!U6 -> -216063.9081 | V10: =-CashFlow!V6 -> 0
A11: Equity 1 | B11: =SUM(B9:B10) -> 200000 | C11: =SUM(C9:C10) -> 366143.0653 | D11: 543687.9454 | E11: 832341.7062 | F11: 1149942.822 | G11: 1499394.389 | H11: 1883890.663 | I11: 2306946.269 | J11: 2772428.326 | K11: 3284591.807 | L11: 3848118.441 | M11: 4468159.513 | N11: 5150382.965 | O11: 5901025.213 | P11: 6726948.172 | Q11: 7635701.989 | R11: 8635594.077 | S11: 9735765.074 | T11: 10946272.41 | U11: 12278182.28 | V11: 13743670.81
A12: VAT | B12: 0 | C12: =IF(Input!$E$6=TRUE,-C$9/(1+Variables!$C$62)*Variables!$C$62,0) -> 0 | D12: =IF(Input!$E$6=TRUE,-D$9/(1+Variables!$C$62)*Variables!$C$62,0) -> 0 | E12: =IF(Input!$E$6=TRUE,-E$9/(1+Variables!$C$62)*Variables!$C$62,0) -> 0 | F12: =IF(Input!$E$6=TRUE,-F$9/(1+Variables!$C$62)*Variables!$C$62,0) -> 0 | G12: =IF(Input!$E$6=TRUE,-G$9/(1+Variables!$C$62)*Variables!$C$62,0) -> 0 | H12: =IF(Input!$E$6=TRUE,-H$9/(1+Variables!$C$62)*Variables!$C$62,0) -> 0 | I12: =IF(Input!$E$6=TRUE,-I$9/(1+Variables!$C$62)*Variables!$C$62,0) -> 0 | J12: =IF(Input!$E$6=TRUE,-J$9/(1+Variables!$C$62)*Variables!$C$62,0) -> 0 | K12: =IF(Input!$E$6=TRUE,-K$9/(1+Variables!$C$62)*Variables!$C$62,0) -> 0 | L12: =IF(Input!$E$6=TRUE,-L$9/(1+Variables!$C$62)*Variables!$C$62,0) -> 0 | M12: =IF(Input!$E$6=TRUE,-M$9/(1+Variables!$C$62)*Variables!$C$62,0) -> 0 | N12: =IF(Input!$E$6=TRUE,-N$9/(1+Variables!$C$62)*Variables!$C$62,0) -> 0 | O12: =IF(Input!$E$6=TRUE,-O$9/(1+Variables!$C$62)*Variables!$C$62,0) -> 0 | P12: =IF(Input!$E$6=TRUE,-P$9/(1+Variables!$C$62)*Variables!$C$62,0) -> 0 | Q12: =IF(Input!$E$6=TRUE,-Q$9/(1+Variables!$C$62)*Variables!$C$62,0) -> 0 | R12: =IF(Input!$E$6=TRUE,-R$9/(1+Variables!$C$62)*Variables!$C$62,0) -> 0 | S12: =IF(Input!$E$6=TRUE,-S$9/(1+Variables!$C$62)*Variables!$C$62,0) -> 0 | T12: =IF(Input!$E$6=TRUE,-T$9/(1+Variables!$C$62)*Variables!$C$62,0) -> 0 | U12: =IF(Input!$E$6=TRUE,-U$9/(1+Variables!$C$62)*Variables!$C$62,0) -> 0 | V12: =IF(Input!$E$6=TRUE,-V$9/(1+Variables!$C$62)*Variables!$C$62,0) -> 0
A13: Selling Costs | B13: 0 | C13: =IF(C$3=0,0,-((C$9+C$12)*Input!$B$33)-(Input!$B$34*((1+Input!$B$31)^B3))) -> -132924 | D13: =IF(D$3=0,0,-((D$9+D$12)*Input!$B$33)-(Input!$B$34*((1+Input!$B$31)^C3))) -> -140899.44 | E13: =IF(E$3=0,0,-((E$9+E$12)*Input!$B$33)-(Input!$B$34*((1+Input!$B$31)^D3))) -> -154989.384 | F13: =IF(F$3=0,0,-((F$9+F$12)*Input!$B$33)-(Input!$B$34*((1+Input!$B$31)^E3))) -> -170488.3224 | G13: =IF(G$3=0,0,-((G$9+G$12)*Input!$B$33)-(Input!$B$34*((1+Input!$B$31)^F3))) -> -187537.1546 | H13: =IF(H$3=0,0,-((H$9+H$12)*Input!$B$33)-(Input!$B$34*((1+Input!$B$31)^G3))) -> -206290.8701 | I13: =IF(I$3=0,0,-((I$9+I$12)*Input!$B$33)-(Input!$B$34*((1+Input!$B$31)^H3))) -> -226919.9571 | J13: =IF(J$3=0,0,-((J$9+J$12)*Input!$B$33)-(Input!$B$34*((1+Input!$B$31)^I3))) -> -249611.9528 | K13: =IF(K$3=0,0,-((K$9+K$12)*Input!$B$33)-(Input!$B$34*((1+Input!$B$31)^J3))) -> -274573.1481 | L13: =IF(L$3=0,0,-((L$9+L$12)*Input!$B$33)-(Input!$B$34*((1+Input!$B$31)^K3))) -> -302030.4629 | M13: =IF(M$3=0,0,-((M$9+M$12)*Input!$B$33)-(Input!$B$34*((1+Input!$B$31)^L3))) -> -332233.5092 | N13: =IF(N$3=0,0,-((N$9+N$12)*Input!$B$33)-(Input!$B$34*((1+Input!$B$31)^M3))) -> -365456.8601 | O13: =IF(O$3=0,0,-((O$9+O$12)*Input!$B$33)-(Input!$B$34*((1+Input!$B$31)^N3))) -> -402002.5461 | P13: =IF(P$3=0,0,-((P$9+P$12)*Input!$B$33)-(Input!$B$34*((1+Input!$B$31)^O3))) -> -442202.8008 | Q13: =IF(Q$3=0,0,-((Q$9+Q$12)*Input!$B$33)-(Input!$B$34*((1+Input!$B$31)^P3))) -> -486423.0808 | R13: =IF(R$3=0,0,-((R$9+R$12)*Input!$B$33)-(Input!$B$34*((1+Input!$B$31)^Q3))) -> -535065.3889 | S13: =IF(S$3=0,0,-((S$9+S$12)*Input!$B$33)-(Input!$B$34*((1+Input!$B$31)^R3))) -> -588571.9278 | T13: =IF(T$3=0,0,-((T$9+T$12)*Input!$B$33)-(Input!$B$34*((1+Input!$B$31)^S3))) -> -647429.1206 | U13: =IF(U$3=0,0,-((U$9+U$12)*Input!$B$33)-(Input!$B$34*((1+Input!$B$31)^T3))) -> -712172.0327 | V13: =IF(V$3=0,0,-((V$9+V$12)*Input!$B$33)-(Input!$B$34*((1+Input!$B$31)^U3))) -> -783389.2359
A14: Capital Gains Tax | B14: 0 | C14: =IF(C$3=0,0,IF(AND(Input!$E$41=TRUE,Input!$B$37="Individual",(C9+C12)<Variables!$C$74)=TRUE,0,IF(C9+C12+C13+CashFlow!$B$11+CashFlow!$B$14-Input!$F$6-Input!$F$41<0,0,-(C9+C12+C13+CashFlow!$B$11+CashFlow!$B$14-Input!$F$6-Input!$F$41)*Input!$B$39))) -> 0 | D14: =IF(D$3=0,0,IF(AND(Input!$E$41=TRUE,Input!$B$37="Individual",(D9+D12)<Variables!$C$74)=TRUE,0,IF(D9+D12+D13+CashFlow!$B$11+CashFlow!$B$14-Input!$F$6-Input!$F$41<0,0,-(D9+D12+D13+CashFlow!$B$11+CashFlow!$B$14-Input!$F$6-Input!$F$41)*Input!$B$39))) -> -3998.4672 | E14: =IF(E$3=0,0,IF(AND(Input!$E$41=TRUE,Input!$B$37="Individual",(E9+E12)<Variables!$C$74)=TRUE,0,IF(E9+E12+E13+CashFlow!$B$11+CashFlow!$B$14-Input!$F$6-Input!$F$41<0,0,-(E9+E12+E13+CashFlow!$B$11+CashFlow!$B$14-Input!$F$6-Input!$F$41)*Input!$B$39))) -> -31970.71392 | F14: =IF(F$3=0,0,IF(AND(Input!$E$41=TRUE,Input!$B$37="Individual",(F9+F12)<Variables!$C$74)=TRUE,0,IF(F9+F12+F13+CashFlow!$B$11+CashFlow!$B$14-Input!$F$6-Input!$F$41<0,0,-(F9+F12+F13+CashFlow!$B$11+CashFlow!$B$14-Input!$F$6-Input!$F$41)*Input!$B$39))) -> -62740.18531 | G14: =IF(G$3=0,0,IF(AND(Input!$E$41=TRUE,Input!$B$37="Individual",(G9+G12)<Variables!$C$74)=TRUE,0,IF(G9+G12+G13+CashFlow!$B$11+CashFlow!$B$14-Input!$F$6-Input!$F$41<0,0,-(G9+G12+G13+CashFlow!$B$11+CashFlow!$B$14-Input!$F$6-Input!$F$41)*Input!$B$39))) -> -96586.60384 | H14: =IF(H$3=0,0,IF(AND(Input!$E$41=TRUE,Input!$B$37="Individual",(H9+H12)<Variables!$C$74)=TRUE,0,IF(H9+H12+H13+CashFlow!$B$11+CashFlow!$B$14-Input!$F$6-Input!$F$41<0,0,-(H9+H12+H13+CashFlow!$B$11+CashFlow!$B$14-Input!$F$6-Input!$F$41)*Input!$B$39))) -> -133817.6642 | I14: =IF(I$3=0,0,IF(AND(Input!$E$41=TRUE,Input!$B$37="Individual",(I9+I12)<Variables!$C$74)=TRUE,0,IF(I9+I12+I13+CashFlow!$B$11+CashFlow!$B$14-Input!$F$6-Input!$F$41<0,0,-(I9+I12+I13+CashFlow!$B$11+CashFlow!$B$14-Input!$F$6-Input!$F$41)*Input!$B$39))) -> -174771.8307 | J14: =IF(J$3=0,0,IF(AND(Input!$E$41=TRUE,Input!$B$37="Individual",(J9+J12)<Variables!$C$74)=TRUE,0,IF(J9+J12+J13+CashFlow!$B$11+CashFlow!$B$14-Input!$F$6-Input!$F$41<0,0,-(J9+J12+J13+CashFlow!$B$11+CashFlow!$B$14-Input!$F$6-Input!$F$41)*Input!$B$39))) -> -219821.4137 | K14: =IF(K$3=0,0,IF(AND(Input!$E$41=TRUE,Input!$B$37="Individual",(K9+K12)<Variables!$C$74)=TRUE,0,IF(K9+K12+K13+CashFlow!$B$11+CashFlow!$B$14-Input!$F$6-Input!$F$41<0,0,-(K9+K12+K13+CashFlow!$B$11+CashFlow!$B$14-Input!$F$6-Input!$F$41)*Input!$B$39))) -> -269375.9551 | L14: =IF(L$3=0,0,IF(AND(Input!$E$41=TRUE,Input!$B$37="Individual",(L9+L12)<Variables!$C$74)=TRUE,0,IF(L9+L12+L13+CashFlow!$B$11+CashFlow!$B$14-Input!$F$6-Input!$F$41<0,0,-(L9+L12+L13+CashFlow!$B$11+CashFlow!$B$14-Input!$F$6-Input!$F$41)*Input!$B$39))) -> -323885.9506 | M14: =IF(M$3=0,0,IF(AND(Input!$E$41=TRUE,Input!$B$37="Individual",(M9+M12)<Variables!$C$74)=TRUE,0,IF(M9+M12+M13+CashFlow!$B$11+CashFlow!$B$14-Input!$F$6-Input!$F$41<0,0,-(M9+M12+M13+CashFlow!$B$11+CashFlow!$B$14-Input!$F$6-Input!$F$41)*Input!$B$39))) -> -383846.9457 | N14: =IF(N$3=0,0,IF(AND(Input!$E$41=TRUE,Input!$B$37="Individual",(N9+N12)<Variables!$C$74)=TRUE,0,IF(N9+N12+N13+CashFlow!$B$11+CashFlow!$B$14-Input!$F$6-Input!$F$41<0,0,-(N9+N12+N13+CashFlow!$B$11+CashFlow!$B$14-Input!$F$6-Input!$F$41)*Input!$B$39))) -> -449804.0402 | O14: =IF(O$3=0,0,IF(AND(Input!$E$41=TRUE,Input!$B$37="Individual",(O9+O12)<Variables!$C$74)=TRUE,0,IF(O9+O12+O13+CashFlow!$B$11+CashFlow!$B$14-Input!$F$6-Input!$F$41<0,0,-(O9+O12+O13+CashFlow!$B$11+CashFlow!$B$14-Input!$F$6-Input!$F$41)*Input!$B$39))) -> -522356.8442 | P14: =IF(P$3=0,0,IF(AND(Input!$E$41=TRUE,Input!$B$37="Individual",(P9+P12)<Variables!$C$74)=TRUE,0,IF(P9+P12+P13+CashFlow!$B$11+CashFlow!$B$14-Input!$F$6-Input!$F$41<0,0,-(P9+P12+P13+CashFlow!$B$11+CashFlow!$B$14-Input!$F$6-Input!$F$41)*Input!$B$39))) -> -602164.9287 | Q14: =IF(Q$3=0,0,IF(AND(Input!$E$41=TRUE,Input!$B$37="Individual",(Q9+Q12)<Variables!$C$74)=TRUE,0,IF(Q9+Q12+Q13+CashFlow!$B$11+CashFlow!$B$14-Input!$F$6-Input!$F$41<0,0,-(Q9+Q12+Q13+CashFlow!$B$11+CashFlow!$B$14-Input!$F$6-Input!$F$41)*Input!$B$39))) -> -689953.8215 | R14: =IF(R$3=0,0,IF(AND(Input!$E$41=TRUE,Input!$B$37="Individual",(R9+R12)<Variables!$C$74)=TRUE,0,IF(R9+R12+R13+CashFlow!$B$11+CashFlow!$B$14-Input!$F$6-Input!$F$41<0,0,-(R9+R12+R13+CashFlow!$B$11+CashFlow!$B$14-Input!$F$6-Input!$F$41)*Input!$B$39))) -> -786521.6037 | S14: =IF(S$3=0,0,IF(AND(Input!$E$41=TRUE,Input!$B$37="Individual",(S9+S12)<Variables!$C$74)=TRUE,0,IF(S9+S12+S13+CashFlow!$B$11+CashFlow!$B$14-Input!$F$6-Input!$F$41<0,0,-(S9+S12+S13+CashFlow!$B$11+CashFlow!$B$14-Input!$F$6-Input!$F$41)*Input!$B$39))) -> -892746.1641 | T14: =IF(T$3=0,0,IF(AND(Input!$E$41=TRUE,Input!$B$37="Individual",(T9+T12)<Variables!$C$74)=TRUE,0,IF(T9+T12+T13+CashFlow!$B$11+CashFlow!$B$14-Input!$F$6-Input!$F$41<0,0,-(T9+T12+T13+CashFlow!$B$11+CashFlow!$B$14-Input!$F$6-Input!$F$41)*Input!$B$39))) -> -1009593.18 | U14: =IF(U$3=0,0,IF(AND(Input!$E$41=TRUE,Input!$B$37="Individual",(U9+U12)<Variables!$C$74)=TRUE,0,IF(U9+U12+U13+CashFlow!$B$11+CashFlow!$B$14-Input!$F$6-Input!$F$41<0,0,-(U9+U12+U13+CashFlow!$B$11+CashFlow!$B$14-Input!$F$6-Input!$F$41)*Input!$B$39))) -> -1138124.899 | V14: =IF(V$3=0,0,IF(AND(Input!$E$41=TRUE,Input!$B$37="Individual",(V9+V12)<Variables!$C$74)=TRUE,0,IF(V9+V12+V13+CashFlow!$B$11+CashFlow!$B$14-Input!$F$6-Input!$F$41<0,0,-(V9+V12+V13+CashFlow!$B$11+CashFlow!$B$14-Input!$F$6-Input!$F$41)*Input!$B$39))) -> -1279509.788
A15: Bond Cancellation Fees | B15: 0 | C15: =IF(C3=0,0,-Input!$B$35) -> 0 | D15: =IF(D3=0,0,-Input!$B$35) -> 0 | E15: =IF(E3=0,0,-Input!$B$35) -> 0 | F15: =IF(F3=0,0,-Input!$B$35) -> 0 | G15: =IF(G3=0,0,-Input!$B$35) -> 0 | H15: =IF(H3=0,0,-Input!$B$35) -> 0 | I15: =IF(I3=0,0,-Input!$B$35) -> 0 | J15: =IF(J3=0,0,-Input!$B$35) -> 0 | K15: =IF(K3=0,0,-Input!$B$35) -> 0 | L15: =IF(L3=0,0,-Input!$B$35) -> 0 | M15: =IF(M3=0,0,-Input!$B$35) -> 0 | N15: =IF(N3=0,0,-Input!$B$35) -> 0 | O15: =IF(O3=0,0,-Input!$B$35) -> 0 | P15: =IF(P3=0,0,-Input!$B$35) -> 0 | Q15: =IF(Q3=0,0,-Input!$B$35) -> 0 | R15: =IF(R3=0,0,-Input!$B$35) -> 0 | S15: =IF(S3=0,0,-Input!$B$35) -> 0 | T15: =IF(T3=0,0,-Input!$B$35) -> 0 | U15: =IF(U3=0,0,-Input!$B$35) -> 0 | V15: =IF(V3=0,0,-Input!$B$35) -> 0
A16: Equity Balance | B16: =SUM(B11:B15) -> 200000 | C16: =SUM(C11:C15) -> 233219.0653 | D16: 398790.0382 | E16: 645381.6082 | F16: 916714.3143 | G16: 1215270.63 | H16: 1543782.129 | I16: 1905254.481 | J16: 2302994.959 | K16: 2740642.704 | L16: 3222202.028 | M16: 3752079.058 | N16: 4335122.064 | O16: 4976665.823 | P16: 5682580.443 | Q16: 6459325.086 | R16: 7314007.085 | S16: 8254446.982 | T16: 9289250.11 | U16: 10427885.35 | V16: 11680771.78
A17: Equity Contributed (during the year) | B17: =-B6 -> 341494.5 | C17: =-C6 -> 85845.75047 | D17: 77490.69493 | E17: 68240.71113 | F17: 58002.82758 | G17: 46674.57575 | H17: 34143.02931 | I17: 20283.74663 | J17: 4959.607047 | K17: -11980.46997 | L17: -30702.93431 | M17: -51391.15641 | N17: -74247.1342 | O17: -99493.37151 | P17: -127374.945 | Q17: -158161.7789 | R17: -192151.1472 | S17: -229670.4282 | T17: -271080.1341 | U17: -316777.2451 | V17: -367198.8779
A18: Annual Net Profit / (Loss) | B18: =B16+B6+Control -> -141494.5 | C18: =IF(C3=0,0,C16+C6-B16) -> -52626.68522 | D18: =IF(D3=0,0,D16+D6-C16) -> 88080.27799 | E18: 178350.8589 | F18: 213329.8785 | G18: 251881.7399 | H18: 294368.4695 | I18: 341188.6056 | J18: 392780.8711 | K18: 449628.2148 | L18: 512262.2578 | M18: 581268.1871 | N18: 657290.1402 | O18: 741037.13 | P18: 833289.5649 | Q18: 934906.4228 | R18: 1046833.146 | S18: 1170110.325 | T18: 1305883.262 | U18: 1455412.483 | V18: 1620085.312
A19: Cumulative Profit / (Loss) | B19: =SUM($B$18:B$18) -> -141494.5 | C19: =IF(C3=0,0,SUM($B$18:C$18)) -> -194121.1852 | D19: =IF(D3=0,0,SUM($B$18:D$18)) -> -106040.9072 | E19: =IF(E3=0,0,SUM($B$18:E$18)) -> 72309.9517 | F19: =IF(F3=0,0,SUM($B$18:F$18)) -> 285639.8302 | G19: =IF(G3=0,0,SUM($B$18:G$18)) -> 537521.5701 | H19: =IF(H3=0,0,SUM($B$18:H$18)) -> 831890.0396 | I19: =IF(I3=0,0,SUM($B$18:I$18)) -> 1173078.645 | J19: =IF(J3=0,0,SUM($B$18:J$18)) -> 1565859.516 | K19: =IF(K3=0,0,SUM($B$18:K$18)) -> 2015487.731 | L19: =IF(L3=0,0,SUM($B$18:L$18)) -> 2527749.989 | M19: =IF(M3=0,0,SUM($B$18:M$18)) -> 3109018.176 | N19: =IF(N3=0,0,SUM($B$18:N$18)) -> 3766308.316 | O19: =IF(O3=0,0,SUM($B$18:O$18)) -> 4507345.446 | P19: =IF(P3=0,0,SUM($B$18:P$18)) -> 5340635.011 | Q19: =IF(Q3=0,0,SUM($B$18:Q$18)) -> 6275541.434 | R19: =IF(R3=0,0,SUM($B$18:R$18)) -> 7322374.579 | S19: =IF(S3=0,0,SUM($B$18:S$18)) -> 8492484.905 | T19: =IF(T3=0,0,SUM($B$18:T$18)) -> 9798368.167 | U19: =IF(U3=0,0,SUM($B$18:U$18)) -> 11253780.65 | V19: =IF(V3=0,0,SUM($B$18:V$18)) -> 12873865.96
A20: Ratios
A21: Annual Capital Growth | C21: =IF(C3=0,0,CashFlow!C4/100) -> 0.06 | D21: =IF(D3=0,0,CashFlow!D4/100) -> 0.06 | E21: =IF(E3=0,0,CashFlow!E4/100) -> 0.1 | F21: =IF(F3=0,0,CashFlow!F4/100) -> 0.1 | G21: =IF(G3=0,0,CashFlow!G4/100) -> 0.1 | H21: =IF(H3=0,0,CashFlow!H4/100) -> 0.1 | I21: =IF(I3=0,0,CashFlow!I4/100) -> 0.1 | J21: =IF(J3=0,0,CashFlow!J4/100) -> 0.1 | K21: =IF(K3=0,0,CashFlow!K4/100) -> 0.1 | L21: =IF(L3=0,0,CashFlow!L4/100) -> 0.1 | M21: =IF(M3=0,0,CashFlow!M4/100) -> 0.1 | N21: =IF(N3=0,0,CashFlow!N4/100) -> 0.1 | O21: =IF(O3=0,0,CashFlow!O4/100) -> 0.1 | P21: =IF(P3=0,0,CashFlow!P4/100) -> 0.1 | Q21: =IF(Q3=0,0,CashFlow!Q4/100) -> 0.1 | R21: =IF(R3=0,0,CashFlow!R4/100) -> 0.1 | S21: =IF(S3=0,0,CashFlow!S4/100) -> 0.1 | T21: =IF(T3=0,0,CashFlow!T4/100) -> 0.1 | U21: =IF(U3=0,0,CashFlow!U4/100) -> 0.1 | V21: =IF(V3=0,0,CashFlow!V4/100) -> 0.1
A22: Average Annual Capital Growth (cumulative) | C22: =IF(C3=0,0,RATE(C$3,0,-Input!$F$6,CashFlow!C$5,0,0)) -> 0.06 | D22: =IF(D3=0,0,RATE(D$3,0,-Input!$F$6,CashFlow!D$5,0,0)) -> 0.06 | E22: =IF(E3=0,0,RATE(E$3,0,-Input!$F$6,CashFlow!E$5,0,0)) -> 0.07316904841 | F22: =IF(F3=0,0,RATE(F$3,0,-Input!$F$6,CashFlow!F$5,0,0)) -> 0.07981479894 | G22: =IF(G3=0,0,RATE(G$3,0,-Input!$F$6,CashFlow!G$5,0,0)) -> 0.08382198725 | H22: =IF(H3=0,0,RATE(H$3,0,-Input!$F$6,CashFlow!H$5,0,0)) -> 0.08650170421 | I22: =IF(I3=0,0,RATE(I$3,0,-Input!$F$6,CashFlow!I$5,0,0)) -> 0.08841984323 | J22: =IF(J3=0,0,RATE(J$3,0,-Input!$F$6,CashFlow!J$5,0,0)) -> 0.08986066946 | K22: =IF(K3=0,0,RATE(K$3,0,-Input!$F$6,CashFlow!K$5,0,0)) -> 0.0909826306 | L22: =IF(L3=0,0,RATE(L$3,0,-Input!$F$6,CashFlow!L$5,0,0)) -> 0.09188103106 | M22: =IF(M3=0,0,RATE(M$3,0,-Input!$F$6,CashFlow!M$5,0,0)) -> 0.09261663622 | N22: =IF(N3=0,0,RATE(N$3,0,-Input!$F$6,CashFlow!N$5,0,0)) -> 0.09323001909 | O22: =IF(O3=0,0,RATE(O$3,0,-Input!$F$6,CashFlow!O$5,0,0)) -> 0.0937493043 | P22: =IF(P3=0,0,RATE(P$3,0,-Input!$F$6,CashFlow!P$5,0,0)) -> 0.09419460223 | Q22: =IF(Q3=0,0,RATE(Q$3,0,-Input!$F$6,CashFlow!Q$5,0,0)) -> 0.09458067375 | R22: =IF(R3=0,0,RATE(R$3,0,-Input!$F$6,CashFlow!R$5,0,0)) -> 0.09491859807 | S22: =IF(S3=0,0,RATE(S$3,0,-Input!$F$6,CashFlow!S$5,0,0)) -> 0.09521685322 | T22: =IF(T3=0,0,RATE(T$3,0,-Input!$F$6,CashFlow!T$5,0,0)) -> 0.09548203712 | U22: =IF(U3=0,0,RATE(U$3,0,-Input!$F$6,CashFlow!U$5,0,0)) -> 0.09571936135 | V22: =IF(V3=0,0,RATE(V$3,0,-Input!$F$6,CashFlow!V$5,0,0)) -> 0.09593299711
A23: Net Present Value (NPV) | C23: =IF(C$3<>0,NPV(Input!$B$43,OFFSET(Results!$C$51,COLUMN(C$5)-COLUMN($C$5),0,1,20))+$B$7,0) -> -202463.071 | D23: =IF(D$3<>0,NPV(Input!$B$43,OFFSET(Results!$C$51,COLUMN(D$5)-COLUMN($C$5),0,1,20))+$B$7,0) -> -136525.7854 | E23: =IF(E$3<>0,NPV(Input!$B$43,OFFSET(Results!$C$51,COLUMN(E$5)-COLUMN($C$5),0,1,20))+$B$7,0) -> -6868.873438 | F23: =IF(F$3<>0,NPV(Input!$B$43,OFFSET(Results!$C$51,COLUMN(F$5)-COLUMN($C$5),0,1,20))+$B$7,0) -> 131436.2106 | G23: =IF(G$3<>0,NPV(Input!$B$43,OFFSET(Results!$C$51,COLUMN(G$5)-COLUMN($C$5),0,1,20))+$B$7,0) -> 278555.5635 | H23: =IF(H$3<>0,NPV(Input!$B$43,OFFSET(Results!$C$51,COLUMN(H$5)-COLUMN($C$5),0,1,20))+$B$7,0) -> 434670.6485 | I23: =IF(I$3<>0,NPV(Input!$B$43,OFFSET(Results!$C$51,COLUMN(I$5)-COLUMN($C$5),0,1,20))+$B$7,0) -> 599978.3605 | J23: =IF(J$3<>0,NPV(Input!$B$43,OFFSET(Results!$C$51,COLUMN(J$5)-COLUMN($C$5),0,1,20))+$B$7,0) -> 774691.1243 | K23: =IF(K$3<>0,NPV(Input!$B$43,OFFSET(Results!$C$51,COLUMN(K$5)-COLUMN($C$5),0,1,20))+$B$7,0) -> 959037.0232 | L23: =IF(L$3<>0,NPV(Input!$B$43,OFFSET(Results!$C$51,COLUMN(L$5)-COLUMN($C$5),0,1,20))+$B$7,0) -> 1153259.958 | M23: =IF(M$3<>0,NPV(Input!$B$43,OFFSET(Results!$C$51,COLUMN(M$5)-COLUMN($C$5),0,1,20))+$B$7,0) -> 1357619.838 | N23: =IF(N$3<>0,NPV(Input!$B$43,OFFSET(Results!$C$51,COLUMN(N$5)-COLUMN($C$5),0,1,20))+$B$7,0) -> 1572392.8 | O23: =IF(O$3<>0,NPV(Input!$B$43,OFFSET(Results!$C$51,COLUMN(O$5)-COLUMN($C$5),0,1,20))+$B$7,0) -> 1797871.46 | P23: =IF(P$3<>0,NPV(Input!$B$43,OFFSET(Results!$C$51,COLUMN(P$5)-COLUMN($C$5),0,1,20))+$B$7,0) -> 2034365.193 | Q23: =IF(Q$3<>0,NPV(Input!$B$43,OFFSET(Results!$C$51,COLUMN(Q$5)-COLUMN($C$5),0,1,20))+$B$7,0) -> 2282200.442 | R23: =IF(R$3<>0,NPV(Input!$B$43,OFFSET(Results!$C$51,COLUMN(R$5)-COLUMN($C$5),0,1,20))+$B$7,0) -> 2541721.06 | S23: =IF(S$3<>0,NPV(Input!$B$43,OFFSET(Results!$C$51,COLUMN(S$5)-COLUMN($C$5),0,1,20))+$B$7,0) -> 2813288.681 | T23: =IF(T$3<>0,NPV(Input!$B$43,OFFSET(Results!$C$51,COLUMN(T$5)-COLUMN($C$5),0,1,20))+$B$7,0) -> 3097283.119 | U23: =IF(U$3<>0,NPV(Input!$B$43,OFFSET(Results!$C$51,COLUMN(U$5)-COLUMN($C$5),0,1,20))+$B$7,0) -> 3394102.799 | V23: =IF(V$3<>0,NPV(Input!$B$43,OFFSET(Results!$C$51,COLUMN(V$5)-COLUMN($C$5),0,1,20))+$B$7,0) -> 3704165.221
A24: Internal Rate of Return (IRR) | C24: =IF(C$3<>0,IF(ISERROR(IRR(OFFSET(Results!$B$51,COLUMN(C$5)-COLUMN($C$5),0,1,21)))=TRUE,0,IRR(OFFSET(Results!$B$51,COLUMN(C$5)-COLUMN($C$5),0,1,21))),0) -> -0.5684460078 | D24: =IF(D$3<>0,IF(ISERROR(IRR(OFFSET(Results!$B$51,COLUMN(D$5)-COLUMN($C$5),0,1,21)))=TRUE,0,IRR(OFFSET(Results!$B$51,COLUMN(D$5)-COLUMN($C$5),0,1,21))),0) -> -0.147600921 | E24: =IF(E$3<>0,IF(ISERROR(IRR(OFFSET(Results!$B$51,COLUMN(E$5)-COLUMN($C$5),0,1,21)))=TRUE,0,IRR(OFFSET(Results!$B$51,COLUMN(E$5)-COLUMN($C$5),0,1,21))),0) -> 0.05417219087 | F24: =IF(F$3<>0,IF(ISERROR(IRR(OFFSET(Results!$B$51,COLUMN(F$5)-COLUMN($C$5),0,1,21)))=TRUE,0,IRR(OFFSET(Results!$B$51,COLUMN(F$5)-COLUMN($C$5),0,1,21))),0) -> 0.1307806939 | G24: =IF(G$3<>0,IF(ISERROR(IRR(OFFSET(Results!$B$51,COLUMN(G$5)-COLUMN($C$5),0,1,21)))=TRUE,0,IRR(OFFSET(Results!$B$51,COLUMN(G$5)-COLUMN($C$5),0,1,21))),0) -> 0.1637892035 | H24: =IF(H$3<>0,IF(ISERROR(IRR(OFFSET(Results!$B$51,COLUMN(H$5)-COLUMN($C$5),0,1,21)))=TRUE,0,IRR(OFFSET(Results!$B$51,COLUMN(H$5)-COLUMN($C$5),0,1,21))),0) -> 0.1789458032 | I24: =IF(I$3<>0,IF(ISERROR(IRR(OFFSET(Results!$B$51,COLUMN(I$5)-COLUMN($C$5),0,1,21)))=TRUE,0,IRR(OFFSET(Results!$B$51,COLUMN(I$5)-COLUMN($C$5),0,1,21))),0) -> 0.1859126252 | J24: =IF(J$3<>0,IF(ISERROR(IRR(OFFSET(Results!$B$51,COLUMN(J$5)-COLUMN($C$5),0,1,21)))=TRUE,0,IRR(OFFSET(Results!$B$51,COLUMN(J$5)-COLUMN($C$5),0,1,21))),0) -> 0.1888264308 | K24: =IF(K$3<>0,IF(ISERROR(IRR(OFFSET(Results!$B$51,COLUMN(K$5)-COLUMN($C$5),0,1,21)))=TRUE,0,IRR(OFFSET(Results!$B$51,COLUMN(K$5)-COLUMN($C$5),0,1,21))),0) -> 0.1896372254 | L24: =IF(L$3<>0,IF(ISERROR(IRR(OFFSET(Results!$B$51,COLUMN(L$5)-COLUMN($C$5),0,1,21)))=TRUE,0,IRR(OFFSET(Results!$B$51,COLUMN(L$5)-COLUMN($C$5),0,1,21))),0) -> 0.1893316062 | M24: =IF(M$3<>0,IF(ISERROR(IRR(OFFSET(Results!$B$51,COLUMN(M$5)-COLUMN($C$5),0,1,21)))=TRUE,0,IRR(OFFSET(Results!$B$51,COLUMN(M$5)-COLUMN($C$5),0,1,21))),0) -> 0.1884354343 | N24: =IF(N$3<>0,IF(ISERROR(IRR(OFFSET(Results!$B$51,COLUMN(N$5)-COLUMN($C$5),0,1,21)))=TRUE,0,IRR(OFFSET(Results!$B$51,COLUMN(N$5)-COLUMN($C$5),0,1,21))),0) -> 0.1872397138 | O24: =IF(O$3<>0,IF(ISERROR(IRR(OFFSET(Results!$B$51,COLUMN(O$5)-COLUMN($C$5),0,1,21)))=TRUE,0,IRR(OFFSET(Results!$B$51,COLUMN(O$5)-COLUMN($C$5),0,1,21))),0) -> 0.1859095724 | P24: =IF(P$3<>0,IF(ISERROR(IRR(OFFSET(Results!$B$51,COLUMN(P$5)-COLUMN($C$5),0,1,21)))=TRUE,0,IRR(OFFSET(Results!$B$51,COLUMN(P$5)-COLUMN($C$5),0,1,21))),0) -> 0.1845399456 | Q24: =IF(Q$3<>0,IF(ISERROR(IRR(OFFSET(Results!$B$51,COLUMN(Q$5)-COLUMN($C$5),0,1,21)))=TRUE,0,IRR(OFFSET(Results!$B$51,COLUMN(Q$5)-COLUMN($C$5),0,1,21))),0) -> 0.1831853967 | R24: =IF(R$3<>0,IF(ISERROR(IRR(OFFSET(Results!$B$51,COLUMN(R$5)-COLUMN($C$5),0,1,21)))=TRUE,0,IRR(OFFSET(Results!$B$51,COLUMN(R$5)-COLUMN($C$5),0,1,21))),0) -> 0.1818767146 | S24: =IF(S$3<>0,IF(ISERROR(IRR(OFFSET(Results!$B$51,COLUMN(S$5)-COLUMN($C$5),0,1,21)))=TRUE,0,IRR(OFFSET(Results!$B$51,COLUMN(S$5)-COLUMN($C$5),0,1,21))),0) -> 0.1806304523 | T24: =IF(T$3<>0,IF(ISERROR(IRR(OFFSET(Results!$B$51,COLUMN(T$5)-COLUMN($C$5),0,1,21)))=TRUE,0,IRR(OFFSET(Results!$B$51,COLUMN(T$5)-COLUMN($C$5),0,1,21))),0) -> 0.1794545536 | U24: =IF(U$3<>0,IF(ISERROR(IRR(OFFSET(Results!$B$51,COLUMN(U$5)-COLUMN($C$5),0,1,21)))=TRUE,0,IRR(OFFSET(Results!$B$51,COLUMN(U$5)-COLUMN($C$5),0,1,21))),0) -> 0.1783517456 | V24: =IF(V$3<>0,IF(ISERROR(IRR(OFFSET(Results!$B$51,COLUMN(V$5)-COLUMN($C$5),0,1,21)))=TRUE,0,IRR(OFFSET(Results!$B$51,COLUMN(V$5)-COLUMN($C$5),0,1,21))),0) -> 0.1773216174
A25: Return on Equity | C25: =IF(C16=0,0,IF(C16<0,-C18/C16,C18/C16)) -> -0.2256534437 | D25: =IF(D16=0,0,IF(D16<0,-D18/D16,D18/D16)) -> 0.220868802 | E25: 0.27634946 | F25: 0.2327114077 | G25: 0.2072639079 | H25: 0.1906800603 | I25: 0.179077708 | J25: 0.1705522062 | K25: 0.1640594063 | L25: 0.1589789385 | M25: 0.1549189604 | N25: 0.1516197538 | O25: 0.1489023287 | P25: 0.1466392906 | Q25: 0.144737478 | R25: 0.1431271714 | S25: 0.1417551446 | T25: 0.1405800519 | U25: 0.1395692832 | V25: 0.1386967695
A26: Rental Yield - Market Value | C26: =IF(C$9=0,0,CashFlow!C$15/C$4*12/C$9) -> 0.07204116638 | D26: =IF(D$9=0,0,CashFlow!D$15/D$4*12/D$9) -> 0.07475970096 | E26: =IF(E$9=0,0,CashFlow!E$15/E$4*12/E$9) -> 0.07475970096 | F26: =IF(F$9=0,0,CashFlow!F$15/F$4*12/F$9) -> 0.07475970096 | G26: =IF(G$9=0,0,CashFlow!G$15/G$4*12/G$9) -> 0.07475970096 | H26: =IF(H$9=0,0,CashFlow!H$15/H$4*12/H$9) -> 0.07475970096 | I26: =IF(I$9=0,0,CashFlow!I$15/I$4*12/I$9) -> 0.07475970096 | J26: =IF(J$9=0,0,CashFlow!J$15/J$4*12/J$9) -> 0.07475970096 | K26: =IF(K$9=0,0,CashFlow!K$15/K$4*12/K$9) -> 0.07475970096 | L26: =IF(L$9=0,0,CashFlow!L$15/L$4*12/L$9) -> 0.07475970096 | M26: =IF(M$9=0,0,CashFlow!M$15/M$4*12/M$9) -> 0.07475970096 | N26: =IF(N$9=0,0,CashFlow!N$15/N$4*12/N$9) -> 0.07475970096 | O26: =IF(O$9=0,0,CashFlow!O$15/O$4*12/O$9) -> 0.07475970096 | P26: =IF(P$9=0,0,CashFlow!P$15/P$4*12/P$9) -> 0.07475970096 | Q26: =IF(Q$9=0,0,CashFlow!Q$15/Q$4*12/Q$9) -> 0.07475970096 | R26: =IF(R$9=0,0,CashFlow!R$15/R$4*12/R$9) -> 0.07475970096 | S26: =IF(S$9=0,0,CashFlow!S$15/S$4*12/S$9) -> 0.07475970096 | T26: =IF(T$9=0,0,CashFlow!T$15/T$4*12/T$9) -> 0.07475970096 | U26: =IF(U$9=0,0,CashFlow!U$15/U$4*12/U$9) -> 0.07475970096 | V26: =IF(V$9=0,0,CashFlow!V$15/V$4*12/V$9) -> 0.07475970096
A27: Rental Yield - Property Purchase Price | C27: =IF(C$3=0,0,IF(Input!$B$6=0,0,CashFlow!C$15/C$4*12/Input!$B$6)) -> 0.07636363636 | D27: =IF(D$3=0,0,IF(Input!$B$6=0,0,CashFlow!D$15/D$4*12/Input!$B$6)) -> 0.084 | E27: =IF(E$3=0,0,IF(Input!$B$6=0,0,CashFlow!E$15/E$4*12/Input!$B$6)) -> 0.0924 | F27: =IF(F$3=0,0,IF(Input!$B$6=0,0,CashFlow!F$15/F$4*12/Input!$B$6)) -> 0.10164 | G27: =IF(G$3=0,0,IF(Input!$B$6=0,0,CashFlow!G$15/G$4*12/Input!$B$6)) -> 0.111804 | H27: =IF(H$3=0,0,IF(Input!$B$6=0,0,CashFlow!H$15/H$4*12/Input!$B$6)) -> 0.1229844 | I27: =IF(I$3=0,0,IF(Input!$B$6=0,0,CashFlow!I$15/I$4*12/Input!$B$6)) -> 0.13528284 | J27: =IF(J$3=0,0,IF(Input!$B$6=0,0,CashFlow!J$15/J$4*12/Input!$B$6)) -> 0.148811124 | K27: =IF(K$3=0,0,IF(Input!$B$6=0,0,CashFlow!K$15/K$4*12/Input!$B$6)) -> 0.1636922364 | L27: =IF(L$3=0,0,IF(Input!$B$6=0,0,CashFlow!L$15/L$4*12/Input!$B$6)) -> 0.18006146 | M27: =IF(M$3=0,0,IF(Input!$B$6=0,0,CashFlow!M$15/M$4*12/Input!$B$6)) -> 0.198067606 | N27: =IF(N$3=0,0,IF(Input!$B$6=0,0,CashFlow!N$15/N$4*12/Input!$B$6)) -> 0.2178743666 | O27: =IF(O$3=0,0,IF(Input!$B$6=0,0,CashFlow!O$15/O$4*12/Input!$B$6)) -> 0.2396618033 | P27: =IF(P$3=0,0,IF(Input!$B$6=0,0,CashFlow!P$15/P$4*12/Input!$B$6)) -> 0.2636279836 | Q27: =IF(Q$3=0,0,IF(Input!$B$6=0,0,CashFlow!Q$15/Q$4*12/Input!$B$6)) -> 0.289990782 | R27: =IF(R$3=0,0,IF(Input!$B$6=0,0,CashFlow!R$15/R$4*12/Input!$B$6)) -> 0.3189898602 | S27: =IF(S$3=0,0,IF(Input!$B$6=0,0,CashFlow!S$15/S$4*12/Input!$B$6)) -> 0.3508888462 | T27: =IF(T$3=0,0,IF(Input!$B$6=0,0,CashFlow!T$15/T$4*12/Input!$B$6)) -> 0.3859777309 | U27: =IF(U$3=0,0,IF(Input!$B$6=0,0,CashFlow!U$15/U$4*12/Input!$B$6)) -> 0.4245755039 | V27: =IF(V$3=0,0,IF(Input!$B$6=0,0,CashFlow!V$15/V$4*12/Input!$B$6)) -> 0.4670330543
A28: Rental Yield - Outstanding Bond Amount | C28: =IF(C$3=0,0,IF(C$10=0,0,CashFlow!C$15/C$4*12/-C$10)) -> 0.08545891465 | D28: =IF(D$3=0,0,IF(D$10=0,0,CashFlow!D$15/D$4*12/-D$10)) -> 0.09583908719 | E28: =IF(E$3=0,0,IF(E$10=0,0,CashFlow!E$15/E$4*12/-E$10)) -> 0.1077396653 | F28: =IF(F$3=0,0,IF(F$10=0,0,CashFlow!F$15/F$4*12/-F$10)) -> 0.1214547733 | G28: =IF(G$3=0,0,IF(G$10=0,0,CashFlow!G$15/G$4*12/-G$10)) -> 0.1373566337 | H28: =IF(H$3=0,0,IF(H$10=0,0,CashFlow!H$15/H$4*12/-H$10)) -> 0.1559234024 | I28: =IF(I$3=0,0,IF(I$10=0,0,CashFlow!I$15/I$4*12/-I$10)) -> 0.1777798522 | J28: =IF(J$3=0,0,IF(J$10=0,0,CashFlow!J$15/J$4*12/-J$10)) -> 0.203758397 | K28: =IF(K$3=0,0,IF(K$10=0,0,CashFlow!K$15/K$4*12/-K$10)) -> 0.2349934048 | L28: =IF(L$3=0,0,IF(L$10=0,0,CashFlow!L$15/L$4*12/-L$10)) -> 0.2730720999 | M28: =IF(M$3=0,0,IF(M$10=0,0,CashFlow!M$15/M$4*12/-M$10)) -> 0.3202860712 | N28: =IF(N$3=0,0,IF(N$10=0,0,CashFlow!N$15/N$4*12/-N$10)) -> 0.380071416 | O28: =IF(O$3=0,0,IF(O$10=0,0,CashFlow!O$15/O$4*12/-O$10)) -> 0.4578261567 | P28: =IF(P$3=0,0,IF(P$10=0,0,CashFlow!P$15/P$4*12/-P$10)) -> 0.5625450847 | Q28: =IF(Q$3=0,0,IF(Q$10=0,0,CashFlow!Q$15/Q$4*12/-Q$10)) -> 0.7104164283 | R28: =IF(R$3=0,0,IF(R$10=0,0,CashFlow!R$15/R$4*12/-R$10)) -> 0.9338135402 | S28: =IF(S$3=0,0,IF(S$10=0,0,CashFlow!S$15/S$4*12/-S$10)) -> 1.308269987 | T28: =IF(T$3=0,0,IF(T$10=0,0,CashFlow!T$15/T$4*12/-T$10)) -> 2.060379945 | U28: =IF(U$3=0,0,IF(U$10=0,0,CashFlow!U$15/U$4*12/-U$10)) -> 4.323101053 | V28: =IF(V$3=0,0,IF(V$10=0,0,CashFlow!V$15/V$4*12/-V$10)) -> 0
A29: Net Rental Yield - Market Value | C29: =IF(C$9=0,0,SUM(CashFlow!C15:C21)/C$4*12/C$9) -> 0.05130360206 | D29: =IF(D$9=0,0,SUM(CashFlow!D15:D21)/D$4*12/D$9) -> 0.05383183922 | E29: =IF(E$9=0,0,SUM(CashFlow!E15:E21)/E$4*12/E$9) -> 0.05440255495 | F29: =IF(F$9=0,0,SUM(CashFlow!F15:F21)/F$4*12/F$9) -> 0.05495251739 | G29: =IF(G$9=0,0,SUM(CashFlow!G15:G21)/G$4*12/G$9) -> 0.05548248119 | H29: =IF(H$9=0,0,SUM(CashFlow!H15:H21)/H$4*12/H$9) -> 0.05599317358 | I29: =IF(I$9=0,0,SUM(CashFlow!I15:I21)/I$4*12/I$9) -> 0.05648529533 | J29: =IF(J$9=0,0,SUM(CashFlow!J15:J21)/J$4*12/J$9) -> 0.05695952175 | K29: =IF(K$9=0,0,SUM(CashFlow!K15:K21)/K$4*12/K$9) -> 0.05741650358 | L29: =IF(L$9=0,0,SUM(CashFlow!L15:L21)/L$4*12/L$9) -> 0.05785686788 | M29: =IF(M$9=0,0,SUM(CashFlow!M15:M21)/M$4*12/M$9) -> 0.05828121893 | N29: =IF(N$9=0,0,SUM(CashFlow!N15:N21)/N$4*12/N$9) -> 0.05869013904 | O29: =IF(O$9=0,0,SUM(CashFlow!O15:O21)/O$4*12/O$9) -> 0.05908418933 | P29: =IF(P$9=0,0,SUM(CashFlow!P15:P21)/P$4*12/P$9) -> 0.05946391051 | Q29: =IF(Q$9=0,0,SUM(CashFlow!Q15:Q21)/Q$4*12/Q$9) -> 0.05982982365 | R29: =IF(R$9=0,0,SUM(CashFlow!R15:R21)/R$4*12/R$9) -> 0.06018243086 | S29: =IF(S$9=0,0,SUM(CashFlow!S15:S21)/S$4*12/S$9) -> 0.06052221599 | T29: =IF(T$9=0,0,SUM(CashFlow!T15:T21)/T$4*12/T$9) -> 0.0608496453 | U29: =IF(U$9=0,0,SUM(CashFlow!U15:U21)/U$4*12/U$9) -> 0.06116516808 | V29: =IF(V$9=0,0,SUM(CashFlow!V15:V21)/V$4*12/V$9) -> 0.06146921731
A30: Net Rental Yield - Property Purchase Price | C30: =IF(C$3=0,0,IF(Input!$B$6=0,0,SUM(CashFlow!C15:C21)/C$4*12/Input!$B$6)) -> 0.05438181818 | D30: =IF(D$3=0,0,IF(Input!$B$6=0,0,SUM(CashFlow!D15:D21)/D$4*12/Input!$B$6)) -> 0.06048545455 | E30: =IF(E$3=0,0,IF(Input!$B$6=0,0,SUM(CashFlow!E15:E21)/E$4*12/Input!$B$6)) -> 0.06723938182 | F30: =IF(F$3=0,0,IF(Input!$B$6=0,0,SUM(CashFlow!F15:F21)/F$4*12/Input!$B$6)) -> 0.07471102473 | G30: =IF(G$3=0,0,IF(Input!$B$6=0,0,SUM(CashFlow!G15:G21)/G$4*12/Input!$B$6)) -> 0.08297469421 | H30: =IF(H$3=0,0,IF(Input!$B$6=0,0,SUM(CashFlow!H15:H21)/H$4*12/Input!$B$6)) -> 0.09211228466 | I30: =IF(I$3=0,0,IF(Input!$B$6=0,0,SUM(CashFlow!I15:I21)/I$4*12/Input!$B$6)) -> 0.1022140414 | J30: =IF(J$3=0,0,IF(Input!$B$6=0,0,SUM(CashFlow!J15:J21)/J$4*12/Input!$B$6)) -> 0.1133794056 | K30: =IF(K$3=0,0,IF(Input!$B$6=0,0,SUM(CashFlow!K15:K21)/K$4*12/Input!$B$6)) -> 0.1257179437 | L30: =IF(L$3=0,0,IF(Input!$B$6=0,0,SUM(CashFlow!L15:L21)/L$4*12/Input!$B$6)) -> 0.1393503715 | M30: =IF(M$3=0,0,IF(Input!$B$6=0,0,SUM(CashFlow!M15:M21)/M$4*12/Input!$B$6)) -> 0.1544096801 | N30: =IF(N$3=0,0,IF(Input!$B$6=0,0,SUM(CashFlow!N15:N21)/N$4*12/Input!$B$6)) -> 0.1710423759 | O30: =IF(O$3=0,0,IF(Input!$B$6=0,0,SUM(CashFlow!O15:O21)/O$4*12/Input!$B$6)) -> 0.1894098449 | P30: =IF(P$3=0,0,IF(Input!$B$6=0,0,SUM(CashFlow!P15:P21)/P$4*12/Input!$B$6)) -> 0.2096898546 | Q30: =IF(Q$3=0,0,IF(Input!$B$6=0,0,SUM(CashFlow!Q15:Q21)/Q$4*12/Input!$B$6)) -> 0.2320782069 | R30: =IF(R$3=0,0,IF(Input!$B$6=0,0,SUM(CashFlow!R15:R21)/R$4*12/Input!$B$6)) -> 0.2567905564 | S30: =IF(S$3=0,0,IF(Input!$B$6=0,0,SUM(CashFlow!S15:S21)/S$4*12/Input!$B$6)) -> 0.2840644126 | T30: =IF(T$3=0,0,IF(Input!$B$6=0,0,SUM(CashFlow!T15:T21)/T$4*12/Input!$B$6)) -> 0.3141613424 | U30: =IF(U$3=0,0,IF(Input!$B$6=0,0,SUM(CashFlow!U15:U21)/U$4*12/Input!$B$6)) -> 0.3473693946 | V30: =IF(V$3=0,0,IF(Input!$B$6=0,0,SUM(CashFlow!V15:V21)/V$4*12/Input!$B$6)) -> 0.384005767
A31: Net Rental Yield - Outstanding Bond Amount | C31: =IF(C$3=0,0,IF(C$10=0,0,SUM(CashFlow!C15:C21)/C$4*12/-C$10)) -> 0.06085895565 | D31: =IF(D$3=0,0,IF(D$10=0,0,SUM(CashFlow!D15:D21)/D$4*12/-D$10)) -> 0.06901036609 | E31: =IF(E$3=0,0,IF(E$10=0,0,SUM(CashFlow!E15:E21)/E$4*12/-E$10)) -> 0.07840203997 | F31: =IF(F$3=0,0,IF(F$10=0,0,SUM(CashFlow!F15:F21)/F$4*12/-F$10)) -> 0.08927597967 | G31: =IF(G$3=0,0,IF(G$10=0,0,SUM(CashFlow!G15:G21)/G$4*12/-G$10)) -> 0.101938434 | H31: =IF(H$3=0,0,IF(H$10=0,0,SUM(CashFlow!H15:H21)/H$4*12/-H$10)) -> 0.1167827857 | I31: =IF(I$3=0,0,IF(I$10=0,0,SUM(CashFlow!I15:I21)/I$4*12/-I$10)) -> 0.1343230019 | J31: =IF(J$3=0,0,IF(J$10=0,0,SUM(CashFlow!J15:J21)/J$4*12/-J$10)) -> 0.1552438105 | K31: =IF(K$3=0,0,IF(K$10=0,0,SUM(CashFlow!K15:K21)/K$4*12/-K$10)) -> 0.1804782455 | L31: =IF(L$3=0,0,IF(L$10=0,0,SUM(CashFlow!L15:L21)/L$4*12/-L$10)) -> 0.2113317228 | M31: =IF(M$3=0,0,IF(M$10=0,0,SUM(CashFlow!M15:M21)/M$4*12/-M$10)) -> 0.249688835 | N31: =IF(N$3=0,0,IF(N$10=0,0,SUM(CashFlow!N15:N21)/N$4*12/-N$10)) -> 0.2983752471 | O31: =IF(O$3=0,0,IF(O$10=0,0,SUM(CashFlow!O15:O21)/O$4*12/-O$10)) -> 0.3618297957 | P31: =IF(P$3=0,0,IF(P$10=0,0,SUM(CashFlow!P15:P21)/P$4*12/-P$10)) -> 0.4474486943 | Q31: =IF(Q$3=0,0,IF(Q$10=0,0,SUM(CashFlow!Q15:Q21)/Q$4*12/-Q$10)) -> 0.5685427988 | R31: =IF(R$3=0,0,IF(R$10=0,0,SUM(CashFlow!R15:R21)/R$4*12/-R$10)) -> 0.7517307868 | S31: =IF(S$3=0,0,IF(S$10=0,0,SUM(CashFlow!S15:S21)/S$4*12/-S$10)) -> 1.059118719 | T31: =IF(T$3=0,0,IF(T$10=0,0,SUM(CashFlow!T15:T21)/T$4*12/-T$10)) -> 1.67701833 | U31: =IF(U$3=0,0,IF(U$10=0,0,SUM(CashFlow!U15:U21)/U$4*12/-U$10)) -> 3.536975124 | V31: =IF(V$3=0,0,IF(V$10=0,0,SUM(CashFlow!V15:V21)/V$4*12/-V$10)) -> 0
A32: Equity 1 / Market Value | C32: =IF(C$9=0,0,C11/C$9) -> 0.1570081755 | D32: =IF(D$9=0,0,D11/D$9) -> 0.2199456072 | E32: 0.3061079154 | F32: 0.3844646949 | G32: 0.4557255884 | H32: 0.5205357258 | I32: 0.579481589 | J32: 0.6330963432 | K32: 0.6818646845 | L32: 0.7262272455 | M32: 0.7665846014 | N32: 0.8033009118 | O32: 0.8367072308 | P32: 0.8671045166 | Q32: 0.894766368 | R32: 0.9199415111 | S32: 0.9428560605 | T32: 0.9637155753 | U32: 0.9827069273 | V32: 1
A33: Disposal Cost % | C33: =IF(C$9=0,0,-SUM(C12:C15)/C$9) -> 0.057 | D33: =IF(D$9=0,0,-SUM(D12:D15)/D$9) -> 0.05861755526 | E33: 0.06875777751 | F33: 0.07797616137 | G33: 0.08635651034 | H33: 0.0939750094 | I33: 0.1009009176 | J33: 0.1071971979 | K33: 0.112921089 | L33: 0.1181246263 | M33: 0.1228551148 | N33: 0.1271555589 | O33: 0.1310650536 | P33: 0.1346191396 | Q33: 0.1378501269 | R33: 0.1407873881 | S33: 0.1434576256 | T33: 0.1458851141 | U33: 0.148091922 | V33: 0.1500981109
A34: Outstanding Bond % | C34: =IF(Input!$B$6-Input!$B$7=0,0,-C10/(Input!$B$6-Input!$B$7)) -> 0.9829284674 | D34: =IF(Input!$B$6-Input!$B$7=0,0,-D10/(Input!$B$6-Input!$B$7)) -> 0.9641160273 | E34: =IF(Input!$B$6-Input!$B$7=0,0,-E10/(Input!$B$6-Input!$B$7)) -> 0.9433851469 | F34: =IF(Input!$B$6-Input!$B$7=0,0,-F10/(Input!$B$6-Input!$B$7)) -> 0.920540189 | G34: =IF(Input!$B$6-Input!$B$7=0,0,-G10/(Input!$B$6-Input!$B$7)) -> 0.8953655657 | H34: =IF(Input!$B$6-Input!$B$7=0,0,-H10/(Input!$B$6-Input!$B$7)) -> 0.8676237044 | I34: =IF(Input!$B$6-Input!$B$7=0,0,-I10/(Input!$B$6-Input!$B$7)) -> 0.8370528052 | J34: =IF(Input!$B$6-Input!$B$7=0,0,-J10/(Input!$B$6-Input!$B$7)) -> 0.8033643707 | K34: =IF(Input!$B$6-Input!$B$7=0,0,-K10/(Input!$B$6-Input!$B$7)) -> 0.7662404833 | L34: =IF(Input!$B$6-Input!$B$7=0,0,-L10/(Input!$B$6-Input!$B$7)) -> 0.7253308051 | M34: =IF(Input!$B$6-Input!$B$7=0,0,-M10/(Input!$B$6-Input!$B$7)) -> 0.6802492716 | N34: =IF(Input!$B$6-Input!$B$7=0,0,-N10/(Input!$B$6-Input!$B$7)) -> 0.6305704487 | O34: =IF(Input!$B$6-Input!$B$7=0,0,-O10/(Input!$B$6-Input!$B$7)) -> 0.5758255175 | P34: =IF(Input!$B$6-Input!$B$7=0,0,-P10/(Input!$B$6-Input!$B$7)) -> 0.5154978505 | Q34: =IF(Input!$B$6-Input!$B$7=0,0,-Q10/(Input!$B$6-Input!$B$7)) -> 0.4490181357 | R34: =IF(Input!$B$6-Input!$B$7=0,0,-R10/(Input!$B$6-Input!$B$7)) -> 0.3757590045 | S34: =IF(Input!$B$6-Input!$B$7=0,0,-S10/(Input!$B$6-Input!$B$7)) -> 0.2950291107 | T34: =IF(Input!$B$6-Input!$B$7=0,0,-T10/(Input!$B$6-Input!$B$7)) -> 0.2060666068 | U34: =IF(Input!$B$6-Input!$B$7=0,0,-U10/(Input!$B$6-Input!$B$7)) -> 0.108031954 | V34: =IF(Input!$B$6-Input!$B$7=0,0,-V10/(Input!$B$6-Input!$B$7)) -> 0
A35: Cumulative Profit / Property Purchase Price | C35: =IF(C$3=0,0,IF(Input!$B$6=0,0,C19/Input!$B$6)) -> -0.08823690237 | D35: =IF(D$3=0,0,IF(Input!$B$6=0,0,D19/Input!$B$6)) -> -0.04820041238 | E35: =IF(E$3=0,0,IF(Input!$B$6=0,0,E19/Input!$B$6)) -> 0.03286815986 | F35: =IF(F$3=0,0,IF(Input!$B$6=0,0,F19/Input!$B$6)) -> 0.1298362865 | G35: =IF(G$3=0,0,IF(Input!$B$6=0,0,G19/Input!$B$6)) -> 0.2443279864 | H35: =IF(H$3=0,0,IF(Input!$B$6=0,0,H19/Input!$B$6)) -> 0.3781318362 | I35: =IF(I$3=0,0,IF(Input!$B$6=0,0,I19/Input!$B$6)) -> 0.533217566 | J35: =IF(J$3=0,0,IF(Input!$B$6=0,0,J19/Input!$B$6)) -> 0.7117543256 | K35: =IF(K$3=0,0,IF(Input!$B$6=0,0,K19/Input!$B$6)) -> 0.9161307869 | L35: =IF(L$3=0,0,IF(Input!$B$6=0,0,L19/Input!$B$6)) -> 1.148977268 | M35: =IF(M$3=0,0,IF(Input!$B$6=0,0,M19/Input!$B$6)) -> 1.41319008 | N35: =IF(N$3=0,0,IF(Input!$B$6=0,0,N19/Input!$B$6)) -> 1.711958326 | O35: =IF(O$3=0,0,IF(Input!$B$6=0,0,O19/Input!$B$6)) -> 2.048793385 | P35: =IF(P$3=0,0,IF(Input!$B$6=0,0,P19/Input!$B$6)) -> 2.427561369 | Q35: =IF(Q$3=0,0,IF(Input!$B$6=0,0,Q19/Input!$B$6)) -> 2.852518834 | R35: =IF(R$3=0,0,IF(Input!$B$6=0,0,R19/Input!$B$6)) -> 3.328352082 | S35: =IF(S$3=0,0,IF(Input!$B$6=0,0,S19/Input!$B$6)) -> 3.860220411 | T35: =IF(T$3=0,0,IF(Input!$B$6=0,0,T19/Input!$B$6)) -> 4.453803712 | U35: =IF(U$3=0,0,IF(Input!$B$6=0,0,U19/Input!$B$6)) -> 5.115354841 | V35: =IF(V$3=0,0,IF(Input!$B$6=0,0,V19/Input!$B$6)) -> 5.851757255
A36: © www.excel-skills.com
A50: Annual IRR & NPV Calculations
A51: Year 1 Cash Flow | B51: =$B$7 -> -341494.5 | C51: =IF(COLUMN(C$5)-COLUMN($B$5)=ROW($A51)-ROW($A$51)+1,SUM(C$6,C$16),IF(COLUMN(C$5)-COLUMN($B$5)>ROW($A51)-ROW($A$51)+1,0,C$6)) -> 147373.3148 | D51: 0 | E51: 0 | F51: 0 | G51: 0 | H51: 0 | I51: 0 | J51: 0 | K51: 0 | L51: 0 | M51: =IF(COLUMN(M$5)-COLUMN($B$5)=ROW($A51)-ROW($A$51)+1,SUM(M$6,M$16),IF(COLUMN(M$5)-COLUMN($B$5)>ROW($A51)-ROW($A$51)+1,0,M$6)) -> 0 | N51: 0 | O51: 0 | P51: 0 | Q51: 0 | R51: 0 | S51: 0 | T51: 0 | U51: 0 | V51: 0
A52: Year 2 Cash Flow | B52: =$B$7 -> -341494.5 | C52: -85845.75047 | D52: 321299.3432 | E52: 0 | F52: 0 | G52: 0 | H52: 0 | I52: 0 | J52: 0 | K52: 0 | L52: 0 | M52: 0 | N52: 0 | O52: 0 | P52: 0 | Q52: 0 | R52: 0 | S52: 0 | T52: 0 | U52: 0 | V52: 0
A53: Year 3 Cash Flow | B53: -341494.5 | C53: -85845.75047 | D53: -77490.69493 | E53: 577140.8971 | F53: 0 | G53: 0 | H53: 0 | I53: 0 | J53: 0 | K53: 0 | L53: 0 | M53: 0 | N53: 0 | O53: 0 | P53: 0 | Q53: 0 | R53: 0 | S53: 0 | T53: 0 | U53: 0 | V53: 0
A54: Year 4 Cash Flow | B54: -341494.5 | C54: -85845.75047 | D54: -77490.69493 | E54: -68240.71113 | F54: 858711.4867 | G54: 0 | H54: 0 | I54: 0 | J54: 0 | K54: 0 | L54: 0 | M54: 0 | N54: 0 | O54: 0 | P54: 0 | Q54: 0 | R54: 0 | S54: 0 | T54: 0 | U54: 0 | V54: 0
A55: Year 5 Cash Flow | B55: -341494.5 | C55: -85845.75047 | D55: -77490.69493 | E55: -68240.71113 | F55: -58002.82758 | G55: 1168596.054 | H55: 0 | I55: 0 | J55: 0 | K55: 0 | L55: 0 | M55: 0 | N55: 0 | O55: 0 | P55: 0 | Q55: 0 | R55: 0 | S55: 0 | T55: 0 | U55: 0 | V55: 0
A56: Year 6 Cash Flow | B56: -341494.5 | C56: -85845.75047 | D56: -77490.69493 | E56: -68240.71113 | F56: -58002.82758 | G56: -46674.57575 | H56: 1509639.1 | I56: 0 | J56: 0 | K56: 0 | L56: 0 | M56: 0 | N56: 0 | O56: 0 | P56: 0 | Q56: 0 | R56: 0 | S56: 0 | T56: 0 | U56: 0 | V56: 0
A57: Year 7 Cash Flow | B57: -341494.5 | C57: -85845.75047 | D57: -77490.69493 | E57: -68240.71113 | F57: -58002.82758 | G57: -46674.57575 | H57: -34143.02931 | I57: 1884970.734 | J57: 0 | K57: 0 | L57: 0 | M57: 0 | N57: 0 | O57: 0 | P57: 0 | Q57: 0 | R57: 0 | S57: 0 | T57: 0 | U57: 0 | V57: 0
A58: Year 8 Cash Flow | B58: -341494.5 | C58: -85845.75047 | D58: -77490.69493 | E58: -68240.71113 | F58: -58002.82758 | G58: -46674.57575 | H58: -34143.02931 | I58: -20283.74663 | J58: 2298035.352 | K58: 0 | L58: 0 | M58: 0 | N58: 0 | O58: 0 | P58: 0 | Q58: 0 | R58: 0 | S58: 0 | T58: 0 | U58: 0 | V58: 0
A59: Year 9 Cash Flow | B59: -341494.5 | C59: -85845.75047 | D59: -77490.69493 | E59: -68240.71113 | F59: -58002.82758 | G59: -46674.57575 | H59: -34143.02931 | I59: -20283.74663 | J59: -4959.607047 | K59: 2752623.174 | L59: 0 | M59: 0 | N59: 0 | O59: 0 | P59: 0 | Q59: 0 | R59: 0 | S59: 0 | T59: 0 | U59: 0 | V59: 0
A60: Year 10 Cash Flow | B60: -341494.5 | C60: -85845.75047 | D60: -77490.69493 | E60: -68240.71113 | F60: -58002.82758 | G60: -46674.57575 | H60: -34143.02931 | I60: -20283.74663 | J60: -4959.607047 | K60: 11980.46997 | L60: 3252904.962 | M60: 0 | N60: 0 | O60: 0 | P60: 0 | Q60: 0 | R60: 0 | S60: 0 | T60: 0 | U60: 0 | V60: 0
A61: Year 11 Cash Flow | B61: -341494.5 | C61: =IF(COLUMN(C$5)-COLUMN($B$5)=ROW($A61)-ROW($A$51)+1,SUM(C$6,C$16),IF(COLUMN(C$5)-COLUMN($B$5)>ROW($A61)-ROW($A$51)+1,0,C$6)) -> -85845.75047 | D61: -77490.69493 | E61: -68240.71113 | F61: -58002.82758 | G61: -46674.57575 | H61: -34143.02931 | I61: -20283.74663 | J61: -4959.607047 | K61: 11980.46997 | L61: 30702.93431 | M61: =IF(COLUMN(M$5)-COLUMN($B$5)=ROW($A61)-ROW($A$51)+1,SUM(M$6,M$16),IF(COLUMN(M$5)-COLUMN($B$5)>ROW($A61)-ROW($A$51)+1,0,M$6)) -> 3803470.215 | N61: 0 | O61: 0 | P61: 0 | Q61: 0 | R61: 0 | S61: 0 | T61: 0 | U61: 0 | V61: 0
A62: Year 12 Cash Flow | B62: -341494.5 | C62: -85845.75047 | D62: -77490.69493 | E62: -68240.71113 | F62: -58002.82758 | G62: -46674.57575 | H62: -34143.02931 | I62: -20283.74663 | J62: -4959.607047 | K62: 11980.46997 | L62: 30702.93431 | M62: 51391.15641 | N62: 4409369.198 | O62: 0 | P62: 0 | Q62: 0 | R62: 0 | S62: 0 | T62: 0 | U62: 0 | V62: 0
A63: Year 13 Cash Flow | B63: -341494.5 | C63: -85845.75047 | D63: -77490.69493 | E63: -68240.71113 | F63: -58002.82758 | G63: -46674.57575 | H63: -34143.02931 | I63: -20283.74663 | J63: -4959.607047 | K63: 11980.46997 | L63: 30702.93431 | M63: 51391.15641 | N63: 74247.1342 | O63: 5076159.194 | P63: 0 | Q63: 0 | R63: 0 | S63: 0 | T63: 0 | U63: 0 | V63: 0
A64: Year 14 Cash Flow | B64: -341494.5 | C64: -85845.75047 | D64: -77490.69493 | E64: -68240.71113 | F64: -58002.82758 | G64: -46674.57575 | H64: -34143.02931 | I64: -20283.74663 | J64: -4959.607047 | K64: 11980.46997 | L64: 30702.93431 | M64: 51391.15641 | N64: 74247.1342 | O64: 99493.37151 | P64: 5809955.388 | Q64: 0 | R64: 0 | S64: 0 | T64: 0 | U64: 0 | V64: 0
A65: Year 15 Cash Flow | B65: -341494.5 | C65: -85845.75047 | D65: -77490.69493 | E65: -68240.71113 | F65: -58002.82758 | G65: -46674.57575 | H65: -34143.02931 | I65: -20283.74663 | J65: -4959.607047 | K65: 11980.46997 | L65: 30702.93431 | M65: 51391.15641 | N65: 74247.1342 | O65: 99493.37151 | P65: 127374.945 | Q65: 6617486.865 | R65: 0 | S65: 0 | T65: 0 | U65: 0 | V65: 0
A66: Year 16 Cash Flow | B66: -341494.5 | C66: -85845.75047 | D66: -77490.69493 | E66: -68240.71113 | F66: -58002.82758 | G66: -46674.57575 | H66: -34143.02931 | I66: -20283.74663 | J66: -4959.607047 | K66: 11980.46997 | L66: 30702.93431 | M66: 51391.15641 | N66: 74247.1342 | O66: 99493.37151 | P66: 127374.945 | Q66: 158161.7789 | R66: 7506158.232 | S66: 0 | T66: 0 | U66: 0 | V66: 0
A67: Year 17 Cash Flow | B67: -341494.5 | C67: -85845.75047 | D67: -77490.69493 | E67: -68240.71113 | F67: -58002.82758 | G67: -46674.57575 | H67: -34143.02931 | I67: -20283.74663 | J67: -4959.607047 | K67: 11980.46997 | L67: 30702.93431 | M67: 51391.15641 | N67: 74247.1342 | O67: 99493.37151 | P67: 127374.945 | Q67: 158161.7789 | R67: 192151.1472 | S67: 8484117.41 | T67: 0 | U67: 0 | V67: 0
A68: Year 18 Cash Flow | B68: -341494.5 | C68: -85845.75047 | D68: -77490.69493 | E68: -68240.71113 | F68: -58002.82758 | G68: -46674.57575 | H68: -34143.02931 | I68: -20283.74663 | J68: -4959.607047 | K68: 11980.46997 | L68: 30702.93431 | M68: 51391.15641 | N68: 74247.1342 | O68: 99493.37151 | P68: 127374.945 | Q68: 158161.7789 | R68: 192151.1472 | S68: 229670.4282 | T68: 9560330.244 | U68: 0 | V68: 0
A69: Year 19 Cash Flow | B69: -341494.5 | C69: -85845.75047 | D69: -77490.69493 | E69: -68240.71113 | F69: -58002.82758 | G69: -46674.57575 | H69: -34143.02931 | I69: -20283.74663 | J69: -4959.607047 | K69: 11980.46997 | L69: 30702.93431 | M69: 51391.15641 | N69: 74247.1342 | O69: 99493.37151 | P69: 127374.945 | Q69: 158161.7789 | R69: 192151.1472 | S69: 229670.4282 | T69: 271080.1341 | U69: 10744662.59 | V69: 0
A70: Year 20 Cash Flow | B70: -341494.5 | C70: -85845.75047 | D70: -77490.69493 | E70: -68240.71113 | F70: -58002.82758 | G70: -46674.57575 | H70: -34143.02931 | I70: -20283.74663 | J70: -4959.607047 | K70: 11980.46997 | L70: 30702.93431 | M70: 51391.15641 | N70: 74247.1342 | O70: 99493.37151 | P70: 127374.945 | Q70: 158161.7789 | R70: 192151.1472 | S70: 229670.4282 | T70: 271080.1341 | U70: 316777.2451 | V70: 12047970.66
A71: =IF($L$1="",0,"lock") -> 0

Sheet Variables (hidden)
A1: Residential Property Investment Forecast
A2: Default Calculation Variables
A3: © www.excel-skills.com
A4: Transfer Duty
A6: Property Value Brackets | B6: Value | C6: Rate | D6: Equivalent Value
A7: ="From 0 to "&FIXED(B7,0,0) -> From 0 to 1,100,000 | B7: 1100000 | C7: 0 | D7: =B7*C7 -> 0
A8: ="From "&FIXED(OFFSET($A$6,ROW(B8)-ROW(B$6)-1,1,1,1),0,0)&" to "&FIXED(B8,0,0) -> From 1,100,000 to 1,512,500 | B8: 1512500 | C8: 0.03 | D8: =((B8-OFFSET($B$6,ROW(B8)-ROW(B$6)-1,0,1,1))*C8)+OFFSET($D$6,ROW(B8)-ROW(B$6)-1,0,1,1) -> 12375
A9: ="From "&FIXED(OFFSET($A$6,ROW(B9)-ROW(B$6)-1,1,1,1),0,0)&" to "&FIXED(B9,0,0) -> From 1,512,500 to 2,117,500 | B9: 2117500 | C9: 0.06 | D9: =((B9-OFFSET($B$6,ROW(B9)-ROW(B$6)-1,0,1,1))*C9)+OFFSET($D$6,ROW(B9)-ROW(B$6)-1,0,1,1) -> 48675
A10: ="From "&FIXED(OFFSET($A$6,ROW(B10)-ROW(B$6)-1,1,1,1),0,0)&" to "&FIXED(B10,0,0) -> From 2,117,500 to 2,722,500 | B10: 2722500 | C10: 0.08 | D10: =((B10-OFFSET($B$6,ROW(B10)-ROW(B$6)-1,0,1,1))*C10)+OFFSET($D$6,ROW(B10)-ROW(B$6)-1,0,1,1) -> 97075
A11: ="From "&FIXED(OFFSET($A$6,ROW(B11)-ROW(B$6)-1,1,1,1),0,0)&" to "&FIXED(B11,0,0) -> From 2,722,500 to 12,100,000 | B11: 12100000 | C11: 0.11 | D11: =((B11-OFFSET($B$6,ROW(B11)-ROW(B$6)-1,0,1,1))*C11)+OFFSET($D$6,ROW(B11)-ROW(B$6)-1,0,1,1) -> 1128600
A12: ="From "&FIXED(OFFSET($A$6,ROW(B12)-ROW(B$6)-1,1,1,1),0,0)&" and above" -> From 12,100,000 and above | C12: 0.13
A14: Transfer & Bond Registration Fees
A16: Property Value Brackets | B16: Value | C16: Base Cost | D16: Cost per | E16: Interval
A17: ="From 0 to "&FIXED(B17,0,0) -> From 0 to 100,000 | B17: 100000 | C17: 5710 | D17: 0 | E17: 0
A18: ="From "&FIXED(OFFSET($A$6,ROW(B18)-ROW(B$6)-1,1,1,1),0,0)&" to "&FIXED(B18,0,0) -> From 100,000 to 500,000 | B18: 500000 | C18: =((($B18-OFFSET($B18,-1,0,1,1))/E18)*D18)+OFFSET(B18,-1,1,1,1) -> 12990 | D18: 910 | E18: 50000
A19: From 500,000 to 1,000,000 | B19: 1000000 | C19: =((($B19-OFFSET($B19,-1,0,1,1))/E19)*D19)+OFFSET(B19,-1,1,1,1) -> 21790 | D19: 1760 | E19: 100000
A20: From 1,000,000 to 5,000,000 | B20: 5000000 | C20: 56990 | D20: 1760 | E20: 200000
A21: ="From "&FIXED(OFFSET($A$6,ROW(B21)-ROW(B$6)-1,1,1,1),0,0)&" and above" -> From 5,000,000 and above | D21: 2220 | E21: 500000
A23: Deed Office Levies
A25: Property Value Brackets | B25: Value | C25: Transfer | D25: Bond
A26: ="From 0 to "&FIXED(B26,0,0) -> From 0 to 200,000 | B26: 200000 | C26: 96 | D26: 468
A27: ="From "&FIXED(OFFSET($A$6,ROW(B27)-ROW(B$6)-1,1,1,1),0,0)&" to "&FIXED(B27,0,0) -> From 200,000 to 300,000 | B27: 300000 | C27: 606 | D27: 606
A28: From 300,000 to 600,000 | B28: 600000 | C28: 755 | D28: 755
A29: From 600,000 to 800,000 | B29: 800000 | C29: 1063 | D29: 1063
A30: From 800,000 to 1,000,000 | B30: 1000000 | C30: 1220 | D30: 1220
A31: ="From "&FIXED(OFFSET($A$6,ROW(B31)-ROW(B$6)-1,1,1,1),0,0)&" to "&FIXED(B31,0,0) -> From 1,000,000 to 2,000,000 | B31: 2000000 | C31: 1371 | D31: 1371
A32: From 2,000,000 to 4,000,000 | B32: 4000000 | C32: 1900 | D32: 1900
A33: From 4,000,000 to 6,000,000 | B33: 6000000 | C33: 2305 | D33: 2305
A34: From 6,000,000 to 8,000,000 | B34: 8000000 | C34: 2745 | D34: 2745
A35: From 8,000,000 to 10,000,000 | B35: 10000000 | C35: 3209 | D35: 3209
A36: From 10,000,000 to 15,000,000 | B36: 15000000 | C36: 3819 | D36: 3819
A37: From 15,000,000 to 20,000,000 | B37: 20000000 | C37: 4588 | D37: 4588
A38: From 20,000,000 to 30,000,000 | B38: 30000000 | C38: 6111 | D38: 5347
A39: ="From "&FIXED(OFFSET($A$6,ROW(B39)-ROW(B$6)-1,1,1,1),0,0)&" and above" -> From 30,000,000 and above | C39: 6111 | D39: 7640
A41: Other Transfer Costs
A42: Deed Office Search | C42: 100
A43: Postage & Petties | C43: 400
A44: Electronic Document Fee | C44: 100
A45: FICA | C45: 300
A46: Rates / Levies Clearance Certificate | C46: 250
A47: Pro Rate Rates / Levies | C47: 2000
A49: Other Bond Costs
A50: Deed Office Search | C50: 100
A51: Postage & Petties | C51: 400
A52: Electronic Document Fee | C52: 100
A53: FICA | C53: 300
A54: Insurance Certificate | C54: 400
A56: Bank Initiation Fees
A57: Fee Percentage | C57: 0.003
A58: Minimum Amount | C58: 1000
A59: Maximum Amount | C59: 5000
A61: VAT
A62: VAT percentage | C62: 0.15
A64: Income Tax Rates
A65: Individual | C65: 0.3
A66: Corporate | C66: 0.27
A67: Trusts | C67: 0.45
A69: CGT Inclusion Rates
A70: Individual | C70: 0.4
A71: Corporate & Trusts | C71: 0.8
A73: Primary Residence CGT Exclusion
A74: Base Value Exclusion | C74: 2000000
A75: CGT Exclusion Amount | C75: 2000000
